Body name,Service Area,Dept,Expenses Type,Capital/Revenue,Detailed Expenses Type,Transaction number,Expense Code,Date,Amount,Supplier Name,Supplier ID
WANDSWORTH COUNCIL,NGF CS,ENVIRONMENT & COMMUNITY,OTHER AGENCIES,Revenue,DISBURSEMENTS,577037,120643250,27-Jan-15,"1,125.00",4 BRICK COURT MANAGEMENT LIMITED,SP0007380
WANDSWORTH COUNCIL,NGF CS,ENVIRONMENT & COMMUNITY,OTHER AGENCIES,Revenue,DISBURSEMENTS,577038,120643250,27-Jan-15,425.00,4 BRICK COURT MANAGEMENT LIMITED,SP0007380
WANDSWORTH COUNCIL,CES,ENVIRONMENT & COMMUNITY,DIRECT,Revenue,SMALL GRANTS,573455,352250460,21-Jan-15,"1,050.00",7TH POLISH SCOUTING GROUP,SP0002855
WANDSWORTH COUNCIL,NGF HS,ENVIRONMENT & COMMUNITY,"EQUIPMENT, FURNITURE & MATS",Revenue,"EQUIPMENT, FURNITURE & MATS",577518,470130000,26-Jan-15,"47,417.67",A & B GLASS CO LTD T/A ASSET FINELINE,SP0001733
WANDSWORTH COUNCIL,NGF HS,ENVIRONMENT & COMMUNITY,SERVICES,Revenue,SUBCONTRACTORS,577516,470135080,26-Jan-15,"4,956.03",A & B GLASS CO LTD T/A ASSET FINELINE,SP0001733
WANDSWORTH COUNCIL,CES,CHILDREN'S,PRIVATE,Revenue,EXTERNAL DAYCARE,564960,362145290,09-Jan-15,"1,080.00",A BETTER CHOICE DAYCARE,SP0008947
WANDSWORTH COUNCIL,ERS,ENVIRONMENT & COMMUNITY,PRIVATE,Revenue,GENERAL CONTRACT WORK,20299260,420545370,19-Jan-15,500.00,A L J MCMEEKIN,2991000
WANDSWORTH COUNCIL,NGF CS,ADMINISTRATION,PRIVATE,Revenue,"CONTRACT 6- HWYS, PLAN ETC",20299445,120646170,21-Jan-15,"1,085.00",A S B LAW,2008363
WANDSWORTH COUNCIL,ASC,SOCIAL SERVICES,HIRE,Revenue,HIRE - TRANSPORT,562077,130020410,05-Jan-15,440.00,A STAR TRANSPORT LTD,SP0000866
WANDSWORTH COUNCIL,ASC,SOCIAL SERVICES,HIRE,Revenue,HIRE - TRANSPORT,567649,130020410,14-Jan-15,780.00,A STAR TRANSPORT LTD,SP0000866
WANDSWORTH COUNCIL,ASC,SOCIAL SERVICES,HIRE,Revenue,HIRE - TRANSPORT,562020,130220410,05-Jan-15,513.30,A STAR TRANSPORT LTD,SP0000866
WANDSWORTH COUNCIL,ASC,SOCIAL SERVICES,HIRE,Revenue,HIRE - TRANSPORT,562021,130220410,05-Jan-15,526.60,A STAR TRANSPORT LTD,SP0000866
WANDSWORTH COUNCIL,ASC,SOCIAL SERVICES,HIRE,Revenue,HIRE - TRANSPORT,562022,130220410,05-Jan-15,526.60,A STAR TRANSPORT LTD,SP0000866
WANDSWORTH COUNCIL,ASC,SOCIAL SERVICES,HIRE,Revenue,HIRE - TRANSPORT,562023,130220410,05-Jan-15,526.60,A STAR TRANSPORT LTD,SP0000866
WANDSWORTH COUNCIL,ASC,SOCIAL SERVICES,HIRE,Revenue,HIRE - TRANSPORT,562040,130220410,05-Jan-15,675.50,A STAR TRANSPORT LTD,SP0000866
WANDSWORTH COUNCIL,ASC,SOCIAL SERVICES,HIRE,Revenue,HIRE - TRANSPORT,562041,130220410,05-Jan-15,426.50,A STAR TRANSPORT LTD,SP0000866
WANDSWORTH COUNCIL,ASC,SOCIAL SERVICES,HIRE,Revenue,HIRE - TRANSPORT,562042,130220410,05-Jan-15,404.00,A STAR TRANSPORT LTD,SP0000866
WANDSWORTH COUNCIL,ASC,SOCIAL SERVICES,HIRE,Revenue,HIRE - TRANSPORT,562043,130220410,05-Jan-15,526.80,A STAR TRANSPORT LTD,SP0000866
WANDSWORTH COUNCIL,ASC,SOCIAL SERVICES,HIRE,Revenue,HIRE - TRANSPORT,562044,130220410,05-Jan-15,526.60,A STAR TRANSPORT LTD,SP0000866
WANDSWORTH COUNCIL,ASC,SOCIAL SERVICES,HIRE,Revenue,HIRE - TRANSPORT,562045,130220410,05-Jan-15,526.60,A STAR TRANSPORT LTD,SP0000866
WANDSWORTH COUNCIL,ASC,SOCIAL SERVICES,HIRE,Revenue,HIRE - TRANSPORT,562047,130220410,05-Jan-15,468.00,A STAR TRANSPORT LTD,SP0000866
WANDSWORTH COUNCIL,ASC,SOCIAL SERVICES,HIRE,Revenue,HIRE - TRANSPORT,562048,130220410,05-Jan-15,792.00,A STAR TRANSPORT LTD,SP0000866
WANDSWORTH COUNCIL,ASC,SOCIAL SERVICES,HIRE,Revenue,HIRE - TRANSPORT,562050,130220410,05-Jan-15,552.00,A STAR TRANSPORT LTD,SP0000866
WANDSWORTH COUNCIL,ASC,SOCIAL SERVICES,HIRE,Revenue,HIRE - TRANSPORT,562051,130220410,05-Jan-15,750.00,A STAR TRANSPORT LTD,SP0000866
WANDSWORTH COUNCIL,ASC,SOCIAL SERVICES,HIRE,Revenue,HIRE - TRANSPORT,562052,130220410,05-Jan-15,"1,152.00",A STAR TRANSPORT LTD,SP0000866
WANDSWORTH COUNCIL,ASC,SOCIAL SERVICES,HIRE,Revenue,HIRE - TRANSPORT,562054,130220410,05-Jan-15,900.00,A STAR TRANSPORT LTD,SP0000866
WANDSWORTH COUNCIL,ASC,SOCIAL SERVICES,HIRE,Revenue,HIRE - TRANSPORT,562055,130220410,05-Jan-15,900.00,A STAR TRANSPORT LTD,SP0000866
WANDSWORTH COUNCIL,ASC,SOCIAL SERVICES,HIRE,Revenue,HIRE - TRANSPORT,562056,130220410,05-Jan-15,791.99,A STAR TRANSPORT LTD,SP0000866
WANDSWORTH COUNCIL,ASC,SOCIAL SERVICES,HIRE,Revenue,HIRE - TRANSPORT,562057,130220410,05-Jan-15,420.00,A STAR TRANSPORT LTD,SP0000866
WANDSWORTH COUNCIL,ASC,SOCIAL SERVICES,HIRE,Revenue,HIRE - TRANSPORT,562059,130220410,05-Jan-15,427.98,A STAR TRANSPORT LTD,SP0000866
WANDSWORTH COUNCIL,ASC,SOCIAL SERVICES,HIRE,Revenue,HIRE - TRANSPORT,562060,130220410,05-Jan-15,592.00,A STAR TRANSPORT LTD,SP0000866
WANDSWORTH COUNCIL,ASC,SOCIAL SERVICES,HIRE,Revenue,HIRE - TRANSPORT,562063,130220410,05-Jan-15,418.00,A STAR TRANSPORT LTD,SP0000866
WANDSWORTH COUNCIL,ASC,SOCIAL SERVICES,HIRE,Revenue,HIRE - TRANSPORT,562064,130220410,05-Jan-15,510.00,A STAR TRANSPORT LTD,SP0000866
WANDSWORTH COUNCIL,ASC,SOCIAL SERVICES,HIRE,Revenue,HIRE - TRANSPORT,562068,130220410,05-Jan-15,"1,682.00",A STAR TRANSPORT LTD,SP0000866
WANDSWORTH COUNCIL,ASC,SOCIAL SERVICES,HIRE,Revenue,HIRE - TRANSPORT,562069,130220410,05-Jan-15,500.10,A STAR TRANSPORT LTD,SP0000866
WANDSWORTH COUNCIL,ASC,SOCIAL SERVICES,HIRE,Revenue,HIRE - TRANSPORT,562070,130220410,05-Jan-15,500.10,A STAR TRANSPORT LTD,SP0000866
WANDSWORTH COUNCIL,ASC,SOCIAL SERVICES,HIRE,Revenue,HIRE - TRANSPORT,562071,130220410,05-Jan-15,499.80,A STAR TRANSPORT LTD,SP0000866
WANDSWORTH COUNCIL,ASC,SOCIAL SERVICES,HIRE,Revenue,HIRE - TRANSPORT,562073,130220410,05-Jan-15,520.00,A STAR TRANSPORT LTD,SP0000866
WANDSWORTH COUNCIL,ASC,SOCIAL SERVICES,HIRE,Revenue,HIRE - TRANSPORT,562074,130220410,05-Jan-15,837.00,A STAR TRANSPORT LTD,SP0000866
WANDSWORTH COUNCIL,ASC,SOCIAL SERVICES,HIRE,Revenue,HIRE - TRANSPORT,562076,130220410,05-Jan-15,750.00,A STAR TRANSPORT LTD,SP0000866
WANDSWORTH COUNCIL,ASC,SOCIAL SERVICES,HIRE,Revenue,HIRE - TRANSPORT,562078,130220410,05-Jan-15,574.20,A STAR TRANSPORT LTD,SP0000866
WANDSWORTH COUNCIL,ASC,SOCIAL SERVICES,HIRE,Revenue,HIRE - TRANSPORT,562082,130220410,05-Jan-15,814.00,A STAR TRANSPORT LTD,SP0000866
WANDSWORTH COUNCIL,ASC,SOCIAL SERVICES,HIRE,Revenue,HIRE - TRANSPORT,562084,130220410,05-Jan-15,456.00,A STAR TRANSPORT LTD,SP0000866
WANDSWORTH COUNCIL,ASC,SOCIAL SERVICES,HIRE,Revenue,HIRE - TRANSPORT,562085,130220410,05-Jan-15,450.00,A STAR TRANSPORT LTD,SP0000866
WANDSWORTH COUNCIL,ASC,SOCIAL SERVICES,HIRE,Revenue,HIRE - TRANSPORT,562086,130220410,05-Jan-15,648.00,A STAR TRANSPORT LTD,SP0000866
WANDSWORTH COUNCIL,ASC,SOCIAL SERVICES,HIRE,Revenue,HIRE - TRANSPORT,562088,130220410,05-Jan-15,533.46,A STAR TRANSPORT LTD,SP0000866
WANDSWORTH COUNCIL,ASC,SOCIAL SERVICES,HIRE,Revenue,HIRE - TRANSPORT,562091,130220410,05-Jan-15,506.02,A STAR TRANSPORT LTD,SP0000866
WANDSWORTH COUNCIL,ASC,SOCIAL SERVICES,HIRE,Revenue,HIRE - TRANSPORT,562095,130220410,05-Jan-15,495.96,A STAR TRANSPORT LTD,SP0000866
WANDSWORTH COUNCIL,ASC,SOCIAL SERVICES,HIRE,Revenue,HIRE - TRANSPORT,567649,130220410,14-Jan-15,300.00,A STAR TRANSPORT LTD,SP0000866
WANDSWORTH COUNCIL,ASC,SOCIAL SERVICES,HIRE,Revenue,NEW TRANSPORT CONTRACT,562042,130220430,05-Jan-15,172.00,A STAR TRANSPORT LTD,SP0000866
WANDSWORTH COUNCIL,CES,CHILDREN'S,HIRE,Revenue,HIRE - TRANSPORT,20299499,300720410,22-Jan-15,160.00,A STAR TRANSPORT LTD,2007011
WANDSWORTH COUNCIL,CES,CHILDREN'S,HIRE,Revenue,HIRE - TRANSPORT,20299500,300720410,22-Jan-15,200.00,A STAR TRANSPORT LTD,2007011
WANDSWORTH COUNCIL,CES,CHILDREN'S,HIRE,Revenue,HIRE - TRANSPORT,20299499,301320410,22-Jan-15,"15,521.00",A STAR TRANSPORT LTD,2007011
WANDSWORTH COUNCIL,CES,CHILDREN'S,HIRE,Revenue,HIRE - TRANSPORT,20299500,301320410,22-Jan-15,"17,895.00",A STAR TRANSPORT LTD,2007011
WANDSWORTH COUNCIL,ASC,SOCIAL SERVICES,PRIVATE,Revenue,EXTERNAL RESIDENTIAL CARE,569313,152645330,16-Jan-15,"2,421.15",ABBEY CARE CENTRE T/A BHAKTI SHYAMA CARE,SP0001684
WANDSWORTH COUNCIL,ASC,SOCIAL SERVICES,CUSTOMER & CLIENT RECPTS - EXT,Revenue,CL CONT EXTERNAL RESIDENTIAL,569313,152680720,16-Jan-15,"-1,310.42",ABBEY CARE CENTRE T/A BHAKTI SHYAMA CARE,SP0001684
WANDSWORTH COUNCIL,ASC,SOCIAL SERVICES,PRIVATE,Revenue,EXTERNAL NURSING CARE,569314,152845310,16-Jan-15,"2,878.58",ABBEY CARE CENTRE T/A BHAKTI SHYAMA CARE,SP0001684
WANDSWORTH COUNCIL,ASC,SOCIAL SERVICES,PRIVATE,Revenue,EXTERNAL NURSING CARE,569316,152845310,16-Jan-15,"3,143.36",ABBEY CARE CENTRE T/A BHAKTI SHYAMA CARE,SP0001684
WANDSWORTH COUNCIL,ASC,SOCIAL SERVICES,PRIVATE,Revenue,EXTERNAL NURSING CARE,569317,152845310,16-Jan-15,"3,364.79",ABBEY CARE CENTRE T/A BHAKTI SHYAMA CARE,SP0001684
WANDSWORTH COUNCIL,ASC,SOCIAL SERVICES,PRIVATE,Revenue,EXTERNAL NURSING CARE,569318,152845310,16-Jan-15,"3,255.00",ABBEY CARE CENTRE T/A BHAKTI SHYAMA CARE,SP0001684
WANDSWORTH COUNCIL,ASC,SOCIAL SERVICES,PRIVATE,Revenue,EXTERNAL RESIDENTIAL CARE,569315,152845330,16-Jan-15,"2,652.27",ABBEY CARE CENTRE T/A BHAKTI SHYAMA CARE,SP0001684
WANDSWORTH COUNCIL,ASC,SOCIAL SERVICES,CUSTOMER & CLIENT RECPTS - EXT,Revenue,CL CONT EXTERNAL RESIDENTIAL,569315,152880720,16-Jan-15,-617.83,ABBEY CARE CENTRE T/A BHAKTI SHYAMA CARE,SP0001684
WANDSWORTH COUNCIL,ASC,SOCIAL SERVICES,CUSTOMER & CLIENT RECPTS - EXT,Revenue,CLIENT CONTS EXTERNAL NURSING,569314,152880820,16-Jan-15,-548.92,ABBEY CARE CENTRE T/A BHAKTI SHYAMA CARE,SP0001684
WANDSWORTH COUNCIL,ASC,SOCIAL SERVICES,CUSTOMER & CLIENT RECPTS - EXT,Revenue,CLIENT CONTS EXTERNAL NURSING,569316,152880820,16-Jan-15,-548.92,ABBEY CARE CENTRE T/A BHAKTI SHYAMA CARE,SP0001684
WANDSWORTH COUNCIL,ASC,SOCIAL SERVICES,CUSTOMER & CLIENT RECPTS - EXT,Revenue,CLIENT CONTS EXTERNAL NURSING,569317,152880820,16-Jan-15,-548.92,ABBEY CARE CENTRE T/A BHAKTI SHYAMA CARE,SP0001684
WANDSWORTH COUNCIL,ASC,SOCIAL SERVICES,CUSTOMER & CLIENT RECPTS - EXT,Revenue,CLIENT CONTS EXTERNAL NURSING,569318,152880820,16-Jan-15,-337.23,ABBEY CARE CENTRE T/A BHAKTI SHYAMA CARE,SP0001684
WANDSWORTH COUNCIL,ASC,SOCIAL SERVICES,CUSTOMER & CLIENT RECPTS - EXT,Revenue,RNCC,569314,152884120,16-Jan-15,-491.09,ABBEY CARE CENTRE T/A BHAKTI SHYAMA CARE,SP0001684
WANDSWORTH COUNCIL,ASC,SOCIAL SERVICES,CUSTOMER & CLIENT RECPTS - EXT,Revenue,RNCC,569316,152884120,16-Jan-15,-491.09,ABBEY CARE CENTRE T/A BHAKTI SHYAMA CARE,SP0001684
WANDSWORTH COUNCIL,ASC,SOCIAL SERVICES,CUSTOMER & CLIENT RECPTS - EXT,Revenue,RNCC,569317,152884120,16-Jan-15,-491.09,ABBEY CARE CENTRE T/A BHAKTI SHYAMA CARE,SP0001684
WANDSWORTH COUNCIL,ASC,SOCIAL SERVICES,CUSTOMER & CLIENT RECPTS - EXT,Revenue,RNCC,569318,152884120,16-Jan-15,-491.09,ABBEY CARE CENTRE T/A BHAKTI SHYAMA CARE,SP0001684
WANDSWORTH COUNCIL,ASC,SOCIAL SERVICES,PRIVATE,Revenue,EXTERNAL RESIDENTIAL CARE,562951,142045330,06-Jan-15,"3,200.00",ABBEY HOUSE,SP0001434
WANDSWORTH COUNCIL,ASC,SOCIAL SERVICES,PRIVATE,Revenue,EXTERNAL RESIDENTIAL CARE,562952,142045330,06-Jan-15,"2,440.00",ABBEY HOUSE,SP0001434
WANDSWORTH COUNCIL,ASC,SOCIAL SERVICES,PRIVATE,Revenue,EXTERNAL RESIDENTIAL CARE,565590,142245330,09-Jan-15,"2,391.96",ABBEYFIELD,SP0000609
WANDSWORTH COUNCIL,ASC,SOCIAL SERVICES,CUSTOMER & CLIENT RECPTS - EXT,Revenue,CL CONT EXTERNAL RESIDENTIAL,565590,142280720,09-Jan-15,"-1,099.57",ABBEYFIELD,SP0000609
WANDSWORTH COUNCIL,ASC,SOCIAL SERVICES,PRIVATE,Revenue,EXTERNAL RESIDENTIAL CARE,563002,152845330,06-Jan-15,"2,828.26",ABBEYFIELD,SP0000609
WANDSWORTH COUNCIL,ASC,SOCIAL SERVICES,CUSTOMER & CLIENT RECPTS - EXT,Revenue,CL CONT EXTERNAL RESIDENTIAL,563002,152880720,06-Jan-15,"-1,448.89",ABBEYFIELD,SP0000609
WANDSWORTH COUNCIL,ASC,SOCIAL SERVICES,PRIVATE,Revenue,EXTERNAL RESIDENTIAL CARE,564837,152245330,09-Jan-15,"3,020.96",ABBEYFIELD (READING) SOCIETY LTD,SP0001101
WANDSWORTH COUNCIL,ASC,SOCIAL SERVICES,CUSTOMER & CLIENT RECPTS - EXT,Revenue,CL CONT EXTERNAL RESIDENTIAL,564837,152280720,09-Jan-15,-834.96,ABBEYFIELD (READING) SOCIETY LTD,SP0001101
WANDSWORTH COUNCIL,NGF HS,ENVIRONMENT & COMMUNITY,"EQUIPMENT, FURNITURE & MATS",Revenue,"EQUIPMENT, FURNITURE & MATS",568314,470130000,14-Jan-15,"1,623.04",ABBOTT BUILDERS,SP0004182
WANDSWORTH COUNCIL,NGF HS,ENVIRONMENT & COMMUNITY,"EQUIPMENT, FURNITURE & MATS",Revenue,"EQUIPMENT, FURNITURE & MATS",568315,470130000,14-Jan-15,"1,342.14",ABBOTT BUILDERS,SP0004182
WANDSWORTH COUNCIL,NGF HS,ENVIRONMENT & COMMUNITY,"EQUIPMENT, FURNITURE & MATS",Revenue,"EQUIPMENT, FURNITURE & MATS",568317,470130000,14-Jan-15,"4,456.65",ABBOTT BUILDERS,SP0004182
WANDSWORTH COUNCIL,NGF HS,ENVIRONMENT & COMMUNITY,"EQUIPMENT, FURNITURE & MATS",Revenue,"EQUIPMENT, FURNITURE & MATS",568318,470130000,14-Jan-15,"1,201.20",ABBOTT BUILDERS,SP0004182
WANDSWORTH COUNCIL,NGF HS,ENVIRONMENT & COMMUNITY,"EQUIPMENT, FURNITURE & MATS",Revenue,"EQUIPMENT, FURNITURE & MATS",577512,470130000,26-Jan-15,"2,673.64",ABBOTT BUILDERS,SP0004182
WANDSWORTH COUNCIL,NGF HS,ENVIRONMENT & COMMUNITY,"EQUIPMENT, FURNITURE & MATS",Revenue,"EQUIPMENT, FURNITURE & MATS",577513,470130000,26-Jan-15,"1,472.99",ABBOTT BUILDERS,SP0004182
WANDSWORTH COUNCIL,CES,CHILDREN'S,HIRE,Revenue,HIRE - TRANSPORT,20299501,301320410,22-Jan-15,"2,702.00",ACCESS MOBILITY TRANSPORT LTD,2017607
WANDSWORTH COUNCIL,CES,CHILDREN'S,HIRE,Revenue,HIRE - TRANSPORT,20299502,301320410,22-Jan-15,"3,548.00",ACCESS MOBILITY TRANSPORT LTD,2017607
WANDSWORTH COUNCIL,CES,CHILDREN'S,HIRE,Revenue,HIRE - TRANSPORT,562128,367020410,05-Jan-15,460.00,ACCESS MOBILITY TRANSPORT LTD,SP0005825
WANDSWORTH COUNCIL,NGF HS,ENVIRONMENT & COMMUNITY,CLEANING & DOMESTIC SUPPLIES,Revenue,HOMELESS INITIATIVE CLEANING,563941,4FB413000,08-Jan-15,"11,755.67",ACCURO ENVIRONMENTAL LTD,SP0005346
WANDSWORTH COUNCIL,CES,CHILDREN'S,OTH LA,Revenue,FEES & CHARGES OTHER LA,20299033,221444570,23-Jan-15,"15,569.51",ACHIEVING FOR CHILDREN LTD,2019211
WANDSWORTH COUNCIL,CES,CHILDREN'S,OTH LA,Revenue,FEES & CHARGES OTHER LA,20299034,221444570,23-Jan-15,"17,725.29",ACHIEVING FOR CHILDREN LTD,2019211
WANDSWORTH COUNCIL,CES,CHILDREN'S,OTH LA,Revenue,FEES & CHARGES OTHER LA,20299035,221444570,23-Jan-15,"7,071.93",ACHIEVING FOR CHILDREN LTD,2019211
WANDSWORTH COUNCIL,CES,CHILDREN'S,OTH LA,Revenue,FEES & CHARGES OTHER LA,20299036,221444570,23-Jan-15,"12,969.84",ACHIEVING FOR CHILDREN LTD,2019211
WANDSWORTH COUNCIL,BS,ENVIRONMENT & COMMUNITY,"HSG RENTS, HEATING & HOT WATER",Revenue,ACKROYDON EAST TMO,563154,6017B2570,08-Jan-15,"58,169.75",ACKROYDON EAST TMO LTD A/C 70154377,SP0003055
WANDSWORTH COUNCIL,ASC,SOCIAL SERVICES,PRIVATE,Revenue,EXTERNAL NURSING CARE,569319,152245310,16-Jan-15,"3,144.11",ACORN LODGE LIMITED,SP0001612
WANDSWORTH COUNCIL,ASC,SOCIAL SERVICES,CUSTOMER & CLIENT RECPTS - EXT,Revenue,CLIENT CONTS EXTERNAL NURSING,569319,152280820,16-Jan-15,-548.92,ACORN LODGE LIMITED,SP0001612
WANDSWORTH COUNCIL,ASC,SOCIAL SERVICES,CUSTOMER & CLIENT RECPTS - EXT,Revenue,RNCC,569319,152284120,16-Jan-15,-491.09,ACORN LODGE LIMITED,SP0001612
WANDSWORTH COUNCIL,NGF CS,FINANCE,"REPAIRS, ALTERATIONS & MTCE",Revenue,"REPS, ALTS & MTCE-BUILDINGS",571216,11181000L08335,19-Jan-15,792.00,ACR LONDON LTD,SP0000193
WANDSWORTH COUNCIL,CRS,FINANCE,"REPAIRS, ALTERATIONS & MTCE",Revenue,"REPS, ALTS & MTCE-BUILDINGS",576082,427010000,23-Jan-15,530.80,ACR LONDON LTD,SP0000193
WANDSWORTH COUNCIL,NGF CS,FINANCE,"REPAIRS, ALTERATIONS & MTCE",Revenue,"REPS, ALTS & MTCE-BUILDINGS",571219,47611000L08236,19-Jan-15,708.62,ACR LONDON LTD,SP0000193
WANDSWORTH COUNCIL,NGF HS,FINANCE,"REPAIRS, ALTERATIONS & MTCE",Revenue,GENERAL REPS TO BLOCK (AREAS),571218,4YKT49750,19-Jan-15,"1,120.00",ACR LONDON LTD,SP0000193
WANDSWORTH COUNCIL,CRS,FINANCE,"REPAIRS, ALTERATIONS & MTCE",Revenue,"REPS, ALTS & MTCE-BUILDINGS",571073,427010000,19-Jan-15,545.00,ACS WINDOWS,SP0006912
WANDSWORTH COUNCIL,CRS,FINANCE,"REPAIRS, ALTERATIONS & MTCE",Revenue,"REPS, ALTS & MTCE-BUILDINGS",571073,427010000,19-Jan-15,185.00,ACS WINDOWS,SP0006912
WANDSWORTH COUNCIL,ASC,SOCIAL SERVICES,OTHER AGENCIES,Revenue,EXTERNAL OUTREACH,561982,130243330,05-Jan-15,600.00,ACT TOO LTD,SP0000855
WANDSWORTH COUNCIL,ASC,SOCIAL SERVICES,OTHER AGENCIES,Revenue,EXTERNAL OUTREACH,561983,130243330,05-Jan-15,600.00,ACT TOO LTD,SP0000855
WANDSWORTH COUNCIL,ASC,SOCIAL SERVICES,OTHER AGENCIES,Revenue,EXTERNAL OUTREACH,576984,130243330,23-Jan-15,600.00,ACT TOO LTD,SP0000855
WANDSWORTH COUNCIL,ASC,SOCIAL SERVICES,OTHER AGENCIES,Revenue,EXTERNAL OUTREACH,576985,130243330,23-Jan-15,600.00,ACT TOO LTD,SP0000855
WANDSWORTH COUNCIL,ASC,SOCIAL SERVICES,PRIVATE,Revenue,EXTERNAL DAYCARE,561921,130245290,05-Jan-15,554.04,ACT TOO LTD,SP0000855
WANDSWORTH COUNCIL,ASC,SOCIAL SERVICES,PRIVATE,Revenue,EXTERNAL DAYCARE,561922,130245290,05-Jan-15,554.04,ACT TOO LTD,SP0000855
WANDSWORTH COUNCIL,ASC,SOCIAL SERVICES,PRIVATE,Revenue,EXTERNAL DAYCARE,561927,130245290,05-Jan-15,554.04,ACT TOO LTD,SP0000855
WANDSWORTH COUNCIL,ASC,SOCIAL SERVICES,PRIVATE,Revenue,EXTERNAL DAYCARE,561928,130245290,05-Jan-15,554.04,ACT TOO LTD,SP0000855
WANDSWORTH COUNCIL,ASC,SOCIAL SERVICES,PRIVATE,Revenue,EXTERNAL DAYCARE,561929,130245290,05-Jan-15,"1,108.08",ACT TOO LTD,SP0000855
WANDSWORTH COUNCIL,ASC,SOCIAL SERVICES,PRIVATE,Revenue,EXTERNAL DAYCARE,561932,130245290,05-Jan-15,554.04,ACT TOO LTD,SP0000855
WANDSWORTH COUNCIL,ASC,SOCIAL SERVICES,PRIVATE,Revenue,EXTERNAL DAYCARE,561935,130245290,05-Jan-15,738.72,ACT TOO LTD,SP0000855
WANDSWORTH COUNCIL,ASC,SOCIAL SERVICES,PRIVATE,Revenue,EXTERNAL DAYCARE,561941,130245290,05-Jan-15,554.04,ACT TOO LTD,SP0000855
WANDSWORTH COUNCIL,ASC,SOCIAL SERVICES,PRIVATE,Revenue,EXTERNAL DAYCARE,561942,130245290,05-Jan-15,554.04,ACT TOO LTD,SP0000855
WANDSWORTH COUNCIL,ASC,SOCIAL SERVICES,PRIVATE,Revenue,EXTERNAL DAYCARE,561943,130245290,05-Jan-15,738.72,ACT TOO LTD,SP0000855
WANDSWORTH COUNCIL,ASC,SOCIAL SERVICES,PRIVATE,Revenue,EXTERNAL DAYCARE,561944,130245290,05-Jan-15,923.40,ACT TOO LTD,SP0000855
WANDSWORTH COUNCIL,ASC,SOCIAL SERVICES,PRIVATE,Revenue,EXTERNAL DAYCARE,561945,130245290,05-Jan-15,738.72,ACT TOO LTD,SP0000855
WANDSWORTH COUNCIL,ASC,SOCIAL SERVICES,PRIVATE,Revenue,EXTERNAL DAYCARE,561946,130245290,05-Jan-15,738.72,ACT TOO LTD,SP0000855
WANDSWORTH COUNCIL,ASC,SOCIAL SERVICES,PRIVATE,Revenue,EXTERNAL DAYCARE,561949,130245290,05-Jan-15,554.04,ACT TOO LTD,SP0000855
WANDSWORTH COUNCIL,ASC,SOCIAL SERVICES,PRIVATE,Revenue,EXTERNAL DAYCARE,563050,130245290,06-Jan-15,554.04,ACT TOO LTD,SP0000855
WANDSWORTH COUNCIL,ASC,SOCIAL SERVICES,PRIVATE,Revenue,EXTERNAL DAYCARE,563051,130245290,06-Jan-15,738.72,ACT TOO LTD,SP0000855
WANDSWORTH COUNCIL,ASC,SOCIAL SERVICES,PRIVATE,Revenue,EXTERNAL DAYCARE,563054,130245290,06-Jan-15,554.04,ACT TOO LTD,SP0000855
WANDSWORTH COUNCIL,ASC,SOCIAL SERVICES,PRIVATE,Revenue,EXTERNAL DAYCARE,563055,130245290,06-Jan-15,554.04,ACT TOO LTD,SP0000855
WANDSWORTH COUNCIL,ASC,SOCIAL SERVICES,PRIVATE,Revenue,EXTERNAL DAYCARE,563056,130245290,06-Jan-15,"1,108.08",ACT TOO LTD,SP0000855
WANDSWORTH COUNCIL,ASC,SOCIAL SERVICES,PRIVATE,Revenue,EXTERNAL DAYCARE,563059,130245290,06-Jan-15,554.04,ACT TOO LTD,SP0000855
WANDSWORTH COUNCIL,ASC,SOCIAL SERVICES,PRIVATE,Revenue,EXTERNAL DAYCARE,563060,130245290,06-Jan-15,554.04,ACT TOO LTD,SP0000855
WANDSWORTH COUNCIL,ASC,SOCIAL SERVICES,PRIVATE,Revenue,EXTERNAL DAYCARE,563061,130245290,06-Jan-15,923.40,ACT TOO LTD,SP0000855
WANDSWORTH COUNCIL,ASC,SOCIAL SERVICES,PRIVATE,Revenue,EXTERNAL DAYCARE,563063,130245290,06-Jan-15,554.04,ACT TOO LTD,SP0000855
WANDSWORTH COUNCIL,ASC,SOCIAL SERVICES,PRIVATE,Revenue,EXTERNAL DAYCARE,563066,130245290,06-Jan-15,554.04,ACT TOO LTD,SP0000855
WANDSWORTH COUNCIL,ASC,SOCIAL SERVICES,PRIVATE,Revenue,EXTERNAL DAYCARE,563068,130245290,06-Jan-15,554.04,ACT TOO LTD,SP0000855
WANDSWORTH COUNCIL,ASC,SOCIAL SERVICES,PRIVATE,Revenue,EXTERNAL DAYCARE,563073,130245290,06-Jan-15,923.40,ACT TOO LTD,SP0000855
WANDSWORTH COUNCIL,ASC,SOCIAL SERVICES,PRIVATE,Revenue,EXTERNAL DAYCARE,563076,130245290,06-Jan-15,554.04,ACT TOO LTD,SP0000855
WANDSWORTH COUNCIL,ASC,SOCIAL SERVICES,PRIVATE,Revenue,EXTERNAL DAYCARE,563080,130245290,06-Jan-15,554.04,ACT TOO LTD,SP0000855
WANDSWORTH COUNCIL,ASC,SOCIAL SERVICES,PRIVATE,Revenue,EXTERNAL DAYCARE,563081,130245290,06-Jan-15,554.04,ACT TOO LTD,SP0000855
WANDSWORTH COUNCIL,ASC,SOCIAL SERVICES,PRIVATE,Revenue,EXTERNAL DAYCARE,563084,130245290,06-Jan-15,738.72,ACT TOO LTD,SP0000855
WANDSWORTH COUNCIL,ASC,SOCIAL SERVICES,PRIVATE,Revenue,EXTERNAL DAYCARE,563086,130245290,06-Jan-15,554.04,ACT TOO LTD,SP0000855
WANDSWORTH COUNCIL,ASC,SOCIAL SERVICES,PRIVATE,Revenue,EXTERNAL DAYCARE,563088,130245290,06-Jan-15,923.40,ACT TOO LTD,SP0000855
WANDSWORTH COUNCIL,ASC,SOCIAL SERVICES,PRIVATE,Revenue,EXTERNAL DAYCARE,576962,130245290,23-Jan-15,738.72,ACT TOO LTD,SP0000855
WANDSWORTH COUNCIL,ASC,SOCIAL SERVICES,VOL ASS,Revenue,SUPPORTED HOUSING PROGRAMME,561974,130248030,05-Jan-15,600.00,ACT TOO LTD,SP0000855
WANDSWORTH COUNCIL,ASC,SOCIAL SERVICES,VOL ASS,Revenue,SUPPORTED HOUSING PROGRAMME,561975,130248030,05-Jan-15,"1,260.00",ACT TOO LTD,SP0000855
WANDSWORTH COUNCIL,ASC,SOCIAL SERVICES,VOL ASS,Revenue,SUPPORTED HOUSING PROGRAMME,561976,130248030,05-Jan-15,"11,760.00",ACT TOO LTD,SP0000855
WANDSWORTH COUNCIL,ASC,SOCIAL SERVICES,VOL ASS,Revenue,SUPPORTED HOUSING PROGRAMME,561978,130248030,05-Jan-15,"1,320.00",ACT TOO LTD,SP0000855
WANDSWORTH COUNCIL,ASC,SOCIAL SERVICES,VOL ASS,Revenue,SUPPORTED HOUSING PROGRAMME,561979,130248030,05-Jan-15,"2,220.00",ACT TOO LTD,SP0000855
WANDSWORTH COUNCIL,ASC,SOCIAL SERVICES,VOL ASS,Revenue,SUPPORTED HOUSING PROGRAMME,561980,130248030,05-Jan-15,"1,350.00",ACT TOO LTD,SP0000855
WANDSWORTH COUNCIL,ASC,SOCIAL SERVICES,VOL ASS,Revenue,SUPPORTED HOUSING PROGRAMME,561984,130248030,05-Jan-15,"1,440.00",ACT TOO LTD,SP0000855
WANDSWORTH COUNCIL,ASC,SOCIAL SERVICES,VOL ASS,Revenue,SUPPORTED HOUSING PROGRAMME,561994,130248030,05-Jan-15,700.00,ACT TOO LTD,SP0000855
WANDSWORTH COUNCIL,ASC,SOCIAL SERVICES,VOL ASS,Revenue,SUPPORTED HOUSING PROGRAMME,561997,130248030,05-Jan-15,"1,568.00",ACT TOO LTD,SP0000855
WANDSWORTH COUNCIL,ASC,SOCIAL SERVICES,VOL ASS,Revenue,SUPPORTED HOUSING PROGRAMME,561998,130248030,05-Jan-15,602.64,ACT TOO LTD,SP0000855
WANDSWORTH COUNCIL,ASC,SOCIAL SERVICES,VOL ASS,Revenue,SUPPORTED HOUSING PROGRAMME,562000,130248030,05-Jan-15,"2,375.00",ACT TOO LTD,SP0000855
WANDSWORTH COUNCIL,ASC,SOCIAL SERVICES,VOL ASS,Revenue,SUPPORTED HOUSING PROGRAMME,576975,130248030,23-Jan-15,600.00,ACT TOO LTD,SP0000855
WANDSWORTH COUNCIL,ASC,SOCIAL SERVICES,VOL ASS,Revenue,SUPPORTED HOUSING PROGRAMME,576976,130248030,23-Jan-15,"1,260.00",ACT TOO LTD,SP0000855
WANDSWORTH COUNCIL,ASC,SOCIAL SERVICES,VOL ASS,Revenue,SUPPORTED HOUSING PROGRAMME,576977,130248030,23-Jan-15,"11,760.00",ACT TOO LTD,SP0000855
WANDSWORTH COUNCIL,ASC,SOCIAL SERVICES,VOL ASS,Revenue,SUPPORTED HOUSING PROGRAMME,576980,130248030,23-Jan-15,"1,320.00",ACT TOO LTD,SP0000855
WANDSWORTH COUNCIL,ASC,SOCIAL SERVICES,VOL ASS,Revenue,SUPPORTED HOUSING PROGRAMME,576981,130248030,23-Jan-15,"2,220.00",ACT TOO LTD,SP0000855
WANDSWORTH COUNCIL,ASC,SOCIAL SERVICES,VOL ASS,Revenue,SUPPORTED HOUSING PROGRAMME,576982,130248030,23-Jan-15,"1,350.00",ACT TOO LTD,SP0000855
WANDSWORTH COUNCIL,ASC,SOCIAL SERVICES,VOL ASS,Revenue,SUPPORTED HOUSING PROGRAMME,576986,130248030,23-Jan-15,"1,440.00",ACT TOO LTD,SP0000855
WANDSWORTH COUNCIL,ASC,SOCIAL SERVICES,VOL ASS,Revenue,SUPPORTED HOUSING PROGRAMME,576991,130248030,23-Jan-15,700.00,ACT TOO LTD,SP0000855
WANDSWORTH COUNCIL,ASC,SOCIAL SERVICES,VOL ASS,Revenue,SUPPORTED HOUSING PROGRAMME,576994,130248030,23-Jan-15,"1,568.00",ACT TOO LTD,SP0000855
WANDSWORTH COUNCIL,ASC,SOCIAL SERVICES,VOL ASS,Revenue,SUPPORTED HOUSING PROGRAMME,576995,130248030,23-Jan-15,620.76,ACT TOO LTD,SP0000855
WANDSWORTH COUNCIL,CES,CHILDREN'S,PRIVATE,Revenue,EXTERNAL RESIDENTIAL CARE,573288,376345330,21-Jan-15,897.90,ACT TOO LTD,SP0000855
WANDSWORTH COUNCIL,CES,CHILDREN'S,PRIVATE,Revenue,EXTERNAL RESIDENTIAL CARE,573289,376345330,21-Jan-15,"1,911.21",ACT TOO LTD,SP0000855
WANDSWORTH COUNCIL,ASC,SOCIAL SERVICES,OTHER AGENCIES,Revenue,EXTERNAL OUTREACH,573838,140543330,21-Jan-15,919.60,ACTION ON HEARING LOSS,SP0001359
WANDSWORTH COUNCIL,ASC,SOCIAL SERVICES,OTHER AGENCIES,Revenue,EXTERNAL OUTREACH,573840,140543330,21-Jan-15,940.56,ACTION ON HEARING LOSS,SP0000563
WANDSWORTH COUNCIL,ASC,SOCIAL SERVICES,PRIVATE,Revenue,EXTERNAL RESIDENTIAL CARE,569300,140545330,16-Jan-15,"4,800.00",ACTION ON HEARING LOSS,SP0000563
WANDSWORTH COUNCIL,ASC,SOCIAL SERVICES,PRIVATE,Revenue,EXTERNAL RESIDENTIAL CARE,573523,140545330,21-Jan-15,"5,155.16",ACTION ON HEARING LOSS,SP0001359
WANDSWORTH COUNCIL,CRS,ENVIRONMENT & COMMUNITY,GRANTS & SUBSCRIPTIONS,Revenue,CONTRACTS TO VOLUNTARY ORGS,571645,442837550,21-Jan-15,"5,484.75",ACTION SPACE LONDON EVENTS LIMITED,SP0000810
WANDSWORTH COUNCIL,PH,SOCIAL SERVICES,VOL ASS,Revenue,SUPPORTED HOUSING PROGRAMME,565585,140148030,09-Jan-15,"2,000.00",ADDICTION RECOVERY CENTRE,SP0001547
WANDSWORTH COUNCIL,PH,SOCIAL SERVICES,VOL ASS,Revenue,SUPPORTED HOUSING PROGRAMME,576809,140148030,23-Jan-15,"1,000.00",ADDICTION RECOVERY CENTRE,SP0001547
WANDSWORTH COUNCIL,ASC,SOCIAL SERVICES,PRIVATE,Revenue,EXTERNAL RESIDENTIAL CARE,570419,142045330,19-Jan-15,"3,747.12",ADMIRAL HEALTHCARE LTD,SP0001227
WANDSWORTH COUNCIL,ASC,SOCIAL SERVICES,PRIVATE,Revenue,EXTERNAL RESIDENTIAL CARE,570420,142045330,19-Jan-15,"4,424.00",ADMIRAL HEALTHCARE LTD,SP0001227
WANDSWORTH COUNCIL,ASC,SOCIAL SERVICES,PRIVATE,Revenue,EXTERNAL RESIDENTIAL CARE,570421,142045330,19-Jan-15,"4,424.00",ADMIRAL HEALTHCARE LTD,SP0001227
WANDSWORTH COUNCIL,ASC,SOCIAL SERVICES,PRIVATE,Revenue,EXTERNAL RESIDENTIAL CARE,570422,142045330,19-Jan-15,"4,424.00",ADMIRAL HEALTHCARE LTD,SP0001227
WANDSWORTH COUNCIL,ASC,SOCIAL SERVICES,PRIVATE,Revenue,EXTERNAL RESIDENTIAL CARE,570423,142045330,19-Jan-15,"4,424.00",ADMIRAL HEALTHCARE LTD,SP0001227
WANDSWORTH COUNCIL,ASC,SOCIAL SERVICES,PRIVATE,Revenue,EXTERNAL RESIDENTIAL CARE,570424,142045330,19-Jan-15,"4,424.00",ADMIRAL HEALTHCARE LTD,SP0001227
WANDSWORTH COUNCIL,ASC,SOCIAL SERVICES,PRIVATE,Revenue,EXTERNAL RESIDENTIAL CARE,570425,142045330,19-Jan-15,"4,424.00",ADMIRAL HEALTHCARE LTD,SP0001227
WANDSWORTH COUNCIL,ASC,SOCIAL SERVICES,PRIVATE,Revenue,EXTERNAL RESIDENTIAL CARE,570428,142045330,19-Jan-15,"4,800.00",ADMIRAL HEALTHCARE LTD,SP0001227
WANDSWORTH COUNCIL,ASC,SOCIAL SERVICES,PRIVATE,Revenue,EXTERNAL RESIDENTIAL CARE,570436,142045330,19-Jan-15,"3,747.12",ADMIRAL HEALTHCARE LTD,SP0001227
WANDSWORTH COUNCIL,ASC,SOCIAL SERVICES,PRIVATE,Revenue,EXTERNAL RESIDENTIAL CARE,570437,142045330,19-Jan-15,"4,424.00",ADMIRAL HEALTHCARE LTD,SP0001227
WANDSWORTH COUNCIL,ASC,SOCIAL SERVICES,PRIVATE,Revenue,EXTERNAL RESIDENTIAL CARE,570438,142045330,19-Jan-15,"4,000.00",ADMIRAL HEALTHCARE LTD,SP0001227
WANDSWORTH COUNCIL,ASC,SOCIAL SERVICES,PRIVATE,Revenue,EXTERNAL RESIDENTIAL CARE,570441,142045330,19-Jan-15,"4,800.00",ADMIRAL HEALTHCARE LTD,SP0001227
WANDSWORTH COUNCIL,ASC,SOCIAL SERVICES,PRIVATE,Revenue,EXTERNAL RESIDENTIAL CARE,570442,142045330,19-Jan-15,"4,000.00",ADMIRAL HEALTHCARE LTD,SP0001227
WANDSWORTH COUNCIL,ASC,SOCIAL SERVICES,PRIVATE,Revenue,EXTERNAL RESIDENTIAL CARE,566654,142145330,13-Jan-15,"14,106.00",ADMIRAL HEALTHCARE LTD,SP0001227
WANDSWORTH COUNCIL,ASC,SOCIAL SERVICES,PRIVATE,Revenue,EXTERNAL RESIDENTIAL CARE,570440,142145330,19-Jan-15,"3,190.64",ADMIRAL HEALTHCARE LTD,SP0001227
WANDSWORTH COUNCIL,ASC,SOCIAL SERVICES,CUSTOMER & CLIENT RECPTS - EXT,Revenue,CL CONT EXTERNAL RESIDENTIAL,566654,142180720,13-Jan-15,-573.60,ADMIRAL HEALTHCARE LTD,SP0001227
WANDSWORTH COUNCIL,ASC,SOCIAL SERVICES,CUSTOMER & CLIENT RECPTS - EXT,Revenue,CL CONT EXTERNAL RESIDENTIAL,570440,142180720,19-Jan-15,-129.74,ADMIRAL HEALTHCARE LTD,SP0001227
WANDSWORTH COUNCIL,ASC,SOCIAL SERVICES,PRIVATE,Revenue,EXTERNAL RESIDENTIAL CARE,564806,142245330,09-Jan-15,"5,200.00",ADMIRAL HEALTHCARE LTD,SP0001227
WANDSWORTH COUNCIL,ASC,SOCIAL SERVICES,PRIVATE,Revenue,EXTERNAL RESIDENTIAL CARE,564807,142245330,09-Jan-15,"5,200.00",ADMIRAL HEALTHCARE LTD,SP0001227
WANDSWORTH COUNCIL,ASC,SOCIAL SERVICES,PRIVATE,Revenue,EXTERNAL RESIDENTIAL CARE,564808,142245330,09-Jan-15,"5,200.00",ADMIRAL HEALTHCARE LTD,SP0001227
WANDSWORTH COUNCIL,ASC,SOCIAL SERVICES,PRIVATE,Revenue,EXTERNAL RESIDENTIAL CARE,570426,142245330,19-Jan-15,"5,200.00",ADMIRAL HEALTHCARE LTD,SP0001227
WANDSWORTH COUNCIL,ASC,SOCIAL SERVICES,PRIVATE,Revenue,EXTERNAL RESIDENTIAL CARE,570427,142245330,19-Jan-15,"5,200.00",ADMIRAL HEALTHCARE LTD,SP0001227
WANDSWORTH COUNCIL,ASC,SOCIAL SERVICES,PRIVATE,Revenue,EXTERNAL RESIDENTIAL CARE,570429,142245330,19-Jan-15,832.50,ADMIRAL HEALTHCARE LTD,SP0001227
WANDSWORTH COUNCIL,ASC,SOCIAL SERVICES,PRIVATE,Revenue,EXTERNAL RESIDENTIAL CARE,570431,142245330,19-Jan-15,"13,986.00",ADMIRAL HEALTHCARE LTD,SP0001227
WANDSWORTH COUNCIL,ASC,SOCIAL SERVICES,PRIVATE,Revenue,EXTERNAL RESIDENTIAL CARE,570444,142245330,19-Jan-15,"4,662.00",ADMIRAL HEALTHCARE LTD,SP0001227
WANDSWORTH COUNCIL,ASC,SOCIAL SERVICES,PRIVATE,Revenue,EXTERNAL RESIDENTIAL CARE,570439,142645330,19-Jan-15,"4,702.00",ADMIRAL HEALTHCARE LTD,SP0001227
WANDSWORTH COUNCIL,NGF HTS,ENVIRONMENT & COMMUNITY,DIRECT2,Revenue,AGENCY STAFF,568002,476000510,15-Jan-15,617.10,ADREM GROUP LTD,SP0006492
WANDSWORTH COUNCIL,NGF HTS,ENVIRONMENT & COMMUNITY,DIRECT2,Revenue,AGENCY STAFF,571551,476000510,21-Jan-15,"1,045.50",ADREM GROUP LTD,SP0006492
WANDSWORTH COUNCIL,NGF HTS,ENVIRONMENT & COMMUNITY,DIRECT2,Revenue,AGENCY STAFF,574550,476000510,23-Jan-15,"1,802.00",ADREM GROUP LTD,SP0006492
WANDSWORTH COUNCIL,CS,ENVIRONMENT & COMMUNITY,SERVICES,Revenue,PROJECT WORK,564489,38013480K04551,08-Jan-15,"9,350.00",ADVANCED BUSINESS SOLUTIONS,SP0001872
WANDSWORTH COUNCIL,CS,ENVIRONMENT & COMMUNITY,SERVICES,Revenue,PROJECT WORK,564490,38013480K04551,08-Jan-15,"2,550.00",ADVANCED BUSINESS SOLUTIONS,SP0001872
WANDSWORTH COUNCIL,CS,ENVIRONMENT & COMMUNITY,SERVICES,Revenue,PROJECT WORK,564491,38013480K04551,08-Jan-15,"3,400.00",ADVANCED BUSINESS SOLUTIONS,SP0001872
WANDSWORTH COUNCIL,CS,ENVIRONMENT & COMMUNITY,SERVICES,Revenue,PROJECT WORK,564504,38013480K04551,08-Jan-15,850.00,ADVANCED BUSINESS SOLUTIONS,SP0001872
WANDSWORTH COUNCIL,CES,ENVIRONMENT & COMMUNITY,"EQUIPMENT, FURNITURE & MATS",Revenue,"EQUIPMENT, FURNITURE & MATS",575842,330130000,26-Jan-15,"1,260.00",AEROBOUNCE,SP0007166
WANDSWORTH COUNCIL,NGF HTS,ENVIRONMENT & COMMUNITY,"EQUIPMENT, FURNITURE & MATS",Revenue,"EQUIPMENT, FURNITURE & MATS",574732,471030000,22-Jan-15,894.08,AGGREGATE INDUSTRIES UK LTD,SP0002123
WANDSWORTH COUNCIL,NGF HTS,ENVIRONMENT & COMMUNITY,"EQUIPMENT, FURNITURE & MATS",Revenue,"EQUIPMENT, FURNITURE & MATS",574733,471030000,22-Jan-15,654.72,AGGREGATE INDUSTRIES UK LTD,SP0002123
WANDSWORTH COUNCIL,NGF HTS,ENVIRONMENT & COMMUNITY,"EQUIPMENT, FURNITURE & MATS",Revenue,"EQUIPMENT, FURNITURE & MATS",574734,471030000,22-Jan-15,580.48,AGGREGATE INDUSTRIES UK LTD,SP0002123
WANDSWORTH COUNCIL,NGF HTS,ENVIRONMENT & COMMUNITY,"EQUIPMENT, FURNITURE & MATS",Revenue,"EQUIPMENT, FURNITURE & MATS",579766,471030000,29-Jan-15,520.00,AGGREGATE INDUSTRIES UK LTD,SP0002123
WANDSWORTH COUNCIL,BS,CHILDREN'S,OTHER LAND & BUILDINGS,CAPITAL,SCHOOLS PRIMARY BLDNGS - OLAB,20298702,7003C014J1362C,07-Jan-15,"1,656.00",AILREY MILLER LLP,2016638
WANDSWORTH COUNCIL,BS,CHILDREN'S,OTHER LAND & BUILDINGS,CAPITAL,SCHOOLS PRIMARY BLDNGS - OLAB,20299278,7003C014J1362C,19-Jan-15,"1,000.00",AILREY MILLER LLP,2016638
WANDSWORTH COUNCIL,ASC,SOCIAL SERVICES,PRIVATE,Revenue,EXTERNAL RESIDENTIAL CARE,574783,130245330,22-Jan-15,"8,370.84",AIMS CARE PARTNERSHIP,SP0000561
WANDSWORTH COUNCIL,ASC,SOCIAL SERVICES,CUSTOMER & CLIENT RECPTS - EXT,Revenue,CL CONT EXTERNAL RESIDENTIAL,574783,130280720,22-Jan-15,-353.62,AIMS CARE PARTNERSHIP,SP0000561
WANDSWORTH COUNCIL,ERS,ENVIRONMENT & COMMUNITY,SERVICES,Revenue,PROJECT WORK,577053,465734800,27-Jan-15,"10,000.00",AIR FOOTBALL LTD,SP0006715
WANDSWORTH COUNCIL,NGF HS,HOUSING,"REPAIRS, ALTERATIONS & MTCE",Revenue,EMERGENCY LIGHTING,564718,4FBN49640,09-Jan-15,"3,054.36",AJS LTD,SP0008424
WANDSWORTH COUNCIL,NGF HTS,FINANCE,COMMUNICATIONS & COMP,Revenue,I.T. SOFTWARE,571215,476036240,19-Jan-15,"6,007.50",ALAN BAXTER PARTNERSHIP LLP,SP0008627
WANDSWORTH COUNCIL,PH,ENVIRONMENT & COMMUNITY,"EQUIPMENT, FURNITURE & MATS",Revenue,TOILET AND MEDICAL SUPPLIES,563321,178930460,07-Jan-15,"1,686.00",ALERE TOXICOLOGY PLC,SP0006087
WANDSWORTH COUNCIL,CES,CHILDREN'S,PRIVATE,Revenue,S17 -  ESSENTIALS,572271,361245600,20-Jan-15,983.00,ALERE TOXICOLOGY PLC,SP0006087
WANDSWORTH COUNCIL,CES,ENVIRONMENT & COMMUNITY,"EQUIPMENT, FURNITURE & MATS",Revenue,"EQUIPMENT, FURNITURE & MATS",573465,364630000,23-Jan-15,643.00,ALERE TOXICOLOGY PLC,SP0006087
WANDSWORTH COUNCIL,CES,ENVIRONMENT & COMMUNITY,"EQUIPMENT, FURNITURE & MATS",Revenue,"EQUIPMENT, FURNITURE & MATS",573466,364630000,23-Jan-15,643.00,ALERE TOXICOLOGY PLC,SP0006087
WANDSWORTH COUNCIL,ASC,SOCIAL SERVICES,PRIVATE,Revenue,EXTERNAL RESIDENTIAL CARE,574812,152245330,22-Jan-15,"3,659.34",ALEXANDER HOUSE,SP0000701
WANDSWORTH COUNCIL,ASC,SOCIAL SERVICES,CUSTOMER & CLIENT RECPTS - EXT,Revenue,CL CONT EXTERNAL RESIDENTIAL,574812,152280720,22-Jan-15,"-1,661.76",ALEXANDER HOUSE,SP0000701
WANDSWORTH COUNCIL,ASC,SOCIAL SERVICES,PRIVATE,Revenue,EXTERNAL RESIDENTIAL CARE,563397,152645330,07-Jan-15,"2,061.80",ALEXANDER LODGE,SP0000485
WANDSWORTH COUNCIL,ASC,SOCIAL SERVICES,PRIVATE,Revenue,EXTERNAL RESIDENTIAL CARE,563398,152645330,07-Jan-15,"2,061.80",ALEXANDER LODGE,SP0000485
WANDSWORTH COUNCIL,ASC,SOCIAL SERVICES,PRIVATE,Revenue,EXTERNAL RESIDENTIAL CARE,563399,152645330,07-Jan-15,"2,061.80",ALEXANDER LODGE,SP0000485
WANDSWORTH COUNCIL,ASC,SOCIAL SERVICES,PRIVATE,Revenue,EXTERNAL RESIDENTIAL CARE,563400,152645330,07-Jan-15,"2,061.80",ALEXANDER LODGE,SP0000485
WANDSWORTH COUNCIL,NGF HTS,ENVIRONMENT & COMMUNITY,SERVICES,Revenue,SUBCONTRACTORS,579636,474135080,29-Jan-15,771.52,ALFA TAIL LIFTS LTD,SP0002000
WANDSWORTH COUNCIL,NGF HTS,ENVIRONMENT & COMMUNITY,SERVICES,Revenue,SUBCONTRACTORS,579637,474135080,29-Jan-15,465.30,ALFA TAIL LIFTS LTD,SP0002000
WANDSWORTH COUNCIL,BS,ENVIRONMENT & COMMUNITY,"HSG RENTS, HEATING & HOT WATER",Revenue,ALL SAINTS CO-OP,566498,6017B2660,14-Jan-15,"7,942.55",ALL SAINTS TENANTS CO-OPERATIVE LTD,SP0002533
WANDSWORTH COUNCIL,BS,FINANCE,OTHER LAND & BUILDINGS,CAPITAL,SCHOOLS PRIMARY BLDNGS - OLAB,577444,7004C014J2009D,26-Jan-15,"1,195.00",ALLDEC BUILDING SERVICES LTD,SP0006972
WANDSWORTH COUNCIL,ASC,SOCIAL SERVICES,PRIVATE,Revenue,EXTERNAL RESIDENTIAL CARE,561790,130245330,05-Jan-15,"4,630.48",ALLIED CARE (MHS) LTD,SP0001069
WANDSWORTH COUNCIL,ASC,SOCIAL SERVICES,PRIVATE,Revenue,EXTERNAL RESIDENTIAL CARE,569324,130245330,16-Jan-15,"4,332.73",ALLIED CARE (MHS) LTD,SP0001069
WANDSWORTH COUNCIL,ASC,SOCIAL SERVICES,PRIVATE,Revenue,EXTERNAL RESIDENTIAL CARE,569336,130245330,16-Jan-15,"7,054.98",ALLIED CARE (MHS) LTD,SP0001069
WANDSWORTH COUNCIL,ASC,SOCIAL SERVICES,PRIVATE,Revenue,EXTERNAL RESIDENTIAL CARE,569337,130245330,16-Jan-15,"5,000.30",ALLIED CARE (MHS) LTD,SP0001069
WANDSWORTH COUNCIL,ASC,SOCIAL SERVICES,CUSTOMER & CLIENT RECPTS - EXT,Revenue,CL CONT EXTERNAL RESIDENTIAL,561790,130280720,05-Jan-15,-319.40,ALLIED CARE (MHS) LTD,SP0001069
WANDSWORTH COUNCIL,ASC,SOCIAL SERVICES,CUSTOMER & CLIENT RECPTS - EXT,Revenue,CL CONT EXTERNAL RESIDENTIAL,569324,130280720,16-Jan-15,-268.32,ALLIED CARE (MHS) LTD,SP0001069
WANDSWORTH COUNCIL,NGF HS,ENVIRONMENT & COMMUNITY,"EQUIPMENT, FURNITURE & MATS",Revenue,"EQUIPMENT, FURNITURE & MATS",562600,470130000,06-Jan-15,515.36,ALLOWAY TIMBER,SP0002161
WANDSWORTH COUNCIL,NGF HTS,ENVIRONMENT & COMMUNITY,SERVICES,Revenue,SUBCONTRACTORS,562655,474135080,06-Jan-15,74.24,ALLSTAR BUSINESS SOLUTIONS LTD,SP0002658
WANDSWORTH COUNCIL,NGF HTS,ENVIRONMENT & COMMUNITY,SERVICES,Revenue,SUBCONTRACTORS,562655,474135080,06-Jan-15,7.60,ALLSTAR BUSINESS SOLUTIONS LTD,SP0002658
WANDSWORTH COUNCIL,NGF HTS,ENVIRONMENT & COMMUNITY,SERVICES,Revenue,SUBCONTRACTORS,562655,474135080,06-Jan-15,69.58,ALLSTAR BUSINESS SOLUTIONS LTD,SP0002658
WANDSWORTH COUNCIL,NGF HTS,ENVIRONMENT & COMMUNITY,SERVICES,Revenue,SUBCONTRACTORS,562655,474135080,06-Jan-15,58.55,ALLSTAR BUSINESS SOLUTIONS LTD,SP0002658
WANDSWORTH COUNCIL,NGF HTS,ENVIRONMENT & COMMUNITY,SERVICES,Revenue,SUBCONTRACTORS,562655,474135080,06-Jan-15,57.66,ALLSTAR BUSINESS SOLUTIONS LTD,SP0002658
WANDSWORTH COUNCIL,NGF HTS,ENVIRONMENT & COMMUNITY,SERVICES,Revenue,SUBCONTRACTORS,562655,474135080,06-Jan-15,45.84,ALLSTAR BUSINESS SOLUTIONS LTD,SP0002658
WANDSWORTH COUNCIL,NGF HTS,ENVIRONMENT & COMMUNITY,SERVICES,Revenue,SUBCONTRACTORS,562655,474135080,06-Jan-15,35.78,ALLSTAR BUSINESS SOLUTIONS LTD,SP0002658
WANDSWORTH COUNCIL,NGF HTS,ENVIRONMENT & COMMUNITY,SERVICES,Revenue,SUBCONTRACTORS,562655,474135080,06-Jan-15,40.00,ALLSTAR BUSINESS SOLUTIONS LTD,SP0002658
WANDSWORTH COUNCIL,NGF HTS,ENVIRONMENT & COMMUNITY,SERVICES,Revenue,SUBCONTRACTORS,562655,474135080,06-Jan-15,51.76,ALLSTAR BUSINESS SOLUTIONS LTD,SP0002658
WANDSWORTH COUNCIL,NGF HTS,ENVIRONMENT & COMMUNITY,SERVICES,Revenue,SUBCONTRACTORS,568309,474135080,14-Jan-15,66.67,ALLSTAR BUSINESS SOLUTIONS LTD,SP0002658
WANDSWORTH COUNCIL,NGF HTS,ENVIRONMENT & COMMUNITY,SERVICES,Revenue,SUBCONTRACTORS,568309,474135080,14-Jan-15,11.40,ALLSTAR BUSINESS SOLUTIONS LTD,SP0002658
WANDSWORTH COUNCIL,NGF HTS,ENVIRONMENT & COMMUNITY,SERVICES,Revenue,SUBCONTRACTORS,568309,474135080,14-Jan-15,40.00,ALLSTAR BUSINESS SOLUTIONS LTD,SP0002658
WANDSWORTH COUNCIL,NGF HTS,ENVIRONMENT & COMMUNITY,SERVICES,Revenue,SUBCONTRACTORS,568309,474135080,14-Jan-15,87.98,ALLSTAR BUSINESS SOLUTIONS LTD,SP0002658
WANDSWORTH COUNCIL,NGF HTS,ENVIRONMENT & COMMUNITY,SERVICES,Revenue,SUBCONTRACTORS,568309,474135080,14-Jan-15,60.53,ALLSTAR BUSINESS SOLUTIONS LTD,SP0002658
WANDSWORTH COUNCIL,NGF HTS,ENVIRONMENT & COMMUNITY,SERVICES,Revenue,SUBCONTRACTORS,568309,474135080,14-Jan-15,65.37,ALLSTAR BUSINESS SOLUTIONS LTD,SP0002658
WANDSWORTH COUNCIL,NGF HTS,ENVIRONMENT & COMMUNITY,SERVICES,Revenue,SUBCONTRACTORS,568309,474135080,14-Jan-15,65.47,ALLSTAR BUSINESS SOLUTIONS LTD,SP0002658
WANDSWORTH COUNCIL,NGF HTS,ENVIRONMENT & COMMUNITY,SERVICES,Revenue,SUBCONTRACTORS,568309,474135080,14-Jan-15,64.10,ALLSTAR BUSINESS SOLUTIONS LTD,SP0002658
WANDSWORTH COUNCIL,NGF HTS,ENVIRONMENT & COMMUNITY,SERVICES,Revenue,SUBCONTRACTORS,568310,474135080,14-Jan-15,72.93,ALLSTAR BUSINESS SOLUTIONS LTD,SP0002658
WANDSWORTH COUNCIL,NGF HTS,ENVIRONMENT & COMMUNITY,SERVICES,Revenue,SUBCONTRACTORS,568310,474135080,14-Jan-15,98.04,ALLSTAR BUSINESS SOLUTIONS LTD,SP0002658
WANDSWORTH COUNCIL,NGF HTS,ENVIRONMENT & COMMUNITY,SERVICES,Revenue,SUBCONTRACTORS,568310,474135080,14-Jan-15,40.00,ALLSTAR BUSINESS SOLUTIONS LTD,SP0002658
WANDSWORTH COUNCIL,NGF HTS,ENVIRONMENT & COMMUNITY,SERVICES,Revenue,SUBCONTRACTORS,568310,474135080,14-Jan-15,35.77,ALLSTAR BUSINESS SOLUTIONS LTD,SP0002658
WANDSWORTH COUNCIL,NGF HTS,ENVIRONMENT & COMMUNITY,SERVICES,Revenue,SUBCONTRACTORS,568310,474135080,14-Jan-15,11.40,ALLSTAR BUSINESS SOLUTIONS LTD,SP0002658
WANDSWORTH COUNCIL,NGF HTS,ENVIRONMENT & COMMUNITY,SERVICES,Revenue,SUBCONTRACTORS,568310,474135080,14-Jan-15,73.53,ALLSTAR BUSINESS SOLUTIONS LTD,SP0002658
WANDSWORTH COUNCIL,NGF HTS,ENVIRONMENT & COMMUNITY,SERVICES,Revenue,SUBCONTRACTORS,568310,474135080,14-Jan-15,44.78,ALLSTAR BUSINESS SOLUTIONS LTD,SP0002658
WANDSWORTH COUNCIL,NGF HTS,ENVIRONMENT & COMMUNITY,SERVICES,Revenue,SUBCONTRACTORS,568310,474135080,14-Jan-15,49.59,ALLSTAR BUSINESS SOLUTIONS LTD,SP0002658
WANDSWORTH COUNCIL,NGF HTS,ENVIRONMENT & COMMUNITY,SERVICES,Revenue,SUBCONTRACTORS,568310,474135080,14-Jan-15,59.66,ALLSTAR BUSINESS SOLUTIONS LTD,SP0002658
WANDSWORTH COUNCIL,NGF HTS,ENVIRONMENT & COMMUNITY,SERVICES,Revenue,SUBCONTRACTORS,568310,474135080,14-Jan-15,60.89,ALLSTAR BUSINESS SOLUTIONS LTD,SP0002658
WANDSWORTH COUNCIL,NGF HTS,ENVIRONMENT & COMMUNITY,SERVICES,Revenue,SUBCONTRACTORS,579665,474135080,29-Jan-15,130.34,ALLSTAR BUSINESS SOLUTIONS LTD,SP0002658
WANDSWORTH COUNCIL,NGF HTS,ENVIRONMENT & COMMUNITY,SERVICES,Revenue,SUBCONTRACTORS,579665,474135080,29-Jan-15,40.00,ALLSTAR BUSINESS SOLUTIONS LTD,SP0002658
WANDSWORTH COUNCIL,NGF HTS,ENVIRONMENT & COMMUNITY,SERVICES,Revenue,SUBCONTRACTORS,579665,474135080,29-Jan-15,39.05,ALLSTAR BUSINESS SOLUTIONS LTD,SP0002658
WANDSWORTH COUNCIL,NGF HTS,ENVIRONMENT & COMMUNITY,SERVICES,Revenue,SUBCONTRACTORS,579665,474135080,29-Jan-15,42.49,ALLSTAR BUSINESS SOLUTIONS LTD,SP0002658
WANDSWORTH COUNCIL,NGF HTS,ENVIRONMENT & COMMUNITY,SERVICES,Revenue,SUBCONTRACTORS,579665,474135080,29-Jan-15,51.91,ALLSTAR BUSINESS SOLUTIONS LTD,SP0002658
WANDSWORTH COUNCIL,NGF HTS,ENVIRONMENT & COMMUNITY,SERVICES,Revenue,SUBCONTRACTORS,579665,474135080,29-Jan-15,63.11,ALLSTAR BUSINESS SOLUTIONS LTD,SP0002658
WANDSWORTH COUNCIL,NGF HTS,ENVIRONMENT & COMMUNITY,SERVICES,Revenue,SUBCONTRACTORS,579665,474135080,29-Jan-15,9.50,ALLSTAR BUSINESS SOLUTIONS LTD,SP0002658
WANDSWORTH COUNCIL,NGF HTS,ENVIRONMENT & COMMUNITY,SERVICES,Revenue,SUBCONTRACTORS,579665,474135080,29-Jan-15,51.97,ALLSTAR BUSINESS SOLUTIONS LTD,SP0002658
WANDSWORTH COUNCIL,CES,CHILDREN'S,PRIVATE,Revenue,INDEPENDENT - DAY & BOARDING,563148,221445400,06-Jan-15,"5,630.00",ALPHA PLUS GROUP T/A ABINGDON HOUSE SCHO,SP0001464
WANDSWORTH COUNCIL,NGF HS,ENVIRONMENT & COMMUNITY,"CLOTHING, UNIFORM & LAUNDRY",Revenue,CLOTHING & UNIFORMS,571320,408531500,20-Jan-15,"1,314.10",ALPHA WORKWEAR DIRECT LTD,SP0001462
WANDSWORTH COUNCIL,NGF HS,ENVIRONMENT & COMMUNITY,"CLOTHING, UNIFORM & LAUNDRY",Revenue,CLOTHING & UNIFORMS,571321,408531500,20-Jan-15,"9,108.96",ALPHA WORKWEAR DIRECT LTD,SP0001462
WANDSWORTH COUNCIL,NGF HS,ENVIRONMENT & COMMUNITY,"CLOTHING, UNIFORM & LAUNDRY",Revenue,CLOTHING & UNIFORMS,571322,408531500,20-Jan-15,"1,281.74",ALPHA WORKWEAR DIRECT LTD,SP0001462
WANDSWORTH COUNCIL,CS,ENVIRONMENT & COMMUNITY,HEALTH,Revenue,THIRD PARTY PYMT - HEALTH,574601,128041130,23-Jan-15,"2,042.50",AMICHEM LIMITED FNQ61 T/A KRYSTAL PHARMA,SP0008457
WANDSWORTH COUNCIL,ASC,SOCIAL SERVICES,PRIVATE,Revenue,EXTERNAL RESIDENTIAL CARE,566635,152645330,13-Jan-15,"2,254.96",ANCHOR TRUST,SP0001560
WANDSWORTH COUNCIL,ASC,SOCIAL SERVICES,CUSTOMER & CLIENT RECPTS - EXT,Revenue,CL CONT EXTERNAL RESIDENTIAL,566635,152680720,13-Jan-15,-495.80,ANCHOR TRUST,SP0001560
WANDSWORTH COUNCIL,HS,SOCIAL SERVICES,OTHER AGENCIES,Revenue,SUPPORTING PEOPLE CONTRACTS,576761,175143590,23-Jan-15,564.20,ANCHOR TRUST,SP0000522
WANDSWORTH COUNCIL,ASC,SOCIAL SERVICES,PRIVATE,Revenue,EXTERNAL RESIDENTIAL CARE,576838,152245330,23-Jan-15,"2,496.61",ANCHOR TRUST - SILK COURT RESIDENTIAL,SP0001713
WANDSWORTH COUNCIL,PH,ENVIRONMENT & COMMUNITY,SERVICES,Revenue,PROJECT WORK,567415,125134800,14-Jan-15,"4,250.00",ANDREW BRUCE McCOIG,SP0009001
WANDSWORTH COUNCIL,NGF CS,ENVIRONMENT & COMMUNITY,OTHER AGENCIES,Revenue,DISBURSEMENTS,578821,120643250,29-Jan-15,"2,346.64",ANNA FREUD CENTRE,SP0008632
WANDSWORTH COUNCIL,CRS,ENVIRONMENT & COMMUNITY,PRINTING STAT & GEN OFFICE EXP,Revenue,WANDSWORTH ART FESTIVAL,578208,442833540,28-Jan-15,"5,100.00",ANOMIC MULTIMEDIA,SP0008994
WANDSWORTH COUNCIL,ASC,SOCIAL SERVICES,PRIVATE,Revenue,EXTERNAL NURSING CARE,576794,152245310,23-Jan-15,"3,006.24",ANS HOMES LTD,SP0000029
WANDSWORTH COUNCIL,ASC,SOCIAL SERVICES,CUSTOMER & CLIENT RECPTS - EXT,Revenue,RNCC,576794,152284120,23-Jan-15,-443.56,ANS HOMES LTD,SP0000029
WANDSWORTH COUNCIL,ASC,SOCIAL SERVICES,PRIVATE,Revenue,EXTERNAL NURSING CARE,563384,152445310,07-Jan-15,"1,083.58",ANS HOMES LTD,SP0000029
WANDSWORTH COUNCIL,ASC,SOCIAL SERVICES,PRIVATE,Revenue,EXTERNAL NURSING CARE,563386,152445310,07-Jan-15,"2,738.79",ANS HOMES LTD,SP0000029
WANDSWORTH COUNCIL,ASC,SOCIAL SERVICES,PRIVATE,Revenue,EXTERNAL NURSING CARE,563389,152445310,07-Jan-15,"3,141.37",ANS HOMES LTD,SP0000029
WANDSWORTH COUNCIL,ASC,SOCIAL SERVICES,PRIVATE,Revenue,EXTERNAL NURSING CARE,563392,152445310,07-Jan-15,"4,942.60",ANS HOMES LTD,SP0000029
WANDSWORTH COUNCIL,ASC,SOCIAL SERVICES,PRIVATE,Revenue,EXTERNAL NURSING CARE,563393,152445310,07-Jan-15,"2,942.53",ANS HOMES LTD,SP0000029
WANDSWORTH COUNCIL,ASC,SOCIAL SERVICES,PRIVATE,Revenue,EXTERNAL NURSING CARE,576797,152445310,23-Jan-15,"2,940.08",ANS HOMES LTD,SP0000029
WANDSWORTH COUNCIL,ASC,SOCIAL SERVICES,CUSTOMER & CLIENT RECPTS - EXT,Revenue,CLIENT CONTS EXTERNAL NURSING,563384,152480820,07-Jan-15,-194.78,ANS HOMES LTD,SP0000029
WANDSWORTH COUNCIL,ASC,SOCIAL SERVICES,CUSTOMER & CLIENT RECPTS - EXT,Revenue,CLIENT CONTS EXTERNAL NURSING,563386,152480820,07-Jan-15,-389.56,ANS HOMES LTD,SP0000029
WANDSWORTH COUNCIL,ASC,SOCIAL SERVICES,CUSTOMER & CLIENT RECPTS - EXT,Revenue,CLIENT CONTS EXTERNAL NURSING,563389,152480820,07-Jan-15,-602.04,ANS HOMES LTD,SP0000029
WANDSWORTH COUNCIL,ASC,SOCIAL SERVICES,CUSTOMER & CLIENT RECPTS - EXT,Revenue,CLIENT CONTS EXTERNAL NURSING,563392,152480820,07-Jan-15,"-2,496.52",ANS HOMES LTD,SP0000029
WANDSWORTH COUNCIL,ASC,SOCIAL SERVICES,CUSTOMER & CLIENT RECPTS - EXT,Revenue,CLIENT CONTS EXTERNAL NURSING,563393,152480820,07-Jan-15,-478.09,ANS HOMES LTD,SP0000029
WANDSWORTH COUNCIL,ASC,SOCIAL SERVICES,CUSTOMER & CLIENT RECPTS - EXT,Revenue,CLIENT CONTS EXTERNAL NURSING,576797,152480820,23-Jan-15,-495.80,ANS HOMES LTD,SP0000029
WANDSWORTH COUNCIL,ASC,SOCIAL SERVICES,CUSTOMER & CLIENT RECPTS - EXT,Revenue,RNCC,563384,152484120,07-Jan-15,-174.26,ANS HOMES LTD,SP0000029
WANDSWORTH COUNCIL,ASC,SOCIAL SERVICES,CUSTOMER & CLIENT RECPTS - EXT,Revenue,RNCC,563386,152484120,07-Jan-15,-348.51,ANS HOMES LTD,SP0000029
WANDSWORTH COUNCIL,ASC,SOCIAL SERVICES,CUSTOMER & CLIENT RECPTS - EXT,Revenue,RNCC,563389,152484120,07-Jan-15,-538.61,ANS HOMES LTD,SP0000029
WANDSWORTH COUNCIL,ASC,SOCIAL SERVICES,CUSTOMER & CLIENT RECPTS - EXT,Revenue,RNCC,563392,152484120,07-Jan-15,-443.56,ANS HOMES LTD,SP0000029
WANDSWORTH COUNCIL,ASC,SOCIAL SERVICES,CUSTOMER & CLIENT RECPTS - EXT,Revenue,RNCC,563393,152484120,07-Jan-15,-427.72,ANS HOMES LTD,SP0000029
WANDSWORTH COUNCIL,ASC,SOCIAL SERVICES,CUSTOMER & CLIENT RECPTS - EXT,Revenue,RNCC,576797,152484120,23-Jan-15,-443.56,ANS HOMES LTD,SP0000029
WANDSWORTH COUNCIL,ASC,SOCIAL SERVICES,PRIVATE,Revenue,EXTERNAL NURSING CARE,563387,152645310,07-Jan-15,"1,418.49",ANS HOMES LTD,SP0000029
WANDSWORTH COUNCIL,ASC,SOCIAL SERVICES,PRIVATE,Revenue,EXTERNAL NURSING CARE,563390,152645310,07-Jan-15,"3,055.20",ANS HOMES LTD,SP0000029
WANDSWORTH COUNCIL,ASC,SOCIAL SERVICES,PRIVATE,Revenue,EXTERNAL NURSING CARE,563394,152645310,07-Jan-15,"3,055.20",ANS HOMES LTD,SP0000029
WANDSWORTH COUNCIL,ASC,SOCIAL SERVICES,PRIVATE,Revenue,EXTERNAL NURSING CARE,576793,152645310,23-Jan-15,"3,237.52",ANS HOMES LTD,SP0000029
WANDSWORTH COUNCIL,ASC,SOCIAL SERVICES,PRIVATE,Revenue,EXTERNAL NURSING CARE,576795,152645310,23-Jan-15,"2,940.08",ANS HOMES LTD,SP0000029
WANDSWORTH COUNCIL,ASC,SOCIAL SERVICES,PRIVATE,Revenue,EXTERNAL NURSING CARE,576798,152645310,23-Jan-15,"3,055.20",ANS HOMES LTD,SP0000029
WANDSWORTH COUNCIL,ASC,SOCIAL SERVICES,PRIVATE,Revenue,EXTERNAL NURSING CARE,578045,152645310,27-Jan-15,"3,004.00",ANS HOMES LTD,SP0000029
WANDSWORTH COUNCIL,ASC,SOCIAL SERVICES,CUSTOMER & CLIENT RECPTS - EXT,Revenue,CLIENT CONTS EXTERNAL NURSING,563387,152680820,07-Jan-15,-559.84,ANS HOMES LTD,SP0000029
WANDSWORTH COUNCIL,ASC,SOCIAL SERVICES,CUSTOMER & CLIENT RECPTS - EXT,Revenue,CLIENT CONTS EXTERNAL NURSING,563390,152680820,07-Jan-15,"-1,205.80",ANS HOMES LTD,SP0000029
WANDSWORTH COUNCIL,ASC,SOCIAL SERVICES,CUSTOMER & CLIENT RECPTS - EXT,Revenue,CLIENT CONTS EXTERNAL NURSING,563394,152680820,07-Jan-15,"-1,205.80",ANS HOMES LTD,SP0000029
WANDSWORTH COUNCIL,ASC,SOCIAL SERVICES,CUSTOMER & CLIENT RECPTS - EXT,Revenue,CLIENT CONTS EXTERNAL NURSING,576795,152680820,23-Jan-15,-732.72,ANS HOMES LTD,SP0000029
WANDSWORTH COUNCIL,ASC,SOCIAL SERVICES,CUSTOMER & CLIENT RECPTS - EXT,Revenue,CLIENT CONTS EXTERNAL NURSING,576798,152680820,23-Jan-15,"-1,205.80",ANS HOMES LTD,SP0000029
WANDSWORTH COUNCIL,ASC,SOCIAL SERVICES,CUSTOMER & CLIENT RECPTS - EXT,Revenue,CLIENT CONTS EXTERNAL NURSING,578045,152680820,27-Jan-15,-495.80,ANS HOMES LTD,SP0000029
WANDSWORTH COUNCIL,ASC,SOCIAL SERVICES,CUSTOMER & CLIENT RECPTS - EXT,Revenue,RNCC,563387,152684120,07-Jan-15,-205.94,ANS HOMES LTD,SP0000029
WANDSWORTH COUNCIL,ASC,SOCIAL SERVICES,CUSTOMER & CLIENT RECPTS - EXT,Revenue,RNCC,563390,152684120,07-Jan-15,-443.56,ANS HOMES LTD,SP0000029
WANDSWORTH COUNCIL,ASC,SOCIAL SERVICES,CUSTOMER & CLIENT RECPTS - EXT,Revenue,RNCC,563394,152684120,07-Jan-15,-443.56,ANS HOMES LTD,SP0000029
WANDSWORTH COUNCIL,ASC,SOCIAL SERVICES,CUSTOMER & CLIENT RECPTS - EXT,Revenue,RNCC,576793,152684120,23-Jan-15,-443.56,ANS HOMES LTD,SP0000029
WANDSWORTH COUNCIL,ASC,SOCIAL SERVICES,CUSTOMER & CLIENT RECPTS - EXT,Revenue,RNCC,576795,152684120,23-Jan-15,-443.56,ANS HOMES LTD,SP0000029
WANDSWORTH COUNCIL,ASC,SOCIAL SERVICES,CUSTOMER & CLIENT RECPTS - EXT,Revenue,RNCC,576798,152684120,23-Jan-15,-443.56,ANS HOMES LTD,SP0000029
WANDSWORTH COUNCIL,ASC,SOCIAL SERVICES,CUSTOMER & CLIENT RECPTS - EXT,Revenue,RNCC,578045,152684120,27-Jan-15,-443.56,ANS HOMES LTD,SP0000029
WANDSWORTH COUNCIL,ASC,SOCIAL SERVICES,PRIVATE,Revenue,EXTERNAL NURSING CARE,563382,152845310,07-Jan-15,"2,800.00",ANS HOMES LTD,SP0000029
WANDSWORTH COUNCIL,ASC,SOCIAL SERVICES,PRIVATE,Revenue,EXTERNAL NURSING CARE,563383,152845310,07-Jan-15,"2,800.00",ANS HOMES LTD,SP0000029
WANDSWORTH COUNCIL,ASC,SOCIAL SERVICES,PRIVATE,Revenue,EXTERNAL NURSING CARE,563385,152845310,07-Jan-15,"2,800.00",ANS HOMES LTD,SP0000029
WANDSWORTH COUNCIL,ASC,SOCIAL SERVICES,PRIVATE,Revenue,EXTERNAL NURSING CARE,563388,152845310,07-Jan-15,"2,800.00",ANS HOMES LTD,SP0000029
WANDSWORTH COUNCIL,ASC,SOCIAL SERVICES,PRIVATE,Revenue,EXTERNAL NURSING CARE,563391,152845310,07-Jan-15,"2,800.00",ANS HOMES LTD,SP0000029
WANDSWORTH COUNCIL,ASC,SOCIAL SERVICES,PRIVATE,Revenue,EXTERNAL NURSING CARE,563395,152845310,07-Jan-15,"2,438.52",ANS HOMES LTD,SP0000029
WANDSWORTH COUNCIL,ASC,SOCIAL SERVICES,PRIVATE,Revenue,EXTERNAL NURSING CARE,576791,152845310,23-Jan-15,"3,212.20",ANS HOMES LTD,SP0000029
WANDSWORTH COUNCIL,ASC,SOCIAL SERVICES,PRIVATE,Revenue,EXTERNAL NURSING CARE,576792,152845310,23-Jan-15,"3,000.44",ANS HOMES LTD,SP0000029
WANDSWORTH COUNCIL,ASC,SOCIAL SERVICES,PRIVATE,Revenue,EXTERNAL NURSING CARE,576796,152845310,23-Jan-15,"2,800.00",ANS HOMES LTD,SP0000029
WANDSWORTH COUNCIL,ASC,SOCIAL SERVICES,PRIVATE,Revenue,EXTERNAL NURSING CARE,581198,152845310,30-Jan-15,596.69,ANS HOMES LTD,SP0000029
WANDSWORTH COUNCIL,ASC,SOCIAL SERVICES,CUSTOMER & CLIENT RECPTS - EXT,Revenue,CLIENT CONTS EXTERNAL NURSING,563382,152880820,07-Jan-15,-613.24,ANS HOMES LTD,SP0000029
WANDSWORTH COUNCIL,ASC,SOCIAL SERVICES,CUSTOMER & CLIENT RECPTS - EXT,Revenue,CLIENT CONTS EXTERNAL NURSING,563383,152880820,07-Jan-15,-613.24,ANS HOMES LTD,SP0000029
WANDSWORTH COUNCIL,ASC,SOCIAL SERVICES,CUSTOMER & CLIENT RECPTS - EXT,Revenue,CLIENT CONTS EXTERNAL NURSING,563385,152880820,07-Jan-15,-613.24,ANS HOMES LTD,SP0000029
WANDSWORTH COUNCIL,ASC,SOCIAL SERVICES,CUSTOMER & CLIENT RECPTS - EXT,Revenue,CLIENT CONTS EXTERNAL NURSING,563388,152880820,07-Jan-15,-613.24,ANS HOMES LTD,SP0000029
WANDSWORTH COUNCIL,ASC,SOCIAL SERVICES,CUSTOMER & CLIENT RECPTS - EXT,Revenue,CLIENT CONTS EXTERNAL NURSING,563391,152880820,07-Jan-15,-613.24,ANS HOMES LTD,SP0000029
WANDSWORTH COUNCIL,ASC,SOCIAL SERVICES,CUSTOMER & CLIENT RECPTS - EXT,Revenue,CLIENT CONTS EXTERNAL NURSING,563395,152880820,07-Jan-15,-478.09,ANS HOMES LTD,SP0000029
WANDSWORTH COUNCIL,ASC,SOCIAL SERVICES,CUSTOMER & CLIENT RECPTS - EXT,Revenue,CLIENT CONTS EXTERNAL NURSING,576792,152880820,23-Jan-15,-755.36,ANS HOMES LTD,SP0000029
WANDSWORTH COUNCIL,ASC,SOCIAL SERVICES,CUSTOMER & CLIENT RECPTS - EXT,Revenue,CLIENT CONTS EXTERNAL NURSING,576796,152880820,23-Jan-15,-613.24,ANS HOMES LTD,SP0000029
WANDSWORTH COUNCIL,ASC,SOCIAL SERVICES,CUSTOMER & CLIENT RECPTS - EXT,Revenue,RNCC,563382,152884120,07-Jan-15,-443.56,ANS HOMES LTD,SP0000029
WANDSWORTH COUNCIL,ASC,SOCIAL SERVICES,CUSTOMER & CLIENT RECPTS - EXT,Revenue,RNCC,563383,152884120,07-Jan-15,-443.56,ANS HOMES LTD,SP0000029
WANDSWORTH COUNCIL,ASC,SOCIAL SERVICES,CUSTOMER & CLIENT RECPTS - EXT,Revenue,RNCC,563385,152884120,07-Jan-15,-443.56,ANS HOMES LTD,SP0000029
WANDSWORTH COUNCIL,ASC,SOCIAL SERVICES,CUSTOMER & CLIENT RECPTS - EXT,Revenue,RNCC,563388,152884120,07-Jan-15,-443.56,ANS HOMES LTD,SP0000029
WANDSWORTH COUNCIL,ASC,SOCIAL SERVICES,CUSTOMER & CLIENT RECPTS - EXT,Revenue,RNCC,563391,152884120,07-Jan-15,-443.56,ANS HOMES LTD,SP0000029
WANDSWORTH COUNCIL,ASC,SOCIAL SERVICES,CUSTOMER & CLIENT RECPTS - EXT,Revenue,RNCC,563395,152884120,07-Jan-15,-427.72,ANS HOMES LTD,SP0000029
WANDSWORTH COUNCIL,ASC,SOCIAL SERVICES,CUSTOMER & CLIENT RECPTS - EXT,Revenue,RNCC,576791,152884120,23-Jan-15,-443.56,ANS HOMES LTD,SP0000029
WANDSWORTH COUNCIL,ASC,SOCIAL SERVICES,CUSTOMER & CLIENT RECPTS - EXT,Revenue,RNCC,576792,152884120,23-Jan-15,-443.56,ANS HOMES LTD,SP0000029
WANDSWORTH COUNCIL,ASC,SOCIAL SERVICES,CUSTOMER & CLIENT RECPTS - EXT,Revenue,RNCC,576796,152884120,23-Jan-15,-443.56,ANS HOMES LTD,SP0000029
WANDSWORTH COUNCIL,ASC,SOCIAL SERVICES,HEALTH,Revenue,EXT RES S28A OLD LONG STAY,576839,130241110,23-Jan-15,"4,351.72",ANTHONY TOBY HOMES TRUST,SP0000755
WANDSWORTH COUNCIL,ASC,SOCIAL SERVICES,PRIVATE,Revenue,EXTERNAL DAYCARE,575293,130245290,22-Jan-15,"1,204.06",ANTHONY TOBY HOMES TRUST,SP0000755
WANDSWORTH COUNCIL,CES,ENVIRONMENT & COMMUNITY,"EQUIPMENT, FURNITURE & MATS",Revenue,"EQUIPMENT, FURNITURE & MATS",574561,222030000,23-Jan-15,"1,776.37",APOGEE CORPORATION LTD,SP0002390
WANDSWORTH COUNCIL,NGF CES,CHILDREN'S,PRINTING STAT & GEN OFFICE EXP,Revenue,PHOTOCOPYING,20299321,251633380,19-Jan-15,"5,069.90",APOGEE CORPORATION LTD,2002969
WANDSWORTH COUNCIL,NGF CES,CHILDREN'S,PRINTING STAT & GEN OFFICE EXP,Revenue,PHOTOCOPYING,20299322,260833380,19-Jan-15,"2,907.09",APOGEE CORPORATION LTD,2002969
WANDSWORTH COUNCIL,CES,CHILDREN'S,PRIVATE,Revenue,INDEPENDENT - DAY & BOARDING,569517,221445400,16-Jan-15,"2,122.66",APPLE & HONEY NURSERY SCHOOL,SP0002764
WANDSWORTH COUNCIL,CS,ENVIRONMENT & COMMUNITY,SERVICES,Revenue,CONSULTANTS FEES,564484,100534200,08-Jan-15,598.00,ARBTECH CONSULTING LTD,SP0003925
WANDSWORTH COUNCIL,ERS,ENVIRONMENT & COMMUNITY,PRIVATE,Revenue,GENERAL CONTRACT WORK,559514,463045370,08-Jan-15,450.00,ARK ENVIRONMENTAL SERVICES UK LLP,SP0006250
WANDSWORTH COUNCIL,ASC,SOCIAL SERVICES,PRIVATE,Revenue,EXTERNAL HOMECARE,570487,152845300,19-Jan-15,"2,061.48",ARK HOME HEALTHCARE LIMITED,SP0000801
WANDSWORTH COUNCIL,ASC,SOCIAL SERVICES,PRIVATE,Revenue,EXTERNAL HOMECARE,570489,162845300,19-Jan-15,"1,361.37",ARK HOME HEALTHCARE LIMITED,SP0000801
WANDSWORTH COUNCIL,CES,CHILDREN'S,PRIVATE,Revenue,EXTERNAL RESIDENTIAL CARE,566953,376345330,13-Jan-15,"17,289.14",ARNFFIELD CARE LTD,SP0008510
WANDSWORTH COUNCIL,NGF HS,HOUSING,GROUNDS MAINTENANCE,Revenue,GARDEN MAINTENANCE S/C,566094,4YJL12020,12-Jan-15,575.00,ARUN CONSTRUCTION SERVICES LTD,SP0008604
WANDSWORTH COUNCIL,ASC,SOCIAL SERVICES,PRIVATE,Revenue,EXTERNAL RESIDENTIAL CARE,569358,130245330,16-Jan-15,"11,311.23",ASHCROFT CARE SERVICES,SP0000872
WANDSWORTH COUNCIL,ASC,SOCIAL SERVICES,CUSTOMER & CLIENT RECPTS - EXT,Revenue,CL CONT EXTERNAL RESIDENTIAL,569358,130280720,16-Jan-15,-353.62,ASHCROFT CARE SERVICES,SP0000872
WANDSWORTH COUNCIL,ASC,SOCIAL SERVICES,PRIVATE,Revenue,EXTERNAL NURSING CARE,569323,152845310,16-Jan-15,"1,887.56",ASHDOWN HURSING HOME T/A NEWCARE HOMES L,SP0006639
WANDSWORTH COUNCIL,ASC,SOCIAL SERVICES,CUSTOMER & CLIENT RECPTS - EXT,Revenue,RNCC,569323,152884120,16-Jan-15,-443.56,ASHDOWN HURSING HOME T/A NEWCARE HOMES L,SP0006639
WANDSWORTH COUNCIL,ASC,SOCIAL SERVICES,PRIVATE,Revenue,EXTERNAL DAYCARE,569417,130245290,16-Jan-15,914.13,ASHFIELD CARE HOMES LTD,SP0000590
WANDSWORTH COUNCIL,ASC,SOCIAL SERVICES,HEALTH,Revenue,EXT RES S28A OLD LONG STAY,564838,130241110,09-Jan-15,"2,690.16",ASHTON CARE,SP0000695
WANDSWORTH COUNCIL,ASC,SOCIAL SERVICES,CUSTOMER & CLIENT RECPTS - EXT,Revenue,CL CONT EXT RESIDEN S28A 100%,564838,130280680,09-Jan-15,-495.80,ASHTON CARE,SP0000695
WANDSWORTH COUNCIL,ASC,SOCIAL SERVICES,PRIVATE,Revenue,EXTERNAL DAYCARE,570643,152445290,19-Jan-15,693.94,ASIAN ELDERS SUPPORT SCHEME,SP0000190
WANDSWORTH COUNCIL,ASC,SOCIAL SERVICES,PRIVATE,Revenue,EXTERNAL HOMECARE,563018,152845300,06-Jan-15,771.80,ASIAN ELDERS SUPPORT SCHEME,SP0000190
WANDSWORTH COUNCIL,ASC,SOCIAL SERVICES,PRIVATE,Revenue,EXTERNAL HOMECARE,563020,152845300,06-Jan-15,519.96,ASIAN ELDERS SUPPORT SCHEME,SP0000190
WANDSWORTH COUNCIL,ASC,SOCIAL SERVICES,PRIVATE,Revenue,EXTERNAL HOMECARE,567522,152845300,14-Jan-15,817.36,ASIAN ELDERS SUPPORT SCHEME,SP0000190
WANDSWORTH COUNCIL,ASC,SOCIAL SERVICES,PRIVATE,Revenue,EXTERNAL HOMECARE,573620,152845300,21-Jan-15,817.36,ASIAN ELDERS SUPPORT SCHEME,SP0000190
WANDSWORTH COUNCIL,ASC,SOCIAL SERVICES,PRIVATE,Revenue,EXTERNAL HOMECARE,573624,152845300,21-Jan-15,588.98,ASIAN ELDERS SUPPORT SCHEME,SP0000190
WANDSWORTH COUNCIL,ASC,SOCIAL SERVICES,PRIVATE,Revenue,EXTERNAL HOMECARE,573626,152845300,21-Jan-15,742.80,ASIAN ELDERS SUPPORT SCHEME,SP0000190
WANDSWORTH COUNCIL,ASC,SOCIAL SERVICES,PRIVATE,Revenue,EXTERNAL HOMECARE,573629,152845300,21-Jan-15,519.96,ASIAN ELDERS SUPPORT SCHEME,SP0000190
WANDSWORTH COUNCIL,ASC,SOCIAL SERVICES,PRIVATE,Revenue,EXTERNAL HOMECARE,573633,152845300,21-Jan-15,625.04,ASIAN ELDERS SUPPORT SCHEME,SP0000190
WANDSWORTH COUNCIL,ASC,SOCIAL SERVICES,PRIVATE,Revenue,EXTERNAL HOMECARE,580525,152845300,29-Jan-15,817.36,ASIAN ELDERS SUPPORT SCHEME,SP0000190
WANDSWORTH COUNCIL,ASC,SOCIAL SERVICES,PRIVATE,Revenue,EXTERNAL HOMECARE,580528,152845300,29-Jan-15,588.98,ASIAN ELDERS SUPPORT SCHEME,SP0000190
WANDSWORTH COUNCIL,ASC,SOCIAL SERVICES,PRIVATE,Revenue,EXTERNAL HOMECARE,581268,152845300,30-Jan-15,521.64,ASIAN ELDERS SUPPORT SCHEME,SP0000190
WANDSWORTH COUNCIL,ASC,SOCIAL SERVICES,PRIVATE,Revenue,EXTERNAL HOMECARE,580533,162245300,29-Jan-15,903.96,ASIAN ELDERS SUPPORT SCHEME,SP0000190
WANDSWORTH COUNCIL,CES,ENVIRONMENT & COMMUNITY,OTHER AGENCIES,Revenue,THIRD PARTY PYMT - OTH AGENCIE,579057,358943800,30-Jan-15,"1,000.00",ASPIRE TO BE GREAT,SP0008624
WANDSWORTH COUNCIL,HS,SOCIAL SERVICES,OTHER AGENCIES,Revenue,SUPPORTING PEOPLE CONTRACTS,576763,175143590,23-Jan-15,"2,039.04",ASRA GREATER LONDON HOUSING ASSOCIATION,SP0000131
WANDSWORTH COUNCIL,HS,HOUSING,PRIVATE,Revenue,B&B PAYMENTS,20298715,411745080,08-Jan-15,"2,015.00",ASSETGROVE,2018235
WANDSWORTH COUNCIL,HS,HOUSING,PRIVATE,Revenue,B&B PAYMENTS,20298716,411745080,08-Jan-15,"1,550.00",ASSETGROVE,2018235
WANDSWORTH COUNCIL,HS,HOUSING,PRIVATE,Revenue,B&B PAYMENTS,20298717,411745080,08-Jan-15,"1,395.00",ASSETGROVE,2018235
WANDSWORTH COUNCIL,HS,HOUSING,PRIVATE,Revenue,B&B PAYMENTS,20298718,411745080,08-Jan-15,"2,015.00",ASSETGROVE,2018235
WANDSWORTH COUNCIL,HS,HOUSING,PRIVATE,Revenue,B&B PAYMENTS,20298719,411745080,08-Jan-15,"1,281.00",ASSETGROVE,2018235
WANDSWORTH COUNCIL,HS,HOUSING,PRIVATE,Revenue,B&B PAYMENTS,20298720,411745080,08-Jan-15,"1,176.00",ASSETGROVE,2018235
WANDSWORTH COUNCIL,HS,HOUSING,PRIVATE,Revenue,B&B PAYMENTS,20298721,411745080,08-Jan-15,600.00,ASSETGROVE,2018235
WANDSWORTH COUNCIL,HS,HOUSING,PRIVATE,Revenue,B&B PAYMENTS,20298722,411745080,08-Jan-15,"2,015.00",ASSETGROVE,2018235
WANDSWORTH COUNCIL,ASC,HOUSING,PRIVATE,Revenue,B&B-OTHER DESTITUTE,20298914,411945090,12-Jan-15,"1,650.00",ASSETGROVE,2018235
WANDSWORTH COUNCIL,ASC,HOUSING,PRIVATE,Revenue,B&B-OTHER DESTITUTE,20298915,411945090,12-Jan-15,"1,705.00",ASSETGROVE,2018235
WANDSWORTH COUNCIL,NGF CS,ADMINISTRATION,OTHER AGENCIES,Revenue,DISBURSEMENTS,20299160,120743250,14-Jan-15,"1,807.19",ASSOCIATED EMPLOYERS LTD,2001547
WANDSWORTH COUNCIL,NGF CS,ADMINISTRATION,OTHER AGENCIES,Revenue,DISBURSEMENTS,20299161,120743250,14-Jan-15,"1,807.19",ASSOCIATED EMPLOYERS LTD,2001547
WANDSWORTH COUNCIL,ASC,SOCIAL SERVICES,PRIVATE,Revenue,EXTERNAL RESIDENTIAL CARE,562954,142545330,06-Jan-15,"3,675.67",ASSURANCE CARE SERVICES LTD,SP0006652
WANDSWORTH COUNCIL,ASC,SOCIAL SERVICES,PRIVATE,Revenue,EXTERNAL RESIDENTIAL CARE,562955,142545330,06-Jan-15,"3,764.33",ASSURANCE CARE SERVICES LTD,SP0006652
WANDSWORTH COUNCIL,ASC,SOCIAL SERVICES,PRIVATE,Revenue,EXTERNAL RESIDENTIAL CARE,569296,142045330,16-Jan-15,"2,490.50",ASTRA HOMES LTD,SP0000374
WANDSWORTH COUNCIL,ASC,SOCIAL SERVICES,PRIVATE,Revenue,EXTERNAL RESIDENTIAL CARE,569297,142045330,16-Jan-15,"2,490.50",ASTRA HOMES LTD,SP0000374
WANDSWORTH COUNCIL,ASC,SOCIAL SERVICES,PRIVATE,Revenue,EXTERNAL RESIDENTIAL CARE,569298,142045330,16-Jan-15,"3,238.21",ASTRA HOMES LTD,SP0000374
WANDSWORTH COUNCIL,ASC,SOCIAL SERVICES,VOL ASS,Revenue,SUPPORTED HOUSING PROGRAMME,569291,142048030,16-Jan-15,"1,064.19",ASTRA HOMES LTD,SP0000374
WANDSWORTH COUNCIL,ASC,SOCIAL SERVICES,CUSTOMER & CLIENT RECPTS - EXT,Revenue,CL CONT EXTERNAL RESIDENTIAL,569298,142080720,16-Jan-15,-991.60,ASTRA HOMES LTD,SP0000374
WANDSWORTH COUNCIL,ASC,SOCIAL SERVICES,PRIVATE,Revenue,EXTERNAL RESIDENTIAL CARE,569299,142545330,16-Jan-15,"3,059.88",ASTRA HOMES LTD,SP0000374
WANDSWORTH COUNCIL,ASC,SOCIAL SERVICES,PRIVATE,Revenue,EXTERNAL RESIDENTIAL CARE,569295,142645330,16-Jan-15,"2,490.49",ASTRA HOMES LTD,SP0000374
WANDSWORTH COUNCIL,ASC,SOCIAL SERVICES,CUSTOMER & CLIENT RECPTS - EXT,Revenue,CL CONT EXTERNAL RESIDENTIAL,569295,142680720,16-Jan-15,-348.97,ASTRA HOMES LTD,SP0000374
WANDSWORTH COUNCIL,CS,ENVIRONMENT & COMMUNITY,SERVICES,Revenue,CONSULTANTS FEES,571559,100534200,21-Jan-15,"14,677.50",ATKINS LIMITED,SP0008895
WANDSWORTH COUNCIL,BS,ENVIRONMENT & COMMUNITY,COUNCIL DWELLINGS,CAPITAL,HRA REPAIRS & IMPROVEMENTS,571557,7003C001J6295C,20-Jan-15,"60,465.00",ATKINS LIMITED,SP0008895
WANDSWORTH COUNCIL,BS,ENVIRONMENT & COMMUNITY,COUNCIL DWELLINGS,CAPITAL,HRA REPAIRS & IMPROVEMENTS,571560,7006C001J6708F,20-Jan-15,"7,595.00",ATKINS LIMITED,SP0008895
WANDSWORTH COUNCIL,NGF HS,HOUSING,"REPAIRS, ALTERATIONS & MTCE",Revenue,GENERAL INTERNAL REPAIRS,565136,4WMM49210,09-Jan-15,595.00,ATLAS TIMBER PRESERVATION LTD,SP0000206
WANDSWORTH COUNCIL,NGF CES,ENVIRONMENT & COMMUNITY,CUSTOMER & CLIENT RECPTS - EXT,Revenue,FEES & CHARGES - OTHER SCHOOLS,564508,260081810,08-Jan-15,525.00,ATOMWIDE,SP0003075
WANDSWORTH COUNCIL,NGF CES,ENVIRONMENT & COMMUNITY,CUSTOMER & CLIENT RECPTS - EXT,Revenue,FEES & CHARGES - OTHER SCHOOLS,564508,260081810,08-Jan-15,150.00,ATOMWIDE,SP0003075
WANDSWORTH COUNCIL,NGF HTS,ENVIRONMENT & COMMUNITY,DIRECT,Revenue,PURCHASE OF VEHICLE PARTS,574749,474120250,22-Jan-15,420.85,ATS EUROMASTER LTD,SP0003284
WANDSWORTH COUNCIL,NGF HTS,ENVIRONMENT & COMMUNITY,SERVICES,Revenue,SUBCONTRACTORS,579624,474135080,29-Jan-15,583.51,ATS EUROMASTER LTD,SP0003284
WANDSWORTH COUNCIL,NGF HTS,ENVIRONMENT & COMMUNITY,DIRECT,Revenue,PURCHASE OF VEHICLE PARTS,579473,474120250,29-Jan-15,595.00,AUTOQUIP,SP0002092
WANDSWORTH COUNCIL,NGF HTS,ENVIRONMENT & COMMUNITY,DIRECT,Revenue,PURCHASE OF VEHICLE PARTS,579473,474120250,29-Jan-15,225.00,AUTOQUIP,SP0002092
WANDSWORTH COUNCIL,NGF HTS,ENVIRONMENT & COMMUNITY,DIRECT,Revenue,PURCHASE OF VEHICLE PARTS,579473,474120250,29-Jan-15,510.00,AUTOQUIP,SP0002092
WANDSWORTH COUNCIL,NGF HTS,ENVIRONMENT & COMMUNITY,SERVICES,Revenue,SUBCONTRACTORS,568418,474135080,14-Jan-15,"1,530.00",AUTOTECH RECRUIT LTD,SP0008383
WANDSWORTH COUNCIL,NGF HTS,ENVIRONMENT & COMMUNITY,SERVICES,Revenue,SUBCONTRACTORS,568419,474135080,14-Jan-15,"1,700.00",AUTOTECH RECRUIT LTD,SP0008383
WANDSWORTH COUNCIL,NGF HTS,ENVIRONMENT & COMMUNITY,SERVICES,Revenue,SUBCONTRACTORS,568420,474135080,14-Jan-15,"1,700.00",AUTOTECH RECRUIT LTD,SP0008383
WANDSWORTH COUNCIL,NGF HTS,ENVIRONMENT & COMMUNITY,SERVICES,Revenue,SUBCONTRACTORS,574751,474135080,22-Jan-15,850.00,AUTOTECH RECRUIT LTD,SP0008383
WANDSWORTH COUNCIL,NGF HTS,ENVIRONMENT & COMMUNITY,SERVICES,Revenue,SUBCONTRACTORS,574752,474135080,22-Jan-15,680.00,AUTOTECH RECRUIT LTD,SP0008383
WANDSWORTH COUNCIL,NGF HTS,ENVIRONMENT & COMMUNITY,SERVICES,Revenue,SUBCONTRACTORS,579634,474135080,29-Jan-15,"1,700.00",AUTOTECH RECRUIT LTD,SP0008383
WANDSWORTH COUNCIL,NGF HTS,ENVIRONMENT & COMMUNITY,SERVICES,Revenue,SUBCONTRACTORS,579635,474135080,29-Jan-15,"1,530.00",AUTOTECH RECRUIT LTD,SP0008383
WANDSWORTH COUNCIL,CS,ENVIRONMENT & COMMUNITY,SERVICES,Revenue,CONSULTANTS FEES,566537,100534200,14-Jan-15,"15,680.00",AVR LONDON LTD,SP0008800
WANDSWORTH COUNCIL,NGF HS,HOUSING,"REPAIRS, ALTERATIONS & MTCE",Revenue,GENERAL INTERNAL REPAIRS,577850,4VDA49210,26-Jan-15,"1,190.00",B & B WINDOWS & METALWORK LTD,SP0001649
WANDSWORTH COUNCIL,NGF HS,HOUSING,"REPAIRS, ALTERATIONS & MTCE",Revenue,PVCU WINDOWS,576498,4VKT49330,23-Jan-15,437.00,B & B WINDOWS & METALWORK LTD,SP0001649
WANDSWORTH COUNCIL,NGF HS,HOUSING,"REPAIRS, ALTERATIONS & MTCE",Revenue,PVCU WINDOWS,580039,4VV349330,29-Jan-15,"1,175.00",B & B WINDOWS & METALWORK LTD,SP0001649
WANDSWORTH COUNCIL,NGF HS,HOUSING,"REPAIRS, ALTERATIONS & MTCE",Revenue,PVCU WINDOWS,576287,4VVT49330,23-Jan-15,432.00,B & B WINDOWS & METALWORK LTD,SP0001649
WANDSWORTH COUNCIL,NGF HS,HOUSING,"REPAIRS, ALTERATIONS & MTCE",Revenue,PVCU WINDOWS,565315,4WEH49330,09-Jan-15,465.00,B & B WINDOWS & METALWORK LTD,SP0001649
WANDSWORTH COUNCIL,ASC,SOCIAL SERVICES,PRIVATE,Revenue,EXTERNAL RESIDENTIAL CARE,574787,152245330,22-Jan-15,"2,460.07",B&M HEMEL LLP,SP0001565
WANDSWORTH COUNCIL,NGF HS,ENVIRONMENT & COMMUNITY,"EQUIPMENT, FURNITURE & MATS",Revenue,"EQUIPMENT, FURNITURE & MATS",579467,470130000,29-Jan-15,539.35,B.E.W. LTD,SP0002749
WANDSWORTH COUNCIL,NGF HTS,ENVIRONMENT & COMMUNITY,BALANCES,Revenue,BALANCE B/F,579467,472369960,29-Jan-15,-20.23,B.E.W. LTD,SP0002749
WANDSWORTH COUNCIL,NGF CS,ENVIRONMENT & COMMUNITY,SERVICES,Revenue,SERVICES - GENERAL,569168,127234870,15-Jan-15,"5,997.50",BACKUP TECHNOLOGY LTD,SP0003672
WANDSWORTH COUNCIL,NGF CS,ENVIRONMENT & COMMUNITY,COMMUNICATIONS & COMP,Revenue,IT SUPPORT SERVICES SLA,561133,127236360,05-Jan-15,"6,782.50",BACKUP TECHNOLOGY LTD,SP0003672
WANDSWORTH COUNCIL,NGF CS,ENVIRONMENT & COMMUNITY,COMMUNICATIONS & COMP,Revenue,IT SUPPORT SERVICES SLA,561134,127236360,05-Jan-15,"7,032.50",BACKUP TECHNOLOGY LTD,SP0003672
WANDSWORTH COUNCIL,NGF CS,ENVIRONMENT & COMMUNITY,COMMUNICATIONS & COMP,Revenue,IT SUPPORT SERVICES SLA,569167,127236360,15-Jan-15,"5,997.50",BACKUP TECHNOLOGY LTD,SP0003672
WANDSWORTH COUNCIL,BS,CHILDREN'S,OTHER LAND & BUILDINGS,CAPITAL,SCHOOLS PRIMARY BLDNGS - OLAB,20298766,7003C014J1365C,07-Jan-15,"5,988.00",BAILY GARNER,2007026
WANDSWORTH COUNCIL,BS,CHILDREN'S,OTHER LAND & BUILDINGS,CAPITAL,SCHOOLS PRIMARY BLDNGS - OLAB,20298766,7003C014J1365C,07-Jan-15,"1,083.33",BAILY GARNER,2007026
WANDSWORTH COUNCIL,BS,CHILDREN'S,OTHER LAND & BUILDINGS,CAPITAL,SCHOOLS PRIMARY BLDNGS - OLAB,20298766,7003C014J1365C,07-Jan-15,"7,762.15",BAILY GARNER,2007026
WANDSWORTH COUNCIL,ASC,SOCIAL SERVICES,PRIVATE,Revenue,EXTERNAL RESIDENTIAL CARE,566660,152645330,13-Jan-15,"1,407.26",BALCOMBE CARE HOMES LTD,SP0001467
WANDSWORTH COUNCIL,ASC,SOCIAL SERVICES,CUSTOMER & CLIENT RECPTS - EXT,Revenue,CL CONT EXTERNAL RESIDENTIAL,566660,152680720,13-Jan-15,-301.02,BALCOMBE CARE HOMES LTD,SP0001467
WANDSWORTH COUNCIL,CS,ENVIRONMENT & COMMUNITY,HEALTH,Revenue,THIRD PARTY PYMT - HEALTH,575855,128041130,23-Jan-15,"6,488.00",BALHAM PARK SURGERY,SP0000925
WANDSWORTH COUNCIL,HS,ENVIRONMENT & COMMUNITY,PRINTING STAT & GEN OFFICE EXP,Revenue,PRINTING AND STATIONERY,562505,382133420,07-Jan-15,"1,306.76",BANNER MANAGED COMMUNICATION,SP0003555
WANDSWORTH COUNCIL,HS,ENVIRONMENT & COMMUNITY,PRINTING STAT & GEN OFFICE EXP,Revenue,PRINTING AND STATIONERY,562506,382133420,07-Jan-15,"1,661.70",BANNER MANAGED COMMUNICATION,SP0003555
WANDSWORTH COUNCIL,NGF CS,ENVIRONMENT & COMMUNITY,PRINTING STAT & GEN OFFICE EXP,Revenue,PRINTING AND STATIONERY,562557,390833420,07-Jan-15,597.25,BANNER MANAGED COMMUNICATION,SP0003555
WANDSWORTH COUNCIL,HTS,ENVIRONMENT & COMMUNITY,PRINTING STAT & GEN OFFICE EXP,Revenue,PRINTING AND STATIONERY,562565,456033420,13-Jan-15,"3,258.24",BANNER MANAGED COMMUNICATION,SP0003555
WANDSWORTH COUNCIL,CES,CHILDREN'S,OTHER AGENCIES,Revenue,EXTERNAL PERMANENCY,580609,360743340,29-Jan-15,"3,141.90",BANYA FAMILY PLACEMENT AGENCY,SP0000710
WANDSWORTH COUNCIL,NGF ASC,SOCIAL SERVICES,"EQUIPMENT, FURNITURE & MATS",Revenue,PURCHASE OF EQUIP- SOCIAL CARE,20298891,190030500,09-Jan-15,125.97,BARKERS CHEMIST LTD (FMT36),2015456
WANDSWORTH COUNCIL,NGF ASC,SOCIAL SERVICES,SERVICES,Revenue,ADAPTATIONS AT HOME- PRIVATE,20298891,190035050,09-Jan-15,79.43,BARKERS CHEMIST LTD (FMT36),2015456
WANDSWORTH COUNCIL,NGF ASC,SOCIAL SERVICES,"EQUIPMENT, FURNITURE & MATS",Revenue,PURCHASE OF EQUIP- SOCIAL CARE,20298891,190430500,09-Jan-15,14.00,BARKERS CHEMIST LTD (FMT36),2015456
WANDSWORTH COUNCIL,NGF ASC,SOCIAL SERVICES,SERVICES,Revenue,ADAPTATIONS AT HOME- PRIVATE,20298891,190435050,09-Jan-15,3.10,BARKERS CHEMIST LTD (FMT36),2015456
WANDSWORTH COUNCIL,NGF ASC,SOCIAL SERVICES,"EQUIPMENT, FURNITURE & MATS",Revenue,PURCHASE OF EQUIP- SOCIAL CARE,20298891,190530500,09-Jan-15,122.77,BARKERS CHEMIST LTD (FMT36),2015456
WANDSWORTH COUNCIL,NGF ASC,SOCIAL SERVICES,"EQUIPMENT, FURNITURE & MATS",Revenue,PURCHASE OF EQUIP- SOCIAL CARE,20298891,191030500,09-Jan-15,80.50,BARKERS CHEMIST LTD (FMT36),2015456
WANDSWORTH COUNCIL,NGF ASC,SOCIAL SERVICES,SERVICES,Revenue,ADAPTATIONS AT HOME- PRIVATE,20298891,191035050,09-Jan-15,31.54,BARKERS CHEMIST LTD (FMT36),2015456
WANDSWORTH COUNCIL,NGF HTS,ENVIRONMENT & COMMUNITY,SERVICES,Revenue,SUBCONTRACTORS,579525,474135080,29-Jan-15,"1,486.31",BARRETTS  OF CANTERBURY LTD,SP0006418
WANDSWORTH COUNCIL,NGF CS,FINANCE,"REPAIRS, ALTERATIONS & MTCE",Revenue,"REPS, ALTS & MTCE-BUILDINGS",576114,47611000L0808M,23-Jan-15,"3,210.00",BARRY TOWNLEY T/A TOWNLEY MASONRY SERVIC,SP0001258
WANDSWORTH COUNCIL,NGF CS,FINANCE,"REPAIRS, ALTERATIONS & MTCE",Revenue,"REPS, ALTS & MTCE-BUILDINGS",576114,47611000L0808M,23-Jan-15,"7,110.00",BARRY TOWNLEY T/A TOWNLEY MASONRY SERVIC,SP0001258
WANDSWORTH COUNCIL,BS,ENVIRONMENT & COMMUNITY,"HSG RENTS, HEATING & HOT WATER",Revenue,BATTERSEA FIELDS RMO,564647,6017B2670,09-Jan-15,"157,369.53",BATTERSEA FIELDS RESIDENTS ORGANISATION,SP0002018
WANDSWORTH COUNCIL,CS,ENVIRONMENT & COMMUNITY,HEALTH,Revenue,THIRD PARTY PYMT - HEALTH,571555,128041130,21-Jan-15,"1,382.83",BATTERSEA RISE GROUP PRACTICE H85049,SP0007572
WANDSWORTH COUNCIL,CS,ENVIRONMENT & COMMUNITY,HEALTH,Revenue,THIRD PARTY PYMT - HEALTH,575882,128041130,23-Jan-15,"1,932.08",BATTERSEA RISE GROUP PRACTICE H85049,SP0007572
WANDSWORTH COUNCIL,CES,CHILDREN'S,HIRE,Revenue,HIRE - TRANSPORT,20298826,301320410,09-Jan-15,"2,584.24",BECKETT CORPORATION LTD T/A TINA�S CARS,2005608
WANDSWORTH COUNCIL,CES,CHILDREN'S,HIRE,Revenue,HIRE - TRANSPORT,20298827,301320410,09-Jan-15,"2,948.00",BECKETT CORPORATION LTD T/A TINA�S CARS,2005608
WANDSWORTH COUNCIL,CES,CHILDREN'S,HIRE,Revenue,HIRE - TRANSPORT,20299503,301320410,22-Jan-15,"2,114.12",BECKETT CORPORATION LTD T/A TINA�S CARS,2005608
WANDSWORTH COUNCIL,CES,CHILDREN'S,HIRE,Revenue,HIRE - TRANSPORT,20299504,301320410,22-Jan-15,"2,241.00",BECKETT CORPORATION LTD T/A TINA�S CARS,2005608
WANDSWORTH COUNCIL,ASC,SOCIAL SERVICES,HIRE,Revenue,HIRE - TRANSPORT,581321,130020410,30-Jan-15,"1,305.80",BECKETT CORPORATION LTD T/A TINAS CARS,SP0000729
WANDSWORTH COUNCIL,ASC,SOCIAL SERVICES,HIRE,Revenue,HIRE - TRANSPORT,581316,130220410,30-Jan-15,520.41,BECKETT CORPORATION LTD T/A TINAS CARS,SP0000729
WANDSWORTH COUNCIL,ASC,SOCIAL SERVICES,HIRE,Revenue,HIRE - TRANSPORT,581319,130220410,30-Jan-15,567.72,BECKETT CORPORATION LTD T/A TINAS CARS,SP0000729
WANDSWORTH COUNCIL,ASC,SOCIAL SERVICES,HIRE,Revenue,HIRE - TRANSPORT,581327,130220410,30-Jan-15,756.15,BECKETT CORPORATION LTD T/A TINAS CARS,SP0000729
WANDSWORTH COUNCIL,ASC,SOCIAL SERVICES,HIRE,Revenue,HIRE - TRANSPORT,581329,130220410,30-Jan-15,770.00,BECKETT CORPORATION LTD T/A TINAS CARS,SP0000729
WANDSWORTH COUNCIL,ASC,SOCIAL SERVICES,HIRE,Revenue,HIRE - TRANSPORT,581330,130220410,30-Jan-15,590.78,BECKETT CORPORATION LTD T/A TINAS CARS,SP0000729
WANDSWORTH COUNCIL,ASC,SOCIAL SERVICES,HIRE,Revenue,HIRE - TRANSPORT,581333,130220410,30-Jan-15,931.50,BECKETT CORPORATION LTD T/A TINAS CARS,SP0000729
WANDSWORTH COUNCIL,ASC,SOCIAL SERVICES,HIRE,Revenue,HIRE - TRANSPORT,581334,130220410,30-Jan-15,454.86,BECKETT CORPORATION LTD T/A TINAS CARS,SP0000729
WANDSWORTH COUNCIL,ASC,SOCIAL SERVICES,HIRE,Revenue,HIRE - TRANSPORT,581335,130220410,30-Jan-15,454.86,BECKETT CORPORATION LTD T/A TINAS CARS,SP0000729
WANDSWORTH COUNCIL,ASC,SOCIAL SERVICES,HIRE,Revenue,NEW TRANSPORT CONTRACT,581322,130220430,30-Jan-15,"1,513.00",BECKETT CORPORATION LTD T/A TINAS CARS,SP0000729
WANDSWORTH COUNCIL,CES,CHILDREN'S,HIRE,Revenue,HIRE - TRANSPORT,562134,367020410,05-Jan-15,"1,807.02",BECKETT CORPORATION LTD T/A TINAS CARS,SP0000729
WANDSWORTH COUNCIL,CES,CHILDREN'S,HIRE,Revenue,HIRE - TRANSPORT,562135,367020410,05-Jan-15,"2,380.80",BECKETT CORPORATION LTD T/A TINAS CARS,SP0000729
WANDSWORTH COUNCIL,CES,CHILDREN'S,HIRE,Revenue,HIRE - TRANSPORT,562136,367020410,05-Jan-15,"1,540.00",BECKETT CORPORATION LTD T/A TINAS CARS,SP0000729
WANDSWORTH COUNCIL,CES,CHILDREN'S,HIRE,Revenue,HIRE - TRANSPORT,563147,367020410,06-Jan-15,"2,380.80",BECKETT CORPORATION LTD T/A TINAS CARS,SP0000729
WANDSWORTH COUNCIL,CS,ENVIRONMENT & COMMUNITY,HEALTH,Revenue,THIRD PARTY PYMT - HEALTH,575846,128041130,23-Jan-15,"1,976.94",BEDFORD HILL FAMILY PRACTICE H85009,SP0002543
WANDSWORTH COUNCIL,ASC,SOCIAL SERVICES,PRIVATE,Revenue,EXTERNAL RESIDENTIAL CARE,578321,130245330,27-Jan-15,"3,970.39",BEECH LODGE,SP0000807
WANDSWORTH COUNCIL,ASC,SOCIAL SERVICES,PRIVATE,Revenue,EXTERNAL RESIDENTIAL CARE,578322,130245330,27-Jan-15,"3,970.39",BEECH LODGE,SP0000807
WANDSWORTH COUNCIL,ASC,SOCIAL SERVICES,PRIVATE,Revenue,EXTERNAL RESIDENTIAL CARE,578323,130245330,27-Jan-15,"3,970.39",BEECH LODGE,SP0000807
WANDSWORTH COUNCIL,ASC,SOCIAL SERVICES,CUSTOMER & CLIENT RECPTS - EXT,Revenue,CL CONT EXTERNAL RESIDENTIAL,578321,130280720,27-Jan-15,-353.62,BEECH LODGE,SP0000807
WANDSWORTH COUNCIL,ASC,SOCIAL SERVICES,CUSTOMER & CLIENT RECPTS - EXT,Revenue,CL CONT EXTERNAL RESIDENTIAL,578322,130280720,27-Jan-15,-353.62,BEECH LODGE,SP0000807
WANDSWORTH COUNCIL,ASC,SOCIAL SERVICES,CUSTOMER & CLIENT RECPTS - EXT,Revenue,CL CONT EXTERNAL RESIDENTIAL,578323,130280720,27-Jan-15,-353.62,BEECH LODGE,SP0000807
WANDSWORTH COUNCIL,ASC,SOCIAL SERVICES,PRIVATE,Revenue,EXTERNAL RESIDENTIAL CARE,564811,152245330,09-Jan-15,"1,642.70",BEECHWOOD HOUSE REST HOME,SP0008833
WANDSWORTH COUNCIL,ASC,SOCIAL SERVICES,CUSTOMER & CLIENT RECPTS - EXT,Revenue,CL CONT EXTERNAL RESIDENTIAL,564811,152280720,09-Jan-15,"-1,041.94",BEECHWOOD HOUSE REST HOME,SP0008833
WANDSWORTH COUNCIL,CES,CHILDREN'S,"EQUIPMENT, FURNITURE & MATS",Revenue,"EQUIPMENT, FURNITURE & MATS",7014925,243030000,06-Jan-15,630.00,Belgrave Primary,2991000
WANDSWORTH COUNCIL,NGF HS,ENVIRONMENT & COMMUNITY,"EQUIPMENT, FURNITURE & MATS",Revenue,"EQUIPMENT, FURNITURE & MATS",568149,470130000,14-Jan-15,6.66,BELTON & SLADE,SP0000699
WANDSWORTH COUNCIL,NGF HS,ENVIRONMENT & COMMUNITY,"EQUIPMENT, FURNITURE & MATS",Revenue,"EQUIPMENT, FURNITURE & MATS",568149,470130000,14-Jan-15,54.46,BELTON & SLADE,SP0000699
WANDSWORTH COUNCIL,NGF HS,ENVIRONMENT & COMMUNITY,"EQUIPMENT, FURNITURE & MATS",Revenue,"EQUIPMENT, FURNITURE & MATS",579527,470130000,29-Jan-15,31.50,BELTON & SLADE,SP0000699
WANDSWORTH COUNCIL,NGF HS,ENVIRONMENT & COMMUNITY,"EQUIPMENT, FURNITURE & MATS",Revenue,"EQUIPMENT, FURNITURE & MATS",568149,470230000,14-Jan-15,611.64,BELTON & SLADE,SP0000699
WANDSWORTH COUNCIL,NGF HS,ENVIRONMENT & COMMUNITY,"EQUIPMENT, FURNITURE & MATS",Revenue,"EQUIPMENT, FURNITURE & MATS",568149,470230000,14-Jan-15,25.37,BELTON & SLADE,SP0000699
WANDSWORTH COUNCIL,NGF HS,ENVIRONMENT & COMMUNITY,"EQUIPMENT, FURNITURE & MATS",Revenue,"EQUIPMENT, FURNITURE & MATS",568149,470230000,14-Jan-15,19.80,BELTON & SLADE,SP0000699
WANDSWORTH COUNCIL,NGF HS,ENVIRONMENT & COMMUNITY,"EQUIPMENT, FURNITURE & MATS",Revenue,"EQUIPMENT, FURNITURE & MATS",568149,470230000,14-Jan-15,9.78,BELTON & SLADE,SP0000699
WANDSWORTH COUNCIL,NGF HS,ENVIRONMENT & COMMUNITY,"EQUIPMENT, FURNITURE & MATS",Revenue,"EQUIPMENT, FURNITURE & MATS",568149,470230000,14-Jan-15,230.35,BELTON & SLADE,SP0000699
WANDSWORTH COUNCIL,NGF HS,ENVIRONMENT & COMMUNITY,"EQUIPMENT, FURNITURE & MATS",Revenue,"EQUIPMENT, FURNITURE & MATS",579527,470230000,29-Jan-15,74.89,BELTON & SLADE,SP0000699
WANDSWORTH COUNCIL,NGF HS,ENVIRONMENT & COMMUNITY,"EQUIPMENT, FURNITURE & MATS",Revenue,"EQUIPMENT, FURNITURE & MATS",579527,470230000,29-Jan-15,174.86,BELTON & SLADE,SP0000699
WANDSWORTH COUNCIL,NGF HS,ENVIRONMENT & COMMUNITY,"EQUIPMENT, FURNITURE & MATS",Revenue,"EQUIPMENT, FURNITURE & MATS",579527,470230000,29-Jan-15,54.45,BELTON & SLADE,SP0000699
WANDSWORTH COUNCIL,NGF HS,ENVIRONMENT & COMMUNITY,"EQUIPMENT, FURNITURE & MATS",Revenue,"EQUIPMENT, FURNITURE & MATS",579527,470230000,29-Jan-15,38.54,BELTON & SLADE,SP0000699
WANDSWORTH COUNCIL,NGF HS,ENVIRONMENT & COMMUNITY,"EQUIPMENT, FURNITURE & MATS",Revenue,"EQUIPMENT, FURNITURE & MATS",579527,470230000,29-Jan-15,51.85,BELTON & SLADE,SP0000699
WANDSWORTH COUNCIL,NGF HTS,ENVIRONMENT & COMMUNITY,"EQUIPMENT, FURNITURE & MATS",Revenue,"EQUIPMENT, FURNITURE & MATS",568149,471030000,14-Jan-15,13.71,BELTON & SLADE,SP0000699
WANDSWORTH COUNCIL,NGF HTS,ENVIRONMENT & COMMUNITY,"EQUIPMENT, FURNITURE & MATS",Revenue,"EQUIPMENT, FURNITURE & MATS",568149,471030000,14-Jan-15,7.24,BELTON & SLADE,SP0000699
WANDSWORTH COUNCIL,NGF HTS,ENVIRONMENT & COMMUNITY,"EQUIPMENT, FURNITURE & MATS",Revenue,"EQUIPMENT, FURNITURE & MATS",568149,471030000,14-Jan-15,19.73,BELTON & SLADE,SP0000699
WANDSWORTH COUNCIL,NGF HTS,ENVIRONMENT & COMMUNITY,"EQUIPMENT, FURNITURE & MATS",Revenue,"EQUIPMENT, FURNITURE & MATS",568149,471030000,14-Jan-15,67.92,BELTON & SLADE,SP0000699
WANDSWORTH COUNCIL,NGF HTS,ENVIRONMENT & COMMUNITY,"EQUIPMENT, FURNITURE & MATS",Revenue,"EQUIPMENT, FURNITURE & MATS",579527,471030000,29-Jan-15,18.67,BELTON & SLADE,SP0000699
WANDSWORTH COUNCIL,NGF HTS,ENVIRONMENT & COMMUNITY,"EQUIPMENT, FURNITURE & MATS",Revenue,"EQUIPMENT, FURNITURE & MATS",579527,471030000,29-Jan-15,9.17,BELTON & SLADE,SP0000699
WANDSWORTH COUNCIL,NGF HTS,ENVIRONMENT & COMMUNITY,"EQUIPMENT, FURNITURE & MATS",Revenue,"EQUIPMENT, FURNITURE & MATS",579527,471030000,29-Jan-15,29.65,BELTON & SLADE,SP0000699
WANDSWORTH COUNCIL,HTS,ENVIRONMENT & COMMUNITY,"EQUIPMENT, FURNITURE & MATS",Revenue,PAY & DISPLAY MACHINE MTCE,574551,455130270,26-Jan-15,"4,992.00",BEMROSEBOOTH LTD,SP0003161
WANDSWORTH COUNCIL,HTS,ENVIRONMENT & COMMUNITY,"EQUIPMENT, FURNITURE & MATS",Revenue,PAY & DISPLAY MACHINE MTCE,574551,455130270,26-Jan-15,45.00,BEMROSEBOOTH LTD,SP0003161
WANDSWORTH COUNCIL,CES,CHILDREN'S,OTH LA,Revenue,SPECIAL SCHOOL ADD SUPPORT,20299028,221444560,23-Jan-15,"11,712.00",BEORMUND PRIMARY SCHOOL,2018323
WANDSWORTH COUNCIL,NGF HS,ENVIRONMENT & COMMUNITY,"EQUIPMENT, FURNITURE & MATS",Revenue,"EQUIPMENT, FURNITURE & MATS",574728,470130000,22-Jan-15,35.00,BERNARD EXTON (SALES) LTD,SP0002169
WANDSWORTH COUNCIL,NGF HS,ENVIRONMENT & COMMUNITY,"EQUIPMENT, FURNITURE & MATS",Revenue,"EQUIPMENT, FURNITURE & MATS",574728,470130000,22-Jan-15,94.00,BERNARD EXTON (SALES) LTD,SP0002169
WANDSWORTH COUNCIL,NGF HS,ENVIRONMENT & COMMUNITY,"EQUIPMENT, FURNITURE & MATS",Revenue,"EQUIPMENT, FURNITURE & MATS",574728,470130000,22-Jan-15,35.00,BERNARD EXTON (SALES) LTD,SP0002169
WANDSWORTH COUNCIL,NGF HS,ENVIRONMENT & COMMUNITY,"EQUIPMENT, FURNITURE & MATS",Revenue,"EQUIPMENT, FURNITURE & MATS",574728,470130000,22-Jan-15,9.90,BERNARD EXTON (SALES) LTD,SP0002169
WANDSWORTH COUNCIL,NGF HS,ENVIRONMENT & COMMUNITY,"EQUIPMENT, FURNITURE & MATS",Revenue,"EQUIPMENT, FURNITURE & MATS",574728,470130000,22-Jan-15,4.95,BERNARD EXTON (SALES) LTD,SP0002169
WANDSWORTH COUNCIL,NGF HS,ENVIRONMENT & COMMUNITY,"EQUIPMENT, FURNITURE & MATS",Revenue,"EQUIPMENT, FURNITURE & MATS",574728,470130000,22-Jan-15,86.12,BERNARD EXTON (SALES) LTD,SP0002169
WANDSWORTH COUNCIL,NGF HS,ENVIRONMENT & COMMUNITY,"EQUIPMENT, FURNITURE & MATS",Revenue,"EQUIPMENT, FURNITURE & MATS",574728,470130000,22-Jan-15,196.00,BERNARD EXTON (SALES) LTD,SP0002169
WANDSWORTH COUNCIL,NGF HS,ENVIRONMENT & COMMUNITY,"EQUIPMENT, FURNITURE & MATS",Revenue,"EQUIPMENT, FURNITURE & MATS",574728,470130000,22-Jan-15,18.00,BERNARD EXTON (SALES) LTD,SP0002169
WANDSWORTH COUNCIL,NGF HS,ENVIRONMENT & COMMUNITY,"EQUIPMENT, FURNITURE & MATS",Revenue,"EQUIPMENT, FURNITURE & MATS",574728,470130000,22-Jan-15,20.99,BERNARD EXTON (SALES) LTD,SP0002169
WANDSWORTH COUNCIL,NGF HS,ENVIRONMENT & COMMUNITY,"EQUIPMENT, FURNITURE & MATS",Revenue,"EQUIPMENT, FURNITURE & MATS",574728,470130000,22-Jan-15,50.00,BERNARD EXTON (SALES) LTD,SP0002169
WANDSWORTH COUNCIL,NGF HS,ENVIRONMENT & COMMUNITY,"EQUIPMENT, FURNITURE & MATS",Revenue,"EQUIPMENT, FURNITURE & MATS",562646,470230000,06-Jan-15,497.00,BERNARD EXTON (SALES) LTD,SP0002169
WANDSWORTH COUNCIL,NGF HS,ENVIRONMENT & COMMUNITY,"EQUIPMENT, FURNITURE & MATS",Revenue,"EQUIPMENT, FURNITURE & MATS",574728,470230000,22-Jan-15,14.85,BERNARD EXTON (SALES) LTD,SP0002169
WANDSWORTH COUNCIL,NGF HS,ENVIRONMENT & COMMUNITY,"EQUIPMENT, FURNITURE & MATS",Revenue,"EQUIPMENT, FURNITURE & MATS",574728,470230000,22-Jan-15,44.85,BERNARD EXTON (SALES) LTD,SP0002169
WANDSWORTH COUNCIL,HS,HOUSING,PRIVATE,Revenue,B&B PAYMENTS,20299437,411745080,21-Jan-15,"10,055.50",BESTCOURT UK LTD,2008722
WANDSWORTH COUNCIL,NGF HS,ENVIRONMENT & COMMUNITY,"EQUIPMENT, FURNITURE & MATS",Revenue,"EQUIPMENT, FURNITURE & MATS",568319,470130000,14-Jan-15,665.00,BETA SAFETY SYSTEMS LTD,SP0008749
WANDSWORTH COUNCIL,NGF HS,ENVIRONMENT & COMMUNITY,"EQUIPMENT, FURNITURE & MATS",Revenue,"EQUIPMENT, FURNITURE & MATS",568319,470130000,14-Jan-15,"2,785.00",BETA SAFETY SYSTEMS LTD,SP0008749
WANDSWORTH COUNCIL,HS,HOUSING,PRIVATE,Revenue,B&B PAYMENTS,20299217,411745080,19-Jan-15,"1,080.00",BEULAH PROPERTIES LTD,2018463
WANDSWORTH COUNCIL,HS,HOUSING,PRIVATE,Revenue,B&B PAYMENTS,20299332,411745080,19-Jan-15,"2,850.00",BEULAH PROPERTIES LTD,2018463
WANDSWORTH COUNCIL,HS,HOUSING,PRIVATE,Revenue,B&B PAYMENTS,20299333,411745080,19-Jan-15,"2,945.00",BEULAH PROPERTIES LTD,2018463
WANDSWORTH COUNCIL,NGF HTS,ENVIRONMENT & COMMUNITY,SERVICES,Revenue,SUBCONTRACTORS,579474,474135080,29-Jan-15,"1,560.00",BICKFORD TRUCK HIRE LTD,SP0005623
WANDSWORTH COUNCIL,NGF HTS,ENVIRONMENT & COMMUNITY,SERVICES,Revenue,SUBCONTRACTORS,579475,474135080,29-Jan-15,"3,588.00",BICKFORD TRUCK HIRE LTD,SP0005623
WANDSWORTH COUNCIL,NGF HTS,ENVIRONMENT & COMMUNITY,SERVICES,Revenue,SUBCONTRACTORS,579476,474135080,29-Jan-15,"3,120.00",BICKFORD TRUCK HIRE LTD,SP0005623
WANDSWORTH COUNCIL,BS,ADMINISTRATION,SUNDRY CREDITORS - OTHER,Revenue,PORTABLE DISC-RETENTION MONIES,7014875,6002B6840,07-Jan-15,"2,000.00",Bishop Akers & Co,2991000
WANDSWORTH COUNCIL,BS,HOUSING,COUNCIL DWELLINGS,CAPITAL,HRA REPAIRS & IMPROVEMENTS,571308,7004C001J6260D,19-Jan-15,"238,274.14",BLAKEDOWN LANDSCAPES (SE) LTD,SP0004593
WANDSWORTH COUNCIL,NGF CES,ENVIRONMENT & COMMUNITY,DIRECT2,Revenue,AGENCY STAFF,567992,251400510,14-Jan-15,"5,850.00",BLUE8 PROJECTS LTD,SP0008399
WANDSWORTH COUNCIL,ASC,SOCIAL SERVICES,PRIVATE,Revenue,EXTERNAL HOMECARE,565697,152645300,09-Jan-15,"1,781.28",BLUEBIRD CARE (WANDSWORTH),SP0001810
WANDSWORTH COUNCIL,ASC,SOCIAL SERVICES,PRIVATE,Revenue,EXTERNAL HOMECARE,570490,152645300,19-Jan-15,"2,019.90",BLUEBIRD CARE (WANDSWORTH),SP0001810
WANDSWORTH COUNCIL,ASC,SOCIAL SERVICES,PRIVATE,Revenue,EXTERNAL HOMECARE,580538,152645300,29-Jan-15,"1,619.88",BLUEBIRD CARE (WANDSWORTH),SP0001810
WANDSWORTH COUNCIL,ASC,ENVIRONMENT & COMMUNITY,PRIVATE,Revenue,EXTERNAL NURSING CARE,575851,155345310,23-Jan-15,"8,899.20",BLUEBIRD CARE (WANDSWORTH),SP0001810
WANDSWORTH COUNCIL,ASC,ENVIRONMENT & COMMUNITY,PRIVATE,Revenue,EXTERNAL NURSING CARE,575852,155345310,23-Jan-15,"9,848.80",BLUEBIRD CARE (WANDSWORTH),SP0001810
WANDSWORTH COUNCIL,ASC,ENVIRONMENT & COMMUNITY,PRIVATE,Revenue,EXTERNAL NURSING CARE,575853,155345310,23-Jan-15,962.20,BLUEBIRD CARE (WANDSWORTH),SP0001810
WANDSWORTH COUNCIL,HS,HOUSING,SERVICES,Revenue,CONSULTANTS FEES,20299697,410934200,27-Jan-15,"5,500.00",BNP PARIBAS REAL ESTATE ADVISORY & PROPERTY MANAGEMENT UK LTD,2011588
WANDSWORTH COUNCIL,HS,HOUSING,SERVICES,Revenue,CONSULTANTS FEES,20299748,410934200,27-Jan-15,"5,180.00",BNP PARIBAS REAL ESTATE ADVISORY & PROPERTY MANAGEMENT UK LTD,2011588
WANDSWORTH COUNCIL,BS,ENVIRONMENT & COMMUNITY,INVENTORIES,Revenue,BUILDING WORKS STORES,568236,6004B0020,14-Jan-15,"3,810.00",BOLLARDS INTERNATIONAL LTD,SP0005636
WANDSWORTH COUNCIL,CS,ENVIRONMENT & COMMUNITY,HEALTH,Revenue,THIRD PARTY PYMT - HEALTH,575823,128041130,23-Jan-15,"3,687.00",BOOTS UK LTD FVK09 T/A BOOTS THE CHEMIST,SP0008393
WANDSWORTH COUNCIL,BS,HOUSING,COUNCIL DWELLINGS,CAPITAL,HRA REPAIRS & IMPROVEMENTS,571305,7004C001J6242D,19-Jan-15,"113,004.42",BORRAS CONSTRUCTION LTD,SP0000220
WANDSWORTH COUNCIL,BS,HOUSING,COUNCIL DWELLINGS,CAPITAL,HRA REPAIRS & IMPROVEMENTS,577525,7004C001J6242D,26-Jan-15,"116,843.31",BORRAS CONSTRUCTION LTD,SP0000220
WANDSWORTH COUNCIL,BS,HOUSING,COUNCIL DWELLINGS,CAPITAL,HRA REPAIRS & IMPROVEMENTS,564711,7004C001J6704D,09-Jan-15,"22,879.46",BORRAS CONSTRUCTION LTD,SP0000220
WANDSWORTH COUNCIL,NGF HS,ENVIRONMENT & COMMUNITY,PRINTING STAT & GEN OFFICE EXP,Revenue,HOUSING LINK,573888,405133210,26-Jan-15,"7,630.00",BOSTOCK MARKETING GROUP,SP0003042
WANDSWORTH COUNCIL,NGF HS,ENVIRONMENT & COMMUNITY,"EQUIPMENT, FURNITURE & MATS",Revenue,"EQUIPMENT, FURNITURE & MATS",574687,470130000,22-Jan-15,827.20,BOYDEN & CO LTD,SP0003279
WANDSWORTH COUNCIL,CS,ENVIRONMENT & COMMUNITY,"REPAIRS, ALTERATIONS & MTCE",Revenue,"REPS, ALTS & MTCE-BUILDINGS",577447,10051000K0002L,28-Jan-15,"1,000.00",BOYER PLANNING LTD,SP0007822
WANDSWORTH COUNCIL,CS,ENVIRONMENT & COMMUNITY,SERVICES,Revenue,CONSULTANTS FEES,577448,100534200,28-Jan-15,"10,373.08",BOYER PLANNING LTD,SP0007822
WANDSWORTH COUNCIL,CS,ENVIRONMENT & COMMUNITY,HEALTH,Revenue,THIRD PARTY PYMT - HEALTH,574525,128041130,23-Jan-15,"4,128.90",BRIDGE LANE GROUP PRACTICE,SP0000516
WANDSWORTH COUNCIL,PH,ENVIRONMENT & COMMUNITY,HEALTH,Revenue,PRIM CARE ALCHL CLINICS PILOTS,564516,178941750,09-Jan-15,"10,577.98",BRIDGE LANE GROUP PRACTICE,SP0000516
WANDSWORTH COUNCIL,CES,CHILDREN'S,PRIVATE,Revenue,INDEPENDENT - DAY & BOARDING,572296,221445400,20-Jan-15,"2,643.00",BRIT SCHOOL PRODUCTIONS,SP0000602
WANDSWORTH COUNCIL,CES,CHILDREN'S,PRINTING STAT & GEN OFFICE EXP,Revenue,PHOTOGRAPHY,20298858,209733400,09-Jan-15,"2,391.00",BRITISH AIRWAYS PLC,2991000
WANDSWORTH COUNCIL,NGF HTS,ENVIRONMENT & COMMUNITY,SERVICES,Revenue,SUBCONTRACTORS,568448,474135080,14-Jan-15,"1,378.68",BROADSTAIRS ACCIDENT REPAIRS LTD,SP0008991
WANDSWORTH COUNCIL,NGF HTS,ENVIRONMENT & COMMUNITY,SERVICES,Revenue,SUBCONTRACTORS,568449,474135080,14-Jan-15,"1,620.31",BROADSTAIRS ACCIDENT REPAIRS LTD,SP0008991
WANDSWORTH COUNCIL,PH,SOCIAL SERVICES,PRIVATE,Revenue,EXTERNAL RESIDENTIAL CARE,578617,140145330,28-Jan-15,"8,964.00",BROADWAY LODGE LTD,SP0009109
WANDSWORTH COUNCIL,CS,ENVIRONMENT & COMMUNITY,"REPAIRS, ALTERATIONS & MTCE",Revenue,"REPS, ALTS & MTCE-BUILDINGS",564697,10051000K0002P,12-Jan-15,"1,020.00",BROADWAY MALYAN,SP0007508
WANDSWORTH COUNCIL,BS,ADMINISTRATION,SUNDRY CREDITORS - OTHER,Revenue,PORTABLE DISC-RETENTION MONIES,7014937,6502B6840,09-Jan-15,"-2,000.00",Broadway Solicitors,2991000
WANDSWORTH COUNCIL,BS,ADMINISTRATION,SUSPENSE ACCOUNTS,CAPITAL,HRA PORTABLE DISCOUNTS,7014937,7005C209L0333N,09-Jan-15,"59,000.00",Broadway Solicitors,2991000
WANDSWORTH COUNCIL,BS,ADMINISTRATION,SUSPENSE ACCOUNTS,CAPITAL,HRA PORTABLE DISCOUNTS,7014937,7005C209L0333N,09-Jan-15,"1,000.00",Broadway Solicitors,2991000
WANDSWORTH COUNCIL,BS,ADMINISTRATION,SUSPENSE ACCOUNTS,CAPITAL,HRA PORTABLE DISCOUNTS,7014937,7005C209L0333N,09-Jan-15,"1,000.00",Broadway Solicitors,2991000
WANDSWORTH COUNCIL,CES,CHILDREN'S,PRIVATE,Revenue,SPECIAL GUARDIANSHIP,573310,360645780,21-Jan-15,787.50,BROCKLEBANK (NURSERY PLAYGROUP & AFTER S,SP0000411
WANDSWORTH COUNCIL,ASC,SOCIAL SERVICES,PRIVATE,Revenue,EXTERNAL RESIDENTIAL CARE,569327,130245330,16-Jan-15,"8,046.58",BROOKDALE CARE,SP0000282
WANDSWORTH COUNCIL,ASC,SOCIAL SERVICES,CUSTOMER & CLIENT RECPTS - EXT,Revenue,CL CONT EXTERNAL RESIDENTIAL,569327,130280720,16-Jan-15,-401.67,BROOKDALE CARE,SP0000282
WANDSWORTH COUNCIL,ASC,SOCIAL SERVICES,PRIVATE,Revenue,EXTERNAL RESIDENTIAL CARE,561784,152645330,05-Jan-15,"1,726.76",BROOKLANDS CARE HOME,SP0001803
WANDSWORTH COUNCIL,ASC,SOCIAL SERVICES,CUSTOMER & CLIENT RECPTS - EXT,Revenue,CL CONT EXTERNAL RESIDENTIAL,561784,152680720,05-Jan-15,-495.80,BROOKLANDS CARE HOME,SP0001803
WANDSWORTH COUNCIL,NGF PS,ENVIRONMENT & COMMUNITY,DIRECT2,Revenue,AGENCY STAFF,563323,461200510,07-Jan-15,880.00,BROOKSON ENGINEERING (5618i) LTD,SP0002675
WANDSWORTH COUNCIL,NGF PS,ENVIRONMENT & COMMUNITY,DIRECT2,Revenue,AGENCY STAFF,563324,461200510,07-Jan-15,680.00,BROOKSON ENGINEERING (5618i) LTD,SP0002675
WANDSWORTH COUNCIL,NGF PS,ENVIRONMENT & COMMUNITY,DIRECT2,Revenue,AGENCY STAFF,564505,461200510,08-Jan-15,"1,064.00",BROOKSON ENGINEERING (5618i) LTD,SP0002675
WANDSWORTH COUNCIL,NGF PS,ENVIRONMENT & COMMUNITY,DIRECT2,Revenue,AGENCY STAFF,571875,461200510,21-Jan-15,"1,600.00",BROOKSON ENGINEERING (5618i) LTD,SP0002675
WANDSWORTH COUNCIL,NGF PS,ENVIRONMENT & COMMUNITY,SERVICES,Revenue,SERVICES - GENERAL,559466,461234870,09-Jan-15,"1,600.00",BROOKSON ENGINEERING (5618i) LTD,SP0002675
WANDSWORTH COUNCIL,CES,ENVIRONMENT & COMMUNITY,DIRECT2,Revenue,AGENCY STAFF,561174,368000510,06-Jan-15,"1,003.82",BS PROJECT SERVICES LTD,SP0001051
WANDSWORTH COUNCIL,CES,ENVIRONMENT & COMMUNITY,DIRECT2,Revenue,AGENCY STAFF,564535,368000510,08-Jan-15,495.32,BS PROJECT SERVICES LTD,SP0001051
WANDSWORTH COUNCIL,CES,ENVIRONMENT & COMMUNITY,DIRECT2,Revenue,AGENCY STAFF,564601,368000510,12-Jan-15,518.67,BS PROJECT SERVICES LTD,SP0001051
WANDSWORTH COUNCIL,BS,ENVIRONMENT & COMMUNITY,OTHER LAND & BUILDINGS,CAPITAL,CS YOUTH SERVICES BUILDINGS,579391,7004C016J1383D,29-Jan-15,"45,945.73",BSW HEATING LTD,SP0001045
WANDSWORTH COUNCIL,CS,ADMINISTRATION,PRIVATE,Revenue,GENERAL CONTRACT WORK,20299480,100645370,22-Jan-15,337.50,BT PAYMENT SERVICES LTD,2009138
WANDSWORTH COUNCIL,NGF CS,ADMINISTRATION,COMMUNICATIONS & COMP,Revenue,COMMUNICATIONS - TELEPHONES,20299479,126336020,22-Jan-15,168.00,BT PAYMENT SERVICES LTD,2009138
WANDSWORTH COUNCIL,NGF CS,ADMINISTRATION,COMMUNICATIONS & COMP,Revenue,PRIVATE CIRCUITS EXCHANGE LINK,20299480,126336460,22-Jan-15,"7,339.92",BT PAYMENT SERVICES LTD,2009138
WANDSWORTH COUNCIL,ASC,ADMINISTRATION,"EQUIPMENT, FURNITURE & MATS",Revenue,TOYS AND PASTIMES,20299480,154430470,22-Jan-15,"1,984.75",BT PAYMENT SERVICES LTD,2009138
WANDSWORTH COUNCIL,NGF ASC,ADMINISTRATION,COMMUNICATIONS & COMP,Revenue,COMMUNICATIONS - TELEPHONES,20299480,195136020,22-Jan-15,"3,571.84",BT PAYMENT SERVICES LTD,2009138
WANDSWORTH COUNCIL,NGF ASC,ADMINISTRATION,COMMUNICATIONS & COMP,Revenue,TELECOMMUNICATIONS SLA,20299193,195136520,15-Jan-15,"1,212.50",BT PAYMENT SERVICES LTD,2009138
WANDSWORTH COUNCIL,NGF CES,ADMINISTRATION,"EQUIPMENT, FURNITURE & MATS",Revenue,"EQUIPMENT, FURNITURE & MATS",20299480,250330000,22-Jan-15,"1,984.75",BT PAYMENT SERVICES LTD,2009138
WANDSWORTH COUNCIL,CES,CHILDREN'S,COMMUNICATIONS & COMP,Revenue,COMMUNICATIONS - TELEPHONES,20297549,337136020,09-Jan-15,"1,073.92",BT PAYMENT SERVICES LTD,2009138
WANDSWORTH COUNCIL,CES,ADMINISTRATION,COMMUNICATIONS & COMP,Revenue,TELECOMMUNICATIONS SLA,20299479,351736520,22-Jan-15,332.50,BT PAYMENT SERVICES LTD,2009138
WANDSWORTH COUNCIL,CS,ADMINISTRATION,GRANTS & SUBSCRIPTIONS,Revenue,CONTRACTS TO VOLUNTARY ORGS,20299480,380337550,22-Jan-15,948.83,BT PAYMENT SERVICES LTD,2009138
WANDSWORTH COUNCIL,PS,ADMINISTRATION,COMMUNICATIONS & COMP,Revenue,COMMUNICATIONS - TELEPHONES,20299480,383036020,22-Jan-15,763.46,BT PAYMENT SERVICES LTD,2009138
WANDSWORTH COUNCIL,NGF HS,ADMINISTRATION,COMMUNICATIONS & COMP,Revenue,TELECOMMUNICATIONS SLA,20299480,403236520,22-Jan-15,948.83,BT PAYMENT SERVICES LTD,2009138
WANDSWORTH COUNCIL,NGF CRS,ADMINISTRATION,COMMUNICATIONS & COMP,Revenue,TELECOMMUNICATIONS SLA,20299479,423136520,22-Jan-15,332.50,BT PAYMENT SERVICES LTD,2009138
WANDSWORTH COUNCIL,CRS,ADMINISTRATION,COMMUNICATIONS & COMP,Revenue,COMMUNICATIONS - TELEPHONES,20299479,423236020,22-Jan-15,"1,176.00",BT PAYMENT SERVICES LTD,2009138
WANDSWORTH COUNCIL,ERS,ADMINISTRATION,COMMUNICATIONS & COMP,Revenue,COMMUNICATIONS - TELEPHONES,20299479,425136020,22-Jan-15,296.50,BT PAYMENT SERVICES LTD,2009138
WANDSWORTH COUNCIL,ERS,ADMINISTRATION,COMMUNICATIONS & COMP,Revenue,TELECOMMUNICATIONS SLA,20299480,425136520,22-Jan-15,"1,721.25",BT PAYMENT SERVICES LTD,2009138
WANDSWORTH COUNCIL,CRS,ADMINISTRATION,COMMUNICATIONS & COMP,Revenue,TELECOMMUNICATIONS SLA,20299479,426136520,22-Jan-15,168.00,BT PAYMENT SERVICES LTD,2009138
WANDSWORTH COUNCIL,CRS,ADMINISTRATION,COMMUNICATIONS & COMP,Revenue,TELECOMMUNICATIONS SLA,20299479,426736520,22-Jan-15,473.52,BT PAYMENT SERVICES LTD,2009138
WANDSWORTH COUNCIL,CRS,ADMINISTRATION,COMMUNICATIONS & COMP,Revenue,TELECOMMUNICATIONS SLA,20299479,433136520,22-Jan-15,168.00,BT PAYMENT SERVICES LTD,2009138
WANDSWORTH COUNCIL,PH,ADMINISTRATION,COMMUNICATIONS & COMP,Revenue,TELECOMMUNICATIONS SLA,20299479,433736520,22-Jan-15,166.25,BT PAYMENT SERVICES LTD,2009138
WANDSWORTH COUNCIL,CRS,ADMINISTRATION,COMMUNICATIONS & COMP,Revenue,TELECOMMUNICATIONS SLA,20299479,441736520,22-Jan-15,168.00,BT PAYMENT SERVICES LTD,2009138
WANDSWORTH COUNCIL,CRS,ADMINISTRATION,COMMUNICATIONS & COMP,Revenue,TELECOMMUNICATIONS SLA,20299479,441936520,22-Jan-15,256.25,BT PAYMENT SERVICES LTD,2009138
WANDSWORTH COUNCIL,CRS,ADMINISTRATION,COMMUNICATIONS & COMP,Revenue,TELECOMMUNICATIONS SLA,20299479,442036520,22-Jan-15,168.00,BT PAYMENT SERVICES LTD,2009138
WANDSWORTH COUNCIL,HTS,ADMINISTRATION,COMMUNICATIONS & COMP,Revenue,COMMUNICATIONS - TELEPHONES,20299480,455036020,22-Jan-15,"2,787.00",BT PAYMENT SERVICES LTD,2009138
WANDSWORTH COUNCIL,ERS,ADMINISTRATION,"EQUIPMENT, FURNITURE & MATS",Revenue,CCTV FIBRE RENTALS,20299479,465430040,22-Jan-15,498.50,BT PAYMENT SERVICES LTD,2009138
WANDSWORTH COUNCIL,ERS,ADMINISTRATION,"EQUIPMENT, FURNITURE & MATS",Revenue,CCTV FIBRE RENTALS,20299480,465430040,22-Jan-15,"1,748.00",BT PAYMENT SERVICES LTD,2009138
WANDSWORTH COUNCIL,NGF HTS,ADMINISTRATION,COMMUNICATIONS & COMP,Revenue,COMMUNICATIONS - TELEPHONES,20299480,477036020,22-Jan-15,"1,012.50",BT PAYMENT SERVICES LTD,2009138
WANDSWORTH COUNCIL,BS,ADMINISTRATION,COMMUNICATIONS & COMP,Revenue,TELECOMMUNICATIONS SLA,20299479,479936520,22-Jan-15,166.25,BT PAYMENT SERVICES LTD,2009138
WANDSWORTH COUNCIL,NGF HS,HOUSING,COMMUNICATIONS & COMP,Revenue,COMMUNICATIONS - TELEPHONES,20298882,4FBF36020,12-Jan-15,957.27,BT PAYMENT SERVICES LTD,2009138
WANDSWORTH COUNCIL,NGF HS,HOUSING,"REPAIRS, ALTERATIONS & MTCE",Revenue,PHONE LINES - EMU LINKS,20298995,4FBF49730,13-Jan-15,"1,116.14",BT PAYMENT SERVICES LTD,2009138
WANDSWORTH COUNCIL,NGF HS,HOUSING,"REPAIRS, ALTERATIONS & MTCE",Revenue,PHONE LINES - EMU LINKS,20298996,4FBF49730,13-Jan-15,"2,303.90",BT PAYMENT SERVICES LTD,2009138
WANDSWORTH COUNCIL,NGF HS,HOUSING,"REPAIRS, ALTERATIONS & MTCE",Revenue,PHONE LINES - EMU LINKS,20299411,4FBF49730,20-Jan-15,"1,047.68",BT PAYMENT SERVICES LTD,2009138
WANDSWORTH COUNCIL,NGF HS,HOUSING,"REPAIRS, ALTERATIONS & MTCE",Revenue,PHONE LINES - EMU LINKS,20299412,4FBF49730,20-Jan-15,"1,347.08",BT PAYMENT SERVICES LTD,2009138
WANDSWORTH COUNCIL,NGF HS,HOUSING,"REPAIRS, ALTERATIONS & MTCE",Revenue,PHONE LINES - EMU LINKS,20299413,4FBF49730,20-Jan-15,"1,161.96",BT PAYMENT SERVICES LTD,2009138
WANDSWORTH COUNCIL,NGF HS,HOUSING,"REPAIRS, ALTERATIONS & MTCE",Revenue,PHONE LINES - EMU LINKS,20299414,4FBF49730,20-Jan-15,935.71,BT PAYMENT SERVICES LTD,2009138
WANDSWORTH COUNCIL,NGF HS,HOUSING,"REPAIRS, ALTERATIONS & MTCE",Revenue,PHONE LINES - EMU LINKS,20299415,4FBF49730,20-Jan-15,"1,218.50",BT PAYMENT SERVICES LTD,2009138
WANDSWORTH COUNCIL,NGF HS,HOUSING,"REPAIRS, ALTERATIONS & MTCE",Revenue,PHONE LINES - EMU LINKS,20299708,4FBF49730,26-Jan-15,777.20,BT PAYMENT SERVICES LTD,2009138
WANDSWORTH COUNCIL,NGF HS,HOUSING,"REPAIRS, ALTERATIONS & MTCE",Revenue,PHONE LINES - EMU LINKS,20299709,4FBF49730,26-Jan-15,"1,181.63",BT PAYMENT SERVICES LTD,2009138
WANDSWORTH COUNCIL,BS,CHILDREN'S,OTHER LAND & BUILDINGS,CAPITAL,SCHOOLS PRIMARY BLDNGS - OLAB,20299273,7004C014J1363D,19-Jan-15,"16,841.05",BUILDING ASSOCIATES LTD,2002274
WANDSWORTH COUNCIL,BS,CHILDREN'S,OTHER LAND & BUILDINGS,CAPITAL,SCHOOLS PRIMARY BLDNGS - OLAB,20298706,7004C014J1379D,07-Jan-15,"100,776.77",BUILDING ASSOCIATES LTD,2002274
WANDSWORTH COUNCIL,ASC,SOCIAL SERVICES,PRIVATE,Revenue,EXTERNAL RESIDENTIAL CARE,567884,152245330,14-Jan-15,"3,669.06",BUPA CARE SERVICES BACS RECEIPTS,SP0000644
WANDSWORTH COUNCIL,ASC,SOCIAL SERVICES,CUSTOMER & CLIENT RECPTS - EXT,Revenue,CL CONT EXTERNAL RESIDENTIAL,567884,152280720,14-Jan-15,-777.00,BUPA CARE SERVICES BACS RECEIPTS,SP0000644
WANDSWORTH COUNCIL,ASC,SOCIAL SERVICES,PRIVATE,Revenue,EXTERNAL NURSING CARE,567853,152445310,14-Jan-15,"2,980.60",BUPA CARE SERVICES BACS RECEIPTS,SP0000644
WANDSWORTH COUNCIL,ASC,SOCIAL SERVICES,PRIVATE,Revenue,EXTERNAL RESIDENTIAL CARE,567850,152445330,14-Jan-15,"2,358.76",BUPA CARE SERVICES BACS RECEIPTS,SP0000644
WANDSWORTH COUNCIL,ASC,SOCIAL SERVICES,PRIVATE,Revenue,EXTERNAL RESIDENTIAL CARE,567870,152445330,14-Jan-15,"2,401.20",BUPA CARE SERVICES BACS RECEIPTS,SP0000644
WANDSWORTH COUNCIL,ASC,SOCIAL SERVICES,PRIVATE,Revenue,EXTERNAL RESIDENTIAL CARE,567875,152445330,14-Jan-15,"2,354.12",BUPA CARE SERVICES BACS RECEIPTS,SP0000644
WANDSWORTH COUNCIL,ASC,SOCIAL SERVICES,CUSTOMER & CLIENT RECPTS - EXT,Revenue,CL CONT EXTERNAL RESIDENTIAL,567870,152480720,14-Jan-15,-495.80,BUPA CARE SERVICES BACS RECEIPTS,SP0000644
WANDSWORTH COUNCIL,ASC,SOCIAL SERVICES,CUSTOMER & CLIENT RECPTS - EXT,Revenue,CL CONT EXTERNAL RESIDENTIAL,567875,152480720,14-Jan-15,-495.80,BUPA CARE SERVICES BACS RECEIPTS,SP0000644
WANDSWORTH COUNCIL,ASC,SOCIAL SERVICES,CUSTOMER & CLIENT RECPTS - EXT,Revenue,CLIENT CONTS EXTERNAL NURSING,567853,152480820,14-Jan-15,-495.80,BUPA CARE SERVICES BACS RECEIPTS,SP0000644
WANDSWORTH COUNCIL,ASC,SOCIAL SERVICES,CUSTOMER & CLIENT RECPTS - EXT,Revenue,RNCC,567853,152484120,14-Jan-15,-443.56,BUPA CARE SERVICES BACS RECEIPTS,SP0000644
WANDSWORTH COUNCIL,ASC,SOCIAL SERVICES,PRIVATE,Revenue,EXTERNAL NURSING CARE,567843,152645310,14-Jan-15,"2,980.60",BUPA CARE SERVICES BACS RECEIPTS,SP0000644
WANDSWORTH COUNCIL,ASC,SOCIAL SERVICES,PRIVATE,Revenue,EXTERNAL NURSING CARE,567844,152645310,14-Jan-15,"2,946.96",BUPA CARE SERVICES BACS RECEIPTS,SP0000644
WANDSWORTH COUNCIL,ASC,SOCIAL SERVICES,PRIVATE,Revenue,EXTERNAL NURSING CARE,567845,152645310,14-Jan-15,"2,946.96",BUPA CARE SERVICES BACS RECEIPTS,SP0000644
WANDSWORTH COUNCIL,ASC,SOCIAL SERVICES,PRIVATE,Revenue,EXTERNAL NURSING CARE,567846,152645310,14-Jan-15,"2,941.56",BUPA CARE SERVICES BACS RECEIPTS,SP0000644
WANDSWORTH COUNCIL,ASC,SOCIAL SERVICES,PRIVATE,Revenue,EXTERNAL NURSING CARE,567848,152645310,14-Jan-15,"2,946.96",BUPA CARE SERVICES BACS RECEIPTS,SP0000644
WANDSWORTH COUNCIL,ASC,SOCIAL SERVICES,PRIVATE,Revenue,EXTERNAL NURSING CARE,567849,152645310,14-Jan-15,"2,946.96",BUPA CARE SERVICES BACS RECEIPTS,SP0000644
WANDSWORTH COUNCIL,ASC,SOCIAL SERVICES,PRIVATE,Revenue,EXTERNAL NURSING CARE,567851,152645310,14-Jan-15,"2,980.60",BUPA CARE SERVICES BACS RECEIPTS,SP0000644
WANDSWORTH COUNCIL,ASC,SOCIAL SERVICES,PRIVATE,Revenue,EXTERNAL NURSING CARE,567855,152645310,14-Jan-15,"2,980.60",BUPA CARE SERVICES BACS RECEIPTS,SP0000644
WANDSWORTH COUNCIL,ASC,SOCIAL SERVICES,PRIVATE,Revenue,EXTERNAL NURSING CARE,567856,152645310,14-Jan-15,"2,980.60",BUPA CARE SERVICES BACS RECEIPTS,SP0000644
WANDSWORTH COUNCIL,ASC,SOCIAL SERVICES,PRIVATE,Revenue,EXTERNAL NURSING CARE,567860,152645310,14-Jan-15,"2,980.60",BUPA CARE SERVICES BACS RECEIPTS,SP0000644
WANDSWORTH COUNCIL,ASC,SOCIAL SERVICES,PRIVATE,Revenue,EXTERNAL NURSING CARE,567862,152645310,14-Jan-15,"2,927.64",BUPA CARE SERVICES BACS RECEIPTS,SP0000644
WANDSWORTH COUNCIL,ASC,SOCIAL SERVICES,PRIVATE,Revenue,EXTERNAL NURSING CARE,567863,152645310,14-Jan-15,"2,980.60",BUPA CARE SERVICES BACS RECEIPTS,SP0000644
WANDSWORTH COUNCIL,ASC,SOCIAL SERVICES,PRIVATE,Revenue,EXTERNAL NURSING CARE,567865,152645310,14-Jan-15,"2,980.60",BUPA CARE SERVICES BACS RECEIPTS,SP0000644
WANDSWORTH COUNCIL,ASC,SOCIAL SERVICES,PRIVATE,Revenue,EXTERNAL NURSING CARE,567866,152645310,14-Jan-15,"2,980.60",BUPA CARE SERVICES BACS RECEIPTS,SP0000644
WANDSWORTH COUNCIL,ASC,SOCIAL SERVICES,PRIVATE,Revenue,EXTERNAL NURSING CARE,567867,152645310,14-Jan-15,"2,980.72",BUPA CARE SERVICES BACS RECEIPTS,SP0000644
WANDSWORTH COUNCIL,ASC,SOCIAL SERVICES,PRIVATE,Revenue,EXTERNAL NURSING CARE,567868,152645310,14-Jan-15,"2,980.60",BUPA CARE SERVICES BACS RECEIPTS,SP0000644
WANDSWORTH COUNCIL,ASC,SOCIAL SERVICES,PRIVATE,Revenue,EXTERNAL NURSING CARE,567872,152645310,14-Jan-15,"2,980.60",BUPA CARE SERVICES BACS RECEIPTS,SP0000644
WANDSWORTH COUNCIL,ASC,SOCIAL SERVICES,PRIVATE,Revenue,EXTERNAL NURSING CARE,567874,152645310,14-Jan-15,"2,922.16",BUPA CARE SERVICES BACS RECEIPTS,SP0000644
WANDSWORTH COUNCIL,ASC,SOCIAL SERVICES,PRIVATE,Revenue,EXTERNAL NURSING CARE,567876,152645310,14-Jan-15,"2,980.60",BUPA CARE SERVICES BACS RECEIPTS,SP0000644
WANDSWORTH COUNCIL,ASC,SOCIAL SERVICES,PRIVATE,Revenue,EXTERNAL NURSING CARE,567878,152645310,14-Jan-15,"2,922.16",BUPA CARE SERVICES BACS RECEIPTS,SP0000644
WANDSWORTH COUNCIL,ASC,SOCIAL SERVICES,PRIVATE,Revenue,EXTERNAL NURSING CARE,567880,152645310,14-Jan-15,"2,922.16",BUPA CARE SERVICES BACS RECEIPTS,SP0000644
WANDSWORTH COUNCIL,ASC,SOCIAL SERVICES,PRIVATE,Revenue,EXTERNAL NURSING CARE,567882,152645310,14-Jan-15,"4,151.55",BUPA CARE SERVICES BACS RECEIPTS,SP0000644
WANDSWORTH COUNCIL,ASC,SOCIAL SERVICES,PRIVATE,Revenue,EXTERNAL NURSING CARE,576818,152645310,23-Jan-15,"2,560.73",BUPA CARE SERVICES BACS RECEIPTS,SP0000644
WANDSWORTH COUNCIL,ASC,SOCIAL SERVICES,PRIVATE,Revenue,EXTERNAL RESIDENTIAL CARE,567842,152645330,14-Jan-15,"2,401.20",BUPA CARE SERVICES BACS RECEIPTS,SP0000644
WANDSWORTH COUNCIL,ASC,SOCIAL SERVICES,PRIVATE,Revenue,EXTERNAL RESIDENTIAL CARE,567852,152645330,14-Jan-15,"2,360.32",BUPA CARE SERVICES BACS RECEIPTS,SP0000644
WANDSWORTH COUNCIL,ASC,SOCIAL SERVICES,PRIVATE,Revenue,EXTERNAL RESIDENTIAL CARE,567854,152645330,14-Jan-15,"2,401.20",BUPA CARE SERVICES BACS RECEIPTS,SP0000644
WANDSWORTH COUNCIL,ASC,SOCIAL SERVICES,PRIVATE,Revenue,EXTERNAL RESIDENTIAL CARE,567858,152645330,14-Jan-15,"2,359.16",BUPA CARE SERVICES BACS RECEIPTS,SP0000644
WANDSWORTH COUNCIL,ASC,SOCIAL SERVICES,PRIVATE,Revenue,EXTERNAL RESIDENTIAL CARE,567859,152645330,14-Jan-15,"2,401.20",BUPA CARE SERVICES BACS RECEIPTS,SP0000644
WANDSWORTH COUNCIL,ASC,SOCIAL SERVICES,PRIVATE,Revenue,EXTERNAL RESIDENTIAL CARE,567861,152645330,14-Jan-15,"2,335.80",BUPA CARE SERVICES BACS RECEIPTS,SP0000644
WANDSWORTH COUNCIL,ASC,SOCIAL SERVICES,PRIVATE,Revenue,EXTERNAL RESIDENTIAL CARE,567869,152645330,14-Jan-15,"2,401.20",BUPA CARE SERVICES BACS RECEIPTS,SP0000644
WANDSWORTH COUNCIL,ASC,SOCIAL SERVICES,PRIVATE,Revenue,EXTERNAL RESIDENTIAL CARE,567873,152645330,14-Jan-15,"2,354.12",BUPA CARE SERVICES BACS RECEIPTS,SP0000644
WANDSWORTH COUNCIL,ASC,SOCIAL SERVICES,PRIVATE,Revenue,EXTERNAL RESIDENTIAL CARE,567877,152645330,14-Jan-15,"2,401.20",BUPA CARE SERVICES BACS RECEIPTS,SP0000644
WANDSWORTH COUNCIL,ASC,SOCIAL SERVICES,PRIVATE,Revenue,EXTERNAL RESIDENTIAL CARE,576812,152645330,23-Jan-15,"1,601.50",BUPA CARE SERVICES BACS RECEIPTS,SP0000644
WANDSWORTH COUNCIL,ASC,SOCIAL SERVICES,CUSTOMER & CLIENT RECPTS - EXT,Revenue,CL CONT EXTERNAL RESIDENTIAL,567842,152680720,14-Jan-15,-717.04,BUPA CARE SERVICES BACS RECEIPTS,SP0000644
WANDSWORTH COUNCIL,ASC,SOCIAL SERVICES,CUSTOMER & CLIENT RECPTS - EXT,Revenue,CL CONT EXTERNAL RESIDENTIAL,567852,152680720,14-Jan-15,-495.80,BUPA CARE SERVICES BACS RECEIPTS,SP0000644
WANDSWORTH COUNCIL,ASC,SOCIAL SERVICES,CUSTOMER & CLIENT RECPTS - EXT,Revenue,CL CONT EXTERNAL RESIDENTIAL,567854,152680720,14-Jan-15,-980.24,BUPA CARE SERVICES BACS RECEIPTS,SP0000644
WANDSWORTH COUNCIL,ASC,SOCIAL SERVICES,CUSTOMER & CLIENT RECPTS - EXT,Revenue,CL CONT EXTERNAL RESIDENTIAL,567859,152680720,14-Jan-15,"-1,011.76",BUPA CARE SERVICES BACS RECEIPTS,SP0000644
WANDSWORTH COUNCIL,ASC,SOCIAL SERVICES,CUSTOMER & CLIENT RECPTS - EXT,Revenue,CL CONT EXTERNAL RESIDENTIAL,567873,152680720,14-Jan-15,-639.80,BUPA CARE SERVICES BACS RECEIPTS,SP0000644
WANDSWORTH COUNCIL,ASC,SOCIAL SERVICES,CUSTOMER & CLIENT RECPTS - EXT,Revenue,CL CONT EXTERNAL RESIDENTIAL,567877,152680720,14-Jan-15,-626.20,BUPA CARE SERVICES BACS RECEIPTS,SP0000644
WANDSWORTH COUNCIL,ASC,SOCIAL SERVICES,CUSTOMER & CLIENT RECPTS - EXT,Revenue,CL CONT EXTERNAL RESIDENTIAL,576812,152680720,23-Jan-15,-377.46,BUPA CARE SERVICES BACS RECEIPTS,SP0000644
WANDSWORTH COUNCIL,ASC,SOCIAL SERVICES,CUSTOMER & CLIENT RECPTS - EXT,Revenue,CL CONTS INTERNAL RESIDENTIAL,567869,152680760,14-Jan-15,-577.12,BUPA CARE SERVICES BACS RECEIPTS,SP0000644
WANDSWORTH COUNCIL,ASC,SOCIAL SERVICES,CUSTOMER & CLIENT RECPTS - EXT,Revenue,CLIENT CONTS EXTERNAL NURSING,567844,152680820,14-Jan-15,-525.00,BUPA CARE SERVICES BACS RECEIPTS,SP0000644
WANDSWORTH COUNCIL,ASC,SOCIAL SERVICES,CUSTOMER & CLIENT RECPTS - EXT,Revenue,CLIENT CONTS EXTERNAL NURSING,567846,152680820,14-Jan-15,-798.12,BUPA CARE SERVICES BACS RECEIPTS,SP0000644
WANDSWORTH COUNCIL,ASC,SOCIAL SERVICES,CUSTOMER & CLIENT RECPTS - EXT,Revenue,CLIENT CONTS EXTERNAL NURSING,567848,152680820,14-Jan-15,"-1,642.88",BUPA CARE SERVICES BACS RECEIPTS,SP0000644
WANDSWORTH COUNCIL,ASC,SOCIAL SERVICES,CUSTOMER & CLIENT RECPTS - EXT,Revenue,CLIENT CONTS EXTERNAL NURSING,567849,152680820,14-Jan-15,"-1,076.00",BUPA CARE SERVICES BACS RECEIPTS,SP0000644
WANDSWORTH COUNCIL,ASC,SOCIAL SERVICES,CUSTOMER & CLIENT RECPTS - EXT,Revenue,CLIENT CONTS EXTERNAL NURSING,567851,152680820,14-Jan-15,-718.48,BUPA CARE SERVICES BACS RECEIPTS,SP0000644
WANDSWORTH COUNCIL,ASC,SOCIAL SERVICES,CUSTOMER & CLIENT RECPTS - EXT,Revenue,CLIENT CONTS EXTERNAL NURSING,567856,152680820,14-Jan-15,-639.72,BUPA CARE SERVICES BACS RECEIPTS,SP0000644
WANDSWORTH COUNCIL,ASC,SOCIAL SERVICES,CUSTOMER & CLIENT RECPTS - EXT,Revenue,CLIENT CONTS EXTERNAL NURSING,567860,152680820,14-Jan-15,-685.00,BUPA CARE SERVICES BACS RECEIPTS,SP0000644
WANDSWORTH COUNCIL,ASC,SOCIAL SERVICES,CUSTOMER & CLIENT RECPTS - EXT,Revenue,CLIENT CONTS EXTERNAL NURSING,567862,152680820,14-Jan-15,-495.80,BUPA CARE SERVICES BACS RECEIPTS,SP0000644
WANDSWORTH COUNCIL,ASC,SOCIAL SERVICES,CUSTOMER & CLIENT RECPTS - EXT,Revenue,CLIENT CONTS EXTERNAL NURSING,567863,152680820,14-Jan-15,-495.80,BUPA CARE SERVICES BACS RECEIPTS,SP0000644
WANDSWORTH COUNCIL,ASC,SOCIAL SERVICES,CUSTOMER & CLIENT RECPTS - EXT,Revenue,CLIENT CONTS EXTERNAL NURSING,567865,152680820,14-Jan-15,-760.88,BUPA CARE SERVICES BACS RECEIPTS,SP0000644
WANDSWORTH COUNCIL,ASC,SOCIAL SERVICES,CUSTOMER & CLIENT RECPTS - EXT,Revenue,CLIENT CONTS EXTERNAL NURSING,567866,152680820,14-Jan-15,-567.28,BUPA CARE SERVICES BACS RECEIPTS,SP0000644
WANDSWORTH COUNCIL,ASC,SOCIAL SERVICES,CUSTOMER & CLIENT RECPTS - EXT,Revenue,CLIENT CONTS EXTERNAL NURSING,567867,152680820,14-Jan-15,-495.80,BUPA CARE SERVICES BACS RECEIPTS,SP0000644
WANDSWORTH COUNCIL,ASC,SOCIAL SERVICES,CUSTOMER & CLIENT RECPTS - EXT,Revenue,CLIENT CONTS EXTERNAL NURSING,567868,152680820,14-Jan-15,-544.84,BUPA CARE SERVICES BACS RECEIPTS,SP0000644
WANDSWORTH COUNCIL,ASC,SOCIAL SERVICES,CUSTOMER & CLIENT RECPTS - EXT,Revenue,CLIENT CONTS EXTERNAL NURSING,567872,152680820,14-Jan-15,-495.80,BUPA CARE SERVICES BACS RECEIPTS,SP0000644
WANDSWORTH COUNCIL,ASC,SOCIAL SERVICES,CUSTOMER & CLIENT RECPTS - EXT,Revenue,CLIENT CONTS EXTERNAL NURSING,567874,152680820,14-Jan-15,-836.84,BUPA CARE SERVICES BACS RECEIPTS,SP0000644
WANDSWORTH COUNCIL,ASC,SOCIAL SERVICES,CUSTOMER & CLIENT RECPTS - EXT,Revenue,CLIENT CONTS EXTERNAL NURSING,567876,152680820,14-Jan-15,-583.52,BUPA CARE SERVICES BACS RECEIPTS,SP0000644
WANDSWORTH COUNCIL,ASC,SOCIAL SERVICES,CUSTOMER & CLIENT RECPTS - EXT,Revenue,CLIENT CONTS EXTERNAL NURSING,567878,152680820,14-Jan-15,-495.80,BUPA CARE SERVICES BACS RECEIPTS,SP0000644
WANDSWORTH COUNCIL,ASC,SOCIAL SERVICES,CUSTOMER & CLIENT RECPTS - EXT,Revenue,CLIENT CONTS EXTERNAL NURSING,567880,152680820,14-Jan-15,-495.80,BUPA CARE SERVICES BACS RECEIPTS,SP0000644
WANDSWORTH COUNCIL,ASC,SOCIAL SERVICES,CUSTOMER & CLIENT RECPTS - EXT,Revenue,CLIENT CONTS EXTERNAL NURSING,567882,152680820,14-Jan-15,-690.58,BUPA CARE SERVICES BACS RECEIPTS,SP0000644
WANDSWORTH COUNCIL,ASC,SOCIAL SERVICES,CUSTOMER & CLIENT RECPTS - EXT,Revenue,RNCC,567843,152684120,14-Jan-15,-443.56,BUPA CARE SERVICES BACS RECEIPTS,SP0000644
WANDSWORTH COUNCIL,ASC,SOCIAL SERVICES,CUSTOMER & CLIENT RECPTS - EXT,Revenue,RNCC,567844,152684120,14-Jan-15,-443.56,BUPA CARE SERVICES BACS RECEIPTS,SP0000644
WANDSWORTH COUNCIL,ASC,SOCIAL SERVICES,CUSTOMER & CLIENT RECPTS - EXT,Revenue,RNCC,567845,152684120,14-Jan-15,-443.56,BUPA CARE SERVICES BACS RECEIPTS,SP0000644
WANDSWORTH COUNCIL,ASC,SOCIAL SERVICES,CUSTOMER & CLIENT RECPTS - EXT,Revenue,RNCC,567846,152684120,14-Jan-15,-443.56,BUPA CARE SERVICES BACS RECEIPTS,SP0000644
WANDSWORTH COUNCIL,ASC,SOCIAL SERVICES,CUSTOMER & CLIENT RECPTS - EXT,Revenue,RNCC,567848,152684120,14-Jan-15,-443.56,BUPA CARE SERVICES BACS RECEIPTS,SP0000644
WANDSWORTH COUNCIL,ASC,SOCIAL SERVICES,CUSTOMER & CLIENT RECPTS - EXT,Revenue,RNCC,567849,152684120,14-Jan-15,-443.56,BUPA CARE SERVICES BACS RECEIPTS,SP0000644
WANDSWORTH COUNCIL,ASC,SOCIAL SERVICES,CUSTOMER & CLIENT RECPTS - EXT,Revenue,RNCC,567851,152684120,14-Jan-15,-443.56,BUPA CARE SERVICES BACS RECEIPTS,SP0000644
WANDSWORTH COUNCIL,ASC,SOCIAL SERVICES,CUSTOMER & CLIENT RECPTS - EXT,Revenue,RNCC,567855,152684120,14-Jan-15,-443.56,BUPA CARE SERVICES BACS RECEIPTS,SP0000644
WANDSWORTH COUNCIL,ASC,SOCIAL SERVICES,CUSTOMER & CLIENT RECPTS - EXT,Revenue,RNCC,567856,152684120,14-Jan-15,-443.56,BUPA CARE SERVICES BACS RECEIPTS,SP0000644
WANDSWORTH COUNCIL,ASC,SOCIAL SERVICES,CUSTOMER & CLIENT RECPTS - EXT,Revenue,RNCC,567860,152684120,14-Jan-15,-443.56,BUPA CARE SERVICES BACS RECEIPTS,SP0000644
WANDSWORTH COUNCIL,ASC,SOCIAL SERVICES,CUSTOMER & CLIENT RECPTS - EXT,Revenue,RNCC,567862,152684120,14-Jan-15,-443.56,BUPA CARE SERVICES BACS RECEIPTS,SP0000644
WANDSWORTH COUNCIL,ASC,SOCIAL SERVICES,CUSTOMER & CLIENT RECPTS - EXT,Revenue,RNCC,567863,152684120,14-Jan-15,-443.56,BUPA CARE SERVICES BACS RECEIPTS,SP0000644
WANDSWORTH COUNCIL,ASC,SOCIAL SERVICES,CUSTOMER & CLIENT RECPTS - EXT,Revenue,RNCC,567865,152684120,14-Jan-15,-443.56,BUPA CARE SERVICES BACS RECEIPTS,SP0000644
WANDSWORTH COUNCIL,ASC,SOCIAL SERVICES,CUSTOMER & CLIENT RECPTS - EXT,Revenue,RNCC,567866,152684120,14-Jan-15,-443.56,BUPA CARE SERVICES BACS RECEIPTS,SP0000644
WANDSWORTH COUNCIL,ASC,SOCIAL SERVICES,CUSTOMER & CLIENT RECPTS - EXT,Revenue,RNCC,567867,152684120,14-Jan-15,-443.56,BUPA CARE SERVICES BACS RECEIPTS,SP0000644
WANDSWORTH COUNCIL,ASC,SOCIAL SERVICES,CUSTOMER & CLIENT RECPTS - EXT,Revenue,RNCC,567868,152684120,14-Jan-15,-443.56,BUPA CARE SERVICES BACS RECEIPTS,SP0000644
WANDSWORTH COUNCIL,ASC,SOCIAL SERVICES,CUSTOMER & CLIENT RECPTS - EXT,Revenue,RNCC,567872,152684120,14-Jan-15,-443.56,BUPA CARE SERVICES BACS RECEIPTS,SP0000644
WANDSWORTH COUNCIL,ASC,SOCIAL SERVICES,CUSTOMER & CLIENT RECPTS - EXT,Revenue,RNCC,567874,152684120,14-Jan-15,-443.56,BUPA CARE SERVICES BACS RECEIPTS,SP0000644
WANDSWORTH COUNCIL,ASC,SOCIAL SERVICES,CUSTOMER & CLIENT RECPTS - EXT,Revenue,RNCC,567876,152684120,14-Jan-15,-443.56,BUPA CARE SERVICES BACS RECEIPTS,SP0000644
WANDSWORTH COUNCIL,ASC,SOCIAL SERVICES,CUSTOMER & CLIENT RECPTS - EXT,Revenue,RNCC,567878,152684120,14-Jan-15,-443.56,BUPA CARE SERVICES BACS RECEIPTS,SP0000644
WANDSWORTH COUNCIL,ASC,SOCIAL SERVICES,CUSTOMER & CLIENT RECPTS - EXT,Revenue,RNCC,567880,152684120,14-Jan-15,-443.56,BUPA CARE SERVICES BACS RECEIPTS,SP0000644
WANDSWORTH COUNCIL,ASC,SOCIAL SERVICES,CUSTOMER & CLIENT RECPTS - EXT,Revenue,RNCC,567882,152684120,14-Jan-15,-617.82,BUPA CARE SERVICES BACS RECEIPTS,SP0000644
WANDSWORTH COUNCIL,ASC,SOCIAL SERVICES,CUSTOMER & CLIENT RECPTS - EXT,Revenue,RNCC,576818,152684120,23-Jan-15,-491.08,BUPA CARE SERVICES BACS RECEIPTS,SP0000644
WANDSWORTH COUNCIL,ASC,SOCIAL SERVICES,PRIVATE,Revenue,EXTERNAL NURSING CARE,567847,152845310,14-Jan-15,"2,980.60",BUPA CARE SERVICES BACS RECEIPTS,SP0000644
WANDSWORTH COUNCIL,ASC,SOCIAL SERVICES,PRIVATE,Revenue,EXTERNAL NURSING CARE,567864,152845310,14-Jan-15,"2,980.60",BUPA CARE SERVICES BACS RECEIPTS,SP0000644
WANDSWORTH COUNCIL,ASC,SOCIAL SERVICES,PRIVATE,Revenue,EXTERNAL NURSING CARE,567871,152845310,14-Jan-15,"2,980.60",BUPA CARE SERVICES BACS RECEIPTS,SP0000644
WANDSWORTH COUNCIL,ASC,SOCIAL SERVICES,PRIVATE,Revenue,EXTERNAL RESIDENTIAL CARE,567857,152845330,14-Jan-15,"2,401.20",BUPA CARE SERVICES BACS RECEIPTS,SP0000644
WANDSWORTH COUNCIL,ASC,SOCIAL SERVICES,CUSTOMER & CLIENT RECPTS - EXT,Revenue,CL CONT EXTERNAL RESIDENTIAL,567857,152880720,14-Jan-15,-621.84,BUPA CARE SERVICES BACS RECEIPTS,SP0000644
WANDSWORTH COUNCIL,ASC,SOCIAL SERVICES,CUSTOMER & CLIENT RECPTS - EXT,Revenue,CLIENT CONTS EXTERNAL NURSING,567847,152880820,14-Jan-15,"-1,208.32",BUPA CARE SERVICES BACS RECEIPTS,SP0000644
WANDSWORTH COUNCIL,ASC,SOCIAL SERVICES,CUSTOMER & CLIENT RECPTS - EXT,Revenue,CLIENT CONTS EXTERNAL NURSING,567864,152880820,14-Jan-15,-603.56,BUPA CARE SERVICES BACS RECEIPTS,SP0000644
WANDSWORTH COUNCIL,ASC,SOCIAL SERVICES,CUSTOMER & CLIENT RECPTS - EXT,Revenue,RNCC,567847,152884120,14-Jan-15,-443.56,BUPA CARE SERVICES BACS RECEIPTS,SP0000644
WANDSWORTH COUNCIL,ASC,SOCIAL SERVICES,CUSTOMER & CLIENT RECPTS - EXT,Revenue,RNCC,567864,152884120,14-Jan-15,-443.56,BUPA CARE SERVICES BACS RECEIPTS,SP0000644
WANDSWORTH COUNCIL,ASC,SOCIAL SERVICES,CUSTOMER & CLIENT RECPTS - EXT,Revenue,RNCC,567871,152884120,14-Jan-15,-443.56,BUPA CARE SERVICES BACS RECEIPTS,SP0000644
WANDSWORTH COUNCIL,ASC,SOCIAL SERVICES,PRIVATE,Revenue,EXTERNAL NURSING CARE,567841,162645310,14-Jan-15,"2,980.60",BUPA CARE SERVICES BACS RECEIPTS,SP0000644
WANDSWORTH COUNCIL,ASC,SOCIAL SERVICES,PRIVATE,Revenue,EXTERNAL NURSING CARE,567883,162645310,14-Jan-15,"6,030.34",BUPA CARE SERVICES BACS RECEIPTS,SP0000644
WANDSWORTH COUNCIL,ASC,SOCIAL SERVICES,CUSTOMER & CLIENT RECPTS - EXT,Revenue,CLIENT CONTS EXTERNAL NURSING,567841,162680820,14-Jan-15,"-1,001.44",BUPA CARE SERVICES BACS RECEIPTS,SP0000644
WANDSWORTH COUNCIL,ASC,SOCIAL SERVICES,CUSTOMER & CLIENT RECPTS - EXT,Revenue,CLIENT CONTS EXTERNAL NURSING,567883,162680820,14-Jan-15,-941.06,BUPA CARE SERVICES BACS RECEIPTS,SP0000644
WANDSWORTH COUNCIL,ASC,SOCIAL SERVICES,CUSTOMER & CLIENT RECPTS - EXT,Revenue,RNCC,567841,162684120,14-Jan-15,-443.56,BUPA CARE SERVICES BACS RECEIPTS,SP0000644
WANDSWORTH COUNCIL,ASC,SOCIAL SERVICES,PRIVATE,Revenue,EXTERNAL NURSING CARE,567881,162845310,14-Jan-15,"2,791.79",BUPA CARE SERVICES BACS RECEIPTS,SP0000644
WANDSWORTH COUNCIL,ASC,SOCIAL SERVICES,CUSTOMER & CLIENT RECPTS - EXT,Revenue,CLIENT CONTS EXTERNAL NURSING,567881,162880820,14-Jan-15,-264.27,BUPA CARE SERVICES BACS RECEIPTS,SP0000644
WANDSWORTH COUNCIL,ASC,SOCIAL SERVICES,CUSTOMER & CLIENT RECPTS - EXT,Revenue,RNCC,567881,162884120,14-Jan-15,-411.88,BUPA CARE SERVICES BACS RECEIPTS,SP0000644
WANDSWORTH COUNCIL,CES,CHILDREN'S,SERVICES,Revenue,2 YR NURSERY PLACES,7014962,220034000,15-Jan-15,"6,987.80",BUSY BEES DAY NURSERIES LTD,2000698
WANDSWORTH COUNCIL,CES,CHILDREN'S,GRANTS & SUBSCRIPTIONS,Revenue,GRANTS EARLY YRS PROVIDRS 3YR+,7014962,220037530,15-Jan-15,"6,847.70",BUSY BEES DAY NURSERIES LTD,2000698
WANDSWORTH COUNCIL,CES,CHILDREN'S,GRANTS & SUBSCRIPTIONS,Revenue,GRANTS EARLY YRS PROVIDRS 4YR+,7014962,220037540,15-Jan-15,"2,310.00",BUSY BEES DAY NURSERIES LTD,2000698
WANDSWORTH COUNCIL,ASC,SOCIAL SERVICES,PRIVATE,Revenue,EXTERNAL RESIDENTIAL CARE,581223,140545330,30-Jan-15,"10,511.04",BUTTERFLYS CARE HOMES LTD,SP0008006
WANDSWORTH COUNCIL,ASC,SOCIAL SERVICES,PRIVATE,Revenue,EXTERNAL RESIDENTIAL CARE,581224,140545330,30-Jan-15,"10,511.04",BUTTERFLYS CARE HOMES LTD,SP0008006
WANDSWORTH COUNCIL,ASC,SOCIAL SERVICES,OTHER AGENCIES,Revenue,EXTERNAL OUTREACH,566742,130243330,13-Jan-15,"2,185.32",C M CARE LTD,SP0000455
WANDSWORTH COUNCIL,ASC,SOCIAL SERVICES,OTHER AGENCIES,Revenue,EXTERNAL OUTREACH,566744,130243330,13-Jan-15,936.00,C M CARE LTD,SP0000455
WANDSWORTH COUNCIL,ASC,SOCIAL SERVICES,OTHER AGENCIES,Revenue,EXTERNAL OUTREACH,566745,130243330,13-Jan-15,"1,287.20",C M CARE LTD,SP0000455
WANDSWORTH COUNCIL,ASC,SOCIAL SERVICES,OTHER AGENCIES,Revenue,EXTERNAL OUTREACH,566747,130243330,13-Jan-15,576.00,C M CARE LTD,SP0000455
WANDSWORTH COUNCIL,ASC,SOCIAL SERVICES,OTHER AGENCIES,Revenue,EXTERNAL OUTREACH,566748,130243330,13-Jan-15,"1,540.00",C M CARE LTD,SP0000455
WANDSWORTH COUNCIL,ASC,SOCIAL SERVICES,VOL ASS,Revenue,SUPPORTED HOUSING PROGRAMME,566746,130248030,13-Jan-15,"1,687.76",C M CARE LTD,SP0000455
WANDSWORTH COUNCIL,ASC,SOCIAL SERVICES,VOL ASS,Revenue,SUPPORTED HOUSING PROGRAMME,566593,142048030,13-Jan-15,"1,218.40",C M CARE LTD,SP0000455
WANDSWORTH COUNCIL,ASC,SOCIAL SERVICES,VOL ASS,Revenue,SUPPORTED HOUSING PROGRAMME,566594,142048030,13-Jan-15,473.20,C M CARE LTD,SP0000455
WANDSWORTH COUNCIL,ASC,SOCIAL SERVICES,VOL ASS,Revenue,SUPPORTED HOUSING PROGRAMME,566602,142048030,13-Jan-15,432.00,C M CARE LTD,SP0000455
WANDSWORTH COUNCIL,ASC,SOCIAL SERVICES,VOL ASS,Revenue,SUPPORTED HOUSING PROGRAMME,566603,142148030,13-Jan-15,"1,896.36",C M CARE LTD,SP0000455
WANDSWORTH COUNCIL,ASC,SOCIAL SERVICES,VOL ASS,Revenue,SUPPORTED HOUSING PROGRAMME,566596,142248030,13-Jan-15,"1,516.56",C M CARE LTD,SP0000455
WANDSWORTH COUNCIL,ASC,SOCIAL SERVICES,VOL ASS,Revenue,SUPPORTED HOUSING PROGRAMME,566598,142248030,13-Jan-15,"1,516.56",C M CARE LTD,SP0000455
WANDSWORTH COUNCIL,ASC,SOCIAL SERVICES,VOL ASS,Revenue,SUPPORTED HOUSING PROGRAMME,566604,142248030,13-Jan-15,"1,516.56",C M CARE LTD,SP0000455
WANDSWORTH COUNCIL,ASC,SOCIAL SERVICES,VOL ASS,Revenue,SUPPORTED HOUSING PROGRAMME,566597,142548030,13-Jan-15,"1,583.16",C M CARE LTD,SP0000455
WANDSWORTH COUNCIL,ASC,SOCIAL SERVICES,VOL ASS,Revenue,SUPPORTED HOUSING PROGRAMME,566605,142548030,13-Jan-15,"2,281.64",C M CARE LTD,SP0000455
WANDSWORTH COUNCIL,ASC,SOCIAL SERVICES,VOL ASS,Revenue,SUPPORTED HOUSING PROGRAMME,566606,142548030,13-Jan-15,"1,692.00",C M CARE LTD,SP0000455
WANDSWORTH COUNCIL,ASC,SOCIAL SERVICES,VOL ASS,Revenue,SUPPORTED HOUSING PROGRAMME,566607,142548030,13-Jan-15,"1,692.00",C M CARE LTD,SP0000455
WANDSWORTH COUNCIL,ASC,SOCIAL SERVICES,VOL ASS,Revenue,SUPPORTED HOUSING PROGRAMME,566595,142648030,13-Jan-15,"1,516.56",C M CARE LTD,SP0000455
WANDSWORTH COUNCIL,NGF CS,ADMINISTRATION,COMMUNICATIONS & COMP,Revenue,CALLS USAGE,20299478,126236050,22-Jan-15,"1,641.85",CABLE & WIRELESS COMMUNICATIONS,2009023
WANDSWORTH COUNCIL,NGF CS,ADMINISTRATION,"EQUIPMENT, FURNITURE & MATS",Revenue,"EQUIPMENT, FURNITURE & MATS",20298727,126330000,08-Jan-15,"1,055.25",CABLE & WIRELESS COMMUNICATIONS,2009023
WANDSWORTH COUNCIL,NGF CS,ADMINISTRATION,"EQUIPMENT, FURNITURE & MATS",Revenue,"EQUIPMENT, FURNITURE & MATS",20298728,126330000,08-Jan-15,"1,055.25",CABLE & WIRELESS COMMUNICATIONS,2009023
WANDSWORTH COUNCIL,NGF CS,ADMINISTRATION,"EQUIPMENT, FURNITURE & MATS",Revenue,"EQUIPMENT, FURNITURE & MATS",20299478,126330000,22-Jan-15,385.50,CABLE & WIRELESS COMMUNICATIONS,2009023
WANDSWORTH COUNCIL,CES,ENVIRONMENT & COMMUNITY,STUDENTS,Revenue,GRANTS-YOUNG PEOPLE,566017,352251010,12-Jan-15,825.00,CAIUS HOUSE,SP0002262
WANDSWORTH COUNCIL,NGF HTS,ENVIRONMENT & COMMUNITY,"EQUIPMENT, FURNITURE & MATS",Revenue,"EQUIPMENT, FURNITURE & MATS",562584,471030000,06-Jan-15,509.67,CALOR GAS LIMITED,SP0002695
WANDSWORTH COUNCIL,ASC,SOCIAL SERVICES,OTHER AGENCIES,Revenue,ENABLERS/EDUCATION FEES,562953,130243280,06-Jan-15,"11,024.00",CAMBIAN WHINFELL SCHOOL LTD,SP0008913
WANDSWORTH COUNCIL,ASC,SOCIAL SERVICES,PRIVATE,Revenue,EXTERNAL RESIDENTIAL CARE,561785,130245330,05-Jan-15,"4,689.36",CAMERON LODGE LIMITED,SP0000271
WANDSWORTH COUNCIL,ASC,SOCIAL SERVICES,CUSTOMER & CLIENT RECPTS - EXT,Revenue,CL CONT EXTERNAL RESIDENTIAL,561785,130280720,05-Jan-15,-622.48,CAMERON LODGE LIMITED,SP0000271
WANDSWORTH COUNCIL,CES,CHILDREN'S,PRIVATE,Revenue,INDEPENDENT - DAY & BOARDING,575342,221445400,22-Jan-15,"3,333.88",CANBURY SCHOOL LTD,SP0001502
WANDSWORTH COUNCIL,CES,CHILDREN'S,PRIVATE,Revenue,INDEPENDENT - DAY & BOARDING,580617,221445400,29-Jan-15,"5,896.52",CANBURY SCHOOL LTD,SP0001502
WANDSWORTH COUNCIL,NGF CS,ENVIRONMENT & COMMUNITY,"EQUIPMENT, FURNITURE & MATS",Revenue,OP COSTS -COLOUR COPIER RENTAL,567421,121430240,14-Jan-15,732.28,CANON,SP0002304
WANDSWORTH COUNCIL,NGF HS,ENVIRONMENT & COMMUNITY,PRINTING STAT & GEN OFFICE EXP,Revenue,PHOTOCOPYING,567221,406333380,14-Jan-15,919.81,CANON (UK) LTD,SP0000262
WANDSWORTH COUNCIL,NGF HS,ENVIRONMENT & COMMUNITY,PRINTING STAT & GEN OFFICE EXP,Revenue,PHOTOCOPYING,574602,406333380,22-Jan-15,583.20,CANON (UK) LTD,SP0000262
WANDSWORTH COUNCIL,NGF HS,ENVIRONMENT & COMMUNITY,PRINTING STAT & GEN OFFICE EXP,Revenue,PHOTOCOPYING,574613,406333380,22-Jan-15,554.41,CANON (UK) LTD,SP0000262
WANDSWORTH COUNCIL,NGF HS,ENVIRONMENT & COMMUNITY,COMMUNICATIONS & COMP,Revenue,I.T. EQUIPMENT & MAINTENANCE,574610,408636210,22-Jan-15,454.23,CANON (UK) LTD,SP0000262
WANDSWORTH COUNCIL,CS,ENVIRONMENT & COMMUNITY,HEALTH,Revenue,THIRD PARTY PYMT - HEALTH,548459,128041130,08-Jan-15,734.50,CANTERBURY PHARMACIES LTD,SP0007593
WANDSWORTH COUNCIL,HS,HOUSING,PRIVATE,Revenue,B&B PAYMENTS,20299086,411745080,14-Jan-15,"3,465.00",CAPHALL LTD,2013660
WANDSWORTH COUNCIL,HS,HOUSING,PRIVATE,Revenue,B&B PAYMENTS,20299361,411745080,19-Jan-15,"12,665.00",CAPHALL LTD,2013660
WANDSWORTH COUNCIL,HS,HOUSING,PRIVATE,Revenue,B&B PAYMENTS,20299438,411745080,21-Jan-15,"1,240.00",CAPHALL LTD,2013660
WANDSWORTH COUNCIL,CES,CHILDREN'S,OTHER AGENCIES,Revenue,EXTERNAL FOSTERING,580607,360743310,29-Jan-15,"3,279.92",CAPITAL CARE & FORSTER LTD,SP0005618
WANDSWORTH COUNCIL,NGF HTS,ENVIRONMENT & COMMUNITY,"EQUIPMENT, FURNITURE & MATS",Revenue,"EQUIPMENT, FURNITURE & MATS",562585,471030000,06-Jan-15,435.00,CAPPAGH PUBLIC WORKS LTD,SP0002211
WANDSWORTH COUNCIL,NGF HTS,ENVIRONMENT & COMMUNITY,"EQUIPMENT, FURNITURE & MATS",Revenue,"EQUIPMENT, FURNITURE & MATS",562586,471030000,06-Jan-15,"1,500.00",CAPPAGH PUBLIC WORKS LTD,SP0002211
WANDSWORTH COUNCIL,NGF HTS,ENVIRONMENT & COMMUNITY,"EQUIPMENT, FURNITURE & MATS",Revenue,"EQUIPMENT, FURNITURE & MATS",562587,471030000,06-Jan-15,580.00,CAPPAGH PUBLIC WORKS LTD,SP0002211
WANDSWORTH COUNCIL,NGF HTS,ENVIRONMENT & COMMUNITY,"EQUIPMENT, FURNITURE & MATS",Revenue,"EQUIPMENT, FURNITURE & MATS",562588,471030000,06-Jan-15,875.00,CAPPAGH PUBLIC WORKS LTD,SP0002211
WANDSWORTH COUNCIL,NGF HTS,ENVIRONMENT & COMMUNITY,"EQUIPMENT, FURNITURE & MATS",Revenue,"EQUIPMENT, FURNITURE & MATS",562589,471030000,06-Jan-15,"1,150.00",CAPPAGH PUBLIC WORKS LTD,SP0002211
WANDSWORTH COUNCIL,NGF HTS,ENVIRONMENT & COMMUNITY,"EQUIPMENT, FURNITURE & MATS",Revenue,"EQUIPMENT, FURNITURE & MATS",574664,471030000,22-Jan-15,"1,525.00",CAPPAGH PUBLIC WORKS LTD,SP0002211
WANDSWORTH COUNCIL,NGF HTS,ENVIRONMENT & COMMUNITY,"EQUIPMENT, FURNITURE & MATS",Revenue,"EQUIPMENT, FURNITURE & MATS",574665,471030000,22-Jan-15,"1,015.00",CAPPAGH PUBLIC WORKS LTD,SP0002211
WANDSWORTH COUNCIL,BS,ENVIRONMENT & COMMUNITY,INVENTORIES,Revenue,BUILDING WORKS STORES,568223,6004B0020,14-Jan-15,611.10,CAPPAGH PUBLIC WORKS LTD,SP0002211
WANDSWORTH COUNCIL,BS,ENVIRONMENT & COMMUNITY,INVENTORIES,Revenue,BUILDING WORKS STORES,568223,6004B0020,14-Jan-15,297.99,CAPPAGH PUBLIC WORKS LTD,SP0002211
WANDSWORTH COUNCIL,CES,CHILDREN'S,OTHER AGENCIES,Revenue,EXTERNAL PERMANENCY,566954,360743340,13-Jan-15,"3,764.33",CAPSTONE FOSTER CARE,SP0000892
WANDSWORTH COUNCIL,CES,CHILDREN'S,OTHER AGENCIES,Revenue,EXTERNAL PERMANENCY,566963,360743340,13-Jan-15,"3,764.33",CAPSTONE FOSTER CARE,SP0000892
WANDSWORTH COUNCIL,ASC,SOCIAL SERVICES,PRIVATE,Revenue,EXTERNAL HOMECARE,565600,152445300,09-Jan-15,543.27,CARE OUTLOOK LTD,SP0001545
WANDSWORTH COUNCIL,ASC,SOCIAL SERVICES,PRIVATE,Revenue,EXTERNAL HOMECARE,565609,152445300,09-Jan-15,968.74,CARE OUTLOOK LTD,SP0001545
WANDSWORTH COUNCIL,ASC,SOCIAL SERVICES,PRIVATE,Revenue,EXTERNAL HOMECARE,565621,152445300,09-Jan-15,835.77,CARE OUTLOOK LTD,SP0001545
WANDSWORTH COUNCIL,ASC,SOCIAL SERVICES,PRIVATE,Revenue,EXTERNAL HOMECARE,565656,152445300,09-Jan-15,778.60,CARE OUTLOOK LTD,SP0001545
WANDSWORTH COUNCIL,ASC,SOCIAL SERVICES,PRIVATE,Revenue,EXTERNAL HOMECARE,578060,152445300,27-Jan-15,796.92,CARE OUTLOOK LTD,SP0001545
WANDSWORTH COUNCIL,ASC,SOCIAL SERVICES,PRIVATE,Revenue,EXTERNAL HOMECARE,578061,152445300,27-Jan-15,537.32,CARE OUTLOOK LTD,SP0001545
WANDSWORTH COUNCIL,ASC,SOCIAL SERVICES,PRIVATE,Revenue,EXTERNAL HOMECARE,578062,152445300,27-Jan-15,796.92,CARE OUTLOOK LTD,SP0001545
WANDSWORTH COUNCIL,ASC,SOCIAL SERVICES,PRIVATE,Revenue,EXTERNAL HOMECARE,578083,152445300,27-Jan-15,507.08,CARE OUTLOOK LTD,SP0001545
WANDSWORTH COUNCIL,ASC,SOCIAL SERVICES,PRIVATE,Revenue,EXTERNAL HOMECARE,565596,152645300,09-Jan-15,983.90,CARE OUTLOOK LTD,SP0001545
WANDSWORTH COUNCIL,ASC,SOCIAL SERVICES,PRIVATE,Revenue,EXTERNAL HOMECARE,565602,152645300,09-Jan-15,739.57,CARE OUTLOOK LTD,SP0001545
WANDSWORTH COUNCIL,ASC,SOCIAL SERVICES,PRIVATE,Revenue,EXTERNAL HOMECARE,565604,152645300,09-Jan-15,507.07,CARE OUTLOOK LTD,SP0001545
WANDSWORTH COUNCIL,ASC,SOCIAL SERVICES,PRIVATE,Revenue,EXTERNAL HOMECARE,565611,152645300,09-Jan-15,582.44,CARE OUTLOOK LTD,SP0001545
WANDSWORTH COUNCIL,ASC,SOCIAL SERVICES,PRIVATE,Revenue,EXTERNAL HOMECARE,565614,152645300,09-Jan-15,597.73,CARE OUTLOOK LTD,SP0001545
WANDSWORTH COUNCIL,ASC,SOCIAL SERVICES,PRIVATE,Revenue,EXTERNAL HOMECARE,565615,152645300,09-Jan-15,845.28,CARE OUTLOOK LTD,SP0001545
WANDSWORTH COUNCIL,ASC,SOCIAL SERVICES,PRIVATE,Revenue,EXTERNAL HOMECARE,565616,152645300,09-Jan-15,712.14,CARE OUTLOOK LTD,SP0001545
WANDSWORTH COUNCIL,ASC,SOCIAL SERVICES,PRIVATE,Revenue,EXTERNAL HOMECARE,565619,152645300,09-Jan-15,787.77,CARE OUTLOOK LTD,SP0001545
WANDSWORTH COUNCIL,ASC,SOCIAL SERVICES,PRIVATE,Revenue,EXTERNAL HOMECARE,565620,152645300,09-Jan-15,691.24,CARE OUTLOOK LTD,SP0001545
WANDSWORTH COUNCIL,ASC,SOCIAL SERVICES,PRIVATE,Revenue,EXTERNAL HOMECARE,565632,152645300,09-Jan-15,854.29,CARE OUTLOOK LTD,SP0001545
WANDSWORTH COUNCIL,ASC,SOCIAL SERVICES,PRIVATE,Revenue,EXTERNAL HOMECARE,565643,152645300,09-Jan-15,537.19,CARE OUTLOOK LTD,SP0001545
WANDSWORTH COUNCIL,ASC,SOCIAL SERVICES,PRIVATE,Revenue,EXTERNAL HOMECARE,565650,152645300,09-Jan-15,558.52,CARE OUTLOOK LTD,SP0001545
WANDSWORTH COUNCIL,ASC,SOCIAL SERVICES,PRIVATE,Revenue,EXTERNAL HOMECARE,565652,152645300,09-Jan-15,"1,595.99",CARE OUTLOOK LTD,SP0001545
WANDSWORTH COUNCIL,ASC,SOCIAL SERVICES,PRIVATE,Revenue,EXTERNAL HOMECARE,565653,152645300,09-Jan-15,"1,421.48",CARE OUTLOOK LTD,SP0001545
WANDSWORTH COUNCIL,ASC,SOCIAL SERVICES,PRIVATE,Revenue,EXTERNAL HOMECARE,565657,152645300,09-Jan-15,534.22,CARE OUTLOOK LTD,SP0001545
WANDSWORTH COUNCIL,ASC,SOCIAL SERVICES,PRIVATE,Revenue,EXTERNAL HOMECARE,565660,152645300,09-Jan-15,"2,577.13",CARE OUTLOOK LTD,SP0001545
WANDSWORTH COUNCIL,ASC,SOCIAL SERVICES,PRIVATE,Revenue,EXTERNAL HOMECARE,565668,152645300,09-Jan-15,512.90,CARE OUTLOOK LTD,SP0001545
WANDSWORTH COUNCIL,ASC,SOCIAL SERVICES,PRIVATE,Revenue,EXTERNAL HOMECARE,565674,152645300,09-Jan-15,564.52,CARE OUTLOOK LTD,SP0001545
WANDSWORTH COUNCIL,ASC,SOCIAL SERVICES,PRIVATE,Revenue,EXTERNAL HOMECARE,565683,152645300,09-Jan-15,585.60,CARE OUTLOOK LTD,SP0001545
WANDSWORTH COUNCIL,ASC,SOCIAL SERVICES,PRIVATE,Revenue,EXTERNAL HOMECARE,565684,152645300,09-Jan-15,"1,825.87",CARE OUTLOOK LTD,SP0001545
WANDSWORTH COUNCIL,ASC,SOCIAL SERVICES,PRIVATE,Revenue,EXTERNAL HOMECARE,565686,152645300,09-Jan-15,"1,192.08",CARE OUTLOOK LTD,SP0001545
WANDSWORTH COUNCIL,ASC,SOCIAL SERVICES,PRIVATE,Revenue,EXTERNAL HOMECARE,569404,152645300,16-Jan-15,518.80,CARE OUTLOOK LTD,SP0001545
WANDSWORTH COUNCIL,ASC,SOCIAL SERVICES,PRIVATE,Revenue,EXTERNAL HOMECARE,578076,152645300,27-Jan-15,990.16,CARE OUTLOOK LTD,SP0001545
WANDSWORTH COUNCIL,ASC,SOCIAL SERVICES,PRIVATE,Revenue,EXTERNAL HOMECARE,578080,152645300,27-Jan-15,821.04,CARE OUTLOOK LTD,SP0001545
WANDSWORTH COUNCIL,ASC,SOCIAL SERVICES,PRIVATE,Revenue,EXTERNAL HOMECARE,578082,152645300,27-Jan-15,676.48,CARE OUTLOOK LTD,SP0001545
WANDSWORTH COUNCIL,ASC,SOCIAL SERVICES,PRIVATE,Revenue,EXTERNAL HOMECARE,578086,152645300,27-Jan-15,"2,124.32",CARE OUTLOOK LTD,SP0001545
WANDSWORTH COUNCIL,ASC,SOCIAL SERVICES,PRIVATE,Revenue,EXTERNAL HOMECARE,578087,152645300,27-Jan-15,893.32,CARE OUTLOOK LTD,SP0001545
WANDSWORTH COUNCIL,ASC,SOCIAL SERVICES,PRIVATE,Revenue,EXTERNAL HOMECARE,578088,152645300,27-Jan-15,"1,618.08",CARE OUTLOOK LTD,SP0001545
WANDSWORTH COUNCIL,ASC,SOCIAL SERVICES,PRIVATE,Revenue,EXTERNAL HOMECARE,578328,152645300,27-Jan-15,905.25,CARE OUTLOOK LTD,SP0001545
WANDSWORTH COUNCIL,ASC,SOCIAL SERVICES,"CLOTHING, UNIFORM & LAUNDRY",Revenue,EXTERNAL LAUNDRY,564881,152831520,09-Jan-15,805.00,CARE OUTLOOK LTD,SP0001545
WANDSWORTH COUNCIL,ASC,SOCIAL SERVICES,PRIVATE,Revenue,EXTERNAL HOMECARE,565597,162445300,09-Jan-15,651.97,CARE OUTLOOK LTD,SP0001545
WANDSWORTH COUNCIL,ASC,SOCIAL SERVICES,OTHER AGENCIES,Revenue,ENABLERS/EDUCATION FEES,565676,162643280,09-Jan-15,434.52,CARE OUTLOOK LTD,SP0001545
WANDSWORTH COUNCIL,ASC,SOCIAL SERVICES,PRIVATE,Revenue,EXTERNAL HOMECARE,565676,162645300,09-Jan-15,"1,086.60",CARE OUTLOOK LTD,SP0001545
WANDSWORTH COUNCIL,ASC,SOCIAL SERVICES,PRIVATE,Revenue,EXTERNAL NURSING CARE,569311,130245310,16-Jan-15,"27,217.30",CARE UK COMMUNITY PARTNERSHIP,SP0001022
WANDSWORTH COUNCIL,ASC,SOCIAL SERVICES,CUSTOMER & CLIENT RECPTS - EXT,Revenue,CLIENT CONTS EXTERNAL NURSING,569311,130280820,16-Jan-15,"-4,365.22",CARE UK COMMUNITY PARTNERSHIP,SP0001022
WANDSWORTH COUNCIL,ASC,SOCIAL SERVICES,CUSTOMER & CLIENT RECPTS - EXT,Revenue,RNCC,569311,130284120,16-Jan-15,"-3,821.01",CARE UK COMMUNITY PARTNERSHIP,SP0001022
WANDSWORTH COUNCIL,ASC,SOCIAL SERVICES,PRIVATE,Revenue,EXTERNAL RESIDENTIAL CARE,570453,152245330,19-Jan-15,"3,321.43",CARE UK COMMUNITY PARTNERSHIP,SP0001022
WANDSWORTH COUNCIL,ASC,SOCIAL SERVICES,CUSTOMER & CLIENT RECPTS - EXT,Revenue,CL CONT EXTERNAL RESIDENTIAL,570453,152280720,19-Jan-15,-685.94,CARE UK COMMUNITY PARTNERSHIP,SP0001022
WANDSWORTH COUNCIL,ASC,SOCIAL SERVICES,PRIVATE,Revenue,EXTERNAL NURSING CARE,569321,152445310,16-Jan-15,"2,638.10",CARE UK COMMUNITY PARTNERSHIP,SP0001022
WANDSWORTH COUNCIL,ASC,SOCIAL SERVICES,CUSTOMER & CLIENT RECPTS - EXT,Revenue,CLIENT CONTS EXTERNAL NURSING,569321,152480820,16-Jan-15,-641.30,CARE UK COMMUNITY PARTNERSHIP,SP0001022
WANDSWORTH COUNCIL,ASC,SOCIAL SERVICES,CUSTOMER & CLIENT RECPTS - EXT,Revenue,RNCC,569321,152484120,16-Jan-15,-491.09,CARE UK COMMUNITY PARTNERSHIP,SP0001022
WANDSWORTH COUNCIL,ASC,SOCIAL SERVICES,PRIVATE,Revenue,EXTERNAL NURSING CARE,569332,152645310,16-Jan-15,"3,578.29",CARE UK COMMUNITY PARTNERSHIP,SP0001022
WANDSWORTH COUNCIL,ASC,SOCIAL SERVICES,CUSTOMER & CLIENT RECPTS - EXT,Revenue,CLIENT CONTS EXTERNAL NURSING,569332,152680820,16-Jan-15,-548.92,CARE UK COMMUNITY PARTNERSHIP,SP0001022
WANDSWORTH COUNCIL,ASC,SOCIAL SERVICES,CUSTOMER & CLIENT RECPTS - EXT,Revenue,RNCC,569332,152684120,16-Jan-15,-491.09,CARE UK COMMUNITY PARTNERSHIP,SP0001022
WANDSWORTH COUNCIL,ASC,SOCIAL SERVICES,PRIVATE,Revenue,EXTERNAL RESIDENTIAL CARE,570454,152845330,19-Jan-15,"3,321.43",CARE UK COMMUNITY PARTNERSHIP,SP0001022
WANDSWORTH COUNCIL,ASC,SOCIAL SERVICES,PRIVATE,Revenue,EXTERNAL HOMECARE,561887,142245300,05-Jan-15,610.47,CARE UK HOMECARE LTD,SP0000081
WANDSWORTH COUNCIL,ASC,SOCIAL SERVICES,PRIVATE,Revenue,EXTERNAL HOMECARE,561903,142245300,05-Jan-15,526.49,CARE UK HOMECARE LTD,SP0000081
WANDSWORTH COUNCIL,ASC,SOCIAL SERVICES,PRIVATE,Revenue,EXTERNAL HOMECARE,561901,152445300,05-Jan-15,691.22,CARE UK HOMECARE LTD,SP0000081
WANDSWORTH COUNCIL,ASC,SOCIAL SERVICES,PRIVATE,Revenue,EXTERNAL HOMECARE,567480,152445300,14-Jan-15,552.33,CARE UK HOMECARE LTD,SP0000081
WANDSWORTH COUNCIL,ASC,ENVIRONMENT & COMMUNITY,PRIVATE,Revenue,EXTERNAL HOMECARE,558703,152645300,21-Jan-15,"45,394.96",CARE UK HOMECARE LTD,SP0000081
WANDSWORTH COUNCIL,ASC,SOCIAL SERVICES,PRIVATE,Revenue,EXTERNAL HOMECARE,561862,152645300,05-Jan-15,781.66,CARE UK HOMECARE LTD,SP0000081
WANDSWORTH COUNCIL,ASC,SOCIAL SERVICES,PRIVATE,Revenue,EXTERNAL HOMECARE,561863,152645300,05-Jan-15,516.80,CARE UK HOMECARE LTD,SP0000081
WANDSWORTH COUNCIL,ASC,SOCIAL SERVICES,PRIVATE,Revenue,EXTERNAL HOMECARE,561875,152645300,05-Jan-15,"2,330.14",CARE UK HOMECARE LTD,SP0000081
WANDSWORTH COUNCIL,ASC,SOCIAL SERVICES,PRIVATE,Revenue,EXTERNAL HOMECARE,561878,152645300,05-Jan-15,581.40,CARE UK HOMECARE LTD,SP0000081
WANDSWORTH COUNCIL,ASC,SOCIAL SERVICES,PRIVATE,Revenue,EXTERNAL HOMECARE,561882,152645300,05-Jan-15,704.14,CARE UK HOMECARE LTD,SP0000081
WANDSWORTH COUNCIL,ASC,SOCIAL SERVICES,PRIVATE,Revenue,EXTERNAL HOMECARE,561893,152645300,05-Jan-15,678.30,CARE UK HOMECARE LTD,SP0000081
WANDSWORTH COUNCIL,ASC,SOCIAL SERVICES,PRIVATE,Revenue,EXTERNAL HOMECARE,561894,152645300,05-Jan-15,539.41,CARE UK HOMECARE LTD,SP0000081
WANDSWORTH COUNCIL,ASC,SOCIAL SERVICES,PRIVATE,Revenue,EXTERNAL HOMECARE,561896,152645300,05-Jan-15,516.80,CARE UK HOMECARE LTD,SP0000081
WANDSWORTH COUNCIL,ASC,SOCIAL SERVICES,PRIVATE,Revenue,EXTERNAL HOMECARE,561897,152645300,05-Jan-15,"1,233.86",CARE UK HOMECARE LTD,SP0000081
WANDSWORTH COUNCIL,ASC,SOCIAL SERVICES,PRIVATE,Revenue,EXTERNAL HOMECARE,561899,152645300,05-Jan-15,600.78,CARE UK HOMECARE LTD,SP0000081
WANDSWORTH COUNCIL,ASC,SOCIAL SERVICES,PRIVATE,Revenue,EXTERNAL HOMECARE,561902,152645300,05-Jan-15,801.04,CARE UK HOMECARE LTD,SP0000081
WANDSWORTH COUNCIL,ASC,SOCIAL SERVICES,PRIVATE,Revenue,EXTERNAL HOMECARE,561904,152645300,05-Jan-15,655.69,CARE UK HOMECARE LTD,SP0000081
WANDSWORTH COUNCIL,ASC,SOCIAL SERVICES,PRIVATE,Revenue,EXTERNAL HOMECARE,561905,152645300,05-Jan-15,687.99,CARE UK HOMECARE LTD,SP0000081
WANDSWORTH COUNCIL,ASC,SOCIAL SERVICES,PRIVATE,Revenue,EXTERNAL HOMECARE,561906,152645300,05-Jan-15,613.70,CARE UK HOMECARE LTD,SP0000081
WANDSWORTH COUNCIL,ASC,SOCIAL SERVICES,PRIVATE,Revenue,EXTERNAL HOMECARE,567463,152645300,14-Jan-15,639.54,CARE UK HOMECARE LTD,SP0000081
WANDSWORTH COUNCIL,ASC,SOCIAL SERVICES,PRIVATE,Revenue,EXTERNAL HOMECARE,567467,152645300,14-Jan-15,500.21,CARE UK HOMECARE LTD,SP0000081
WANDSWORTH COUNCIL,ASC,SOCIAL SERVICES,PRIVATE,Revenue,EXTERNAL HOMECARE,567477,152645300,14-Jan-15,642.80,CARE UK HOMECARE LTD,SP0000081
WANDSWORTH COUNCIL,ASC,SOCIAL SERVICES,PRIVATE,Revenue,EXTERNAL HOMECARE,567481,152645300,14-Jan-15,591.08,CARE UK HOMECARE LTD,SP0000081
WANDSWORTH COUNCIL,ASC,SOCIAL SERVICES,PRIVATE,Revenue,EXTERNAL HOMECARE,567502,152645300,14-Jan-15,"1,650.78",CARE UK HOMECARE LTD,SP0000081
WANDSWORTH COUNCIL,ASC,SOCIAL SERVICES,PRIVATE,Revenue,RESPITE CARE AT HOME -VOUCHERS,561875,152645510,05-Jan-15,215.10,CARE UK HOMECARE LTD,SP0000081
WANDSWORTH COUNCIL,ASC,SOCIAL SERVICES,PRIVATE,Revenue,RESPITE CARE AT HOME -VOUCHERS,567502,152645510,14-Jan-15,322.65,CARE UK HOMECARE LTD,SP0000081
WANDSWORTH COUNCIL,ASC,SOCIAL SERVICES,PRIVATE,Revenue,EXTERNAL HOMECARE,561864,162645300,05-Jan-15,594.32,CARE UK HOMECARE LTD,SP0000081
WANDSWORTH COUNCIL,ASC,SOCIAL SERVICES,PRIVATE,Revenue,EXTERNAL HOMECARE,561877,162645300,05-Jan-15,"1,185.41",CARE UK HOMECARE LTD,SP0000081
WANDSWORTH COUNCIL,ASC,SOCIAL SERVICES,PRIVATE,Revenue,EXTERNAL HOMECARE,567514,162845300,14-Jan-15,"1,173.99",CARE UK HOMECARE LTD,SP0000081
WANDSWORTH COUNCIL,ASC,SOCIAL SERVICES,PRIVATE,Revenue,EXTERNAL RESIDENTIAL CARE,578324,130245330,27-Jan-15,"6,060.62",CARE UK LEARNING DISABILITIES SERVICES L,SP0001039
WANDSWORTH COUNCIL,ASC,SOCIAL SERVICES,VOL ASS,Revenue,SUPPORTED HOUSING PROGRAMME,569435,130248030,16-Jan-15,"4,772.00",CARE UNLIMITED DOMCARE LIMITED,SP0005359
WANDSWORTH COUNCIL,ASC,SOCIAL SERVICES,PRIVATE,Revenue,EXTERNAL RESIDENTIAL CARE,569359,130245330,16-Jan-15,"3,631.96",CARE UNLIMITED GROUP LTD,SP0001575
WANDSWORTH COUNCIL,ASC,SOCIAL SERVICES,CUSTOMER & CLIENT RECPTS - EXT,Revenue,CL CONT EXTERNAL RESIDENTIAL,569359,130280720,16-Jan-15,-548.92,CARE UNLIMITED GROUP LTD,SP0001575
WANDSWORTH COUNCIL,BS,ENVIRONMENT & COMMUNITY,"HSG RENTS, HEATING & HOT WATER",Revenue,CAREY GARDENS CO-OP,577463,6017B6990,26-Jan-15,"100,489.59",CAREY GARDENS COOPERATIVE,SP0002625
WANDSWORTH COUNCIL,CES,ENVIRONMENT & COMMUNITY,OTHER AGENCIES,Revenue,THIRD PARTY PYMT - OTH AGENCIE,579268,346443800,29-Jan-15,505.80,CAROLINE ELLIS,SP0009112
WANDSWORTH COUNCIL,CES,CHILDREN'S,PRIVATE,Revenue,EXTERNAL RESIDENTIAL CARE,580613,376345330,29-Jan-15,"7,881.44",CASTLE HOME CARE LTD,SP0008346
WANDSWORTH COUNCIL,HS,SOCIAL SERVICES,OTHER AGENCIES,Revenue,SUPPORTING PEOPLE CONTRACTS,576722,175043590,23-Jan-15,"23,575.23",CATCH 22 WANDSWORTH INDEPENDENT LIVING S,SP0000947
WANDSWORTH COUNCIL,CES,ENVIRONMENT & COMMUNITY,DIRECT,Revenue,CARE LEAVER FORMER RELEVANT,573919,346150310,22-Jan-15,"4,083.52",CATCH 22 WANDSWORTH INDEPENDENT LIVING S,SP0000947
WANDSWORTH COUNCIL,CES,ENVIRONMENT & COMMUNITY,DIRECT,Revenue,CARE LEAVER FORMER RELEVANT,573920,346150310,22-Jan-15,"4,530.27",CATCH 22 WANDSWORTH INDEPENDENT LIVING S,SP0000947
WANDSWORTH COUNCIL,CES,ENVIRONMENT & COMMUNITY,DIRECT,Revenue,CARE LEAVER FORMER RELEVANT,573921,346150310,22-Jan-15,"2,633.39",CATCH 22 WANDSWORTH INDEPENDENT LIVING S,SP0000947
WANDSWORTH COUNCIL,CES,CHILDREN'S,HIRE,Revenue,INDEPENDENT SCH - TRANSPORT,20298653,301320420,05-Jan-15,983.55,CATHERINE WALKER,2012686
WANDSWORTH COUNCIL,NGF HS,HOUSING,"REPAIRS, ALTERATIONS & MTCE",Revenue,WATER BOOSTERS,576584,4WED49630,23-Jan-15,"2,180.21",CBS MAINTENANCE SERVICES LTD,SP0000773
WANDSWORTH COUNCIL,NGF HS,HOUSING,"REPAIRS, ALTERATIONS & MTCE",Revenue,WATER BOOSTERS,576599,4WED49630,23-Jan-15,"2,008.50",CBS MAINTENANCE SERVICES LTD,SP0000773
WANDSWORTH COUNCIL,NGF HS,HOUSING,"REPAIRS, ALTERATIONS & MTCE",Revenue,WATER BOOSTERS,576587,4WGK49630,23-Jan-15,555.43,CBS MAINTENANCE SERVICES LTD,SP0000773
WANDSWORTH COUNCIL,NGF HS,HOUSING,"REPAIRS, ALTERATIONS & MTCE",Revenue,WATER BOOSTERS,576585,4WYA49630,23-Jan-15,553.02,CBS MAINTENANCE SERVICES LTD,SP0000773
WANDSWORTH COUNCIL,NGF HS,HOUSING,"REPAIRS, ALTERATIONS & MTCE",Revenue,WATER BOOSTERS,578592,4YB649630,27-Jan-15,553.02,CBS MAINTENANCE SERVICES LTD,SP0000773
WANDSWORTH COUNCIL,NGF HS,HOUSING,"REPAIRS, ALTERATIONS & MTCE",Revenue,WATER BOOSTERS,578593,4YBB49630,27-Jan-15,553.02,CBS MAINTENANCE SERVICES LTD,SP0000773
WANDSWORTH COUNCIL,NGF HS,HOUSING,"REPAIRS, ALTERATIONS & MTCE",Revenue,WATER BOOSTERS,578591,4YE549630,27-Jan-15,553.02,CBS MAINTENANCE SERVICES LTD,SP0000773
WANDSWORTH COUNCIL,ASC,SOCIAL SERVICES,PRIVATE,Revenue,EXTERNAL NURSING CARE,569334,152445310,16-Jan-15,"3,578.29",CEDAR COURT (CRANLEIGH) CARE LTD,SP0001274
WANDSWORTH COUNCIL,ASC,SOCIAL SERVICES,CUSTOMER & CLIENT RECPTS - EXT,Revenue,CLIENT CONTS EXTERNAL NURSING,569334,152480820,16-Jan-15,-548.92,CEDAR COURT (CRANLEIGH) CARE LTD,SP0001274
WANDSWORTH COUNCIL,ASC,SOCIAL SERVICES,CUSTOMER & CLIENT RECPTS - EXT,Revenue,RNCC,569334,152484120,16-Jan-15,-491.09,CEDAR COURT (CRANLEIGH) CARE LTD,SP0001274
WANDSWORTH COUNCIL,ASC,SOCIAL SERVICES,PRIVATE,Revenue,EXTERNAL RESIDENTIAL CARE,562994,142245330,06-Jan-15,"2,829.19",CENTRAL AND CECIL HOUSING TRUST,SP0005413
WANDSWORTH COUNCIL,ASC,SOCIAL SERVICES,PRIVATE,Revenue,EXTERNAL RESIDENTIAL CARE,576819,142245330,23-Jan-15,"2,829.19",CENTRAL AND CECIL HOUSING TRUST,SP0005413
WANDSWORTH COUNCIL,NGF CS,ENVIRONMENT & COMMUNITY,INDIRECT,Revenue,TRAINING - EXTERNAL COURSES,569978,120100770,21-Jan-15,"1,000.00",CENTRAL LAW TRAINING LTD,SP0002448
WANDSWORTH COUNCIL,NGF CS,ENVIRONMENT & COMMUNITY,INDIRECT,Revenue,TRAINING - EXTERNAL COURSES,569979,120100770,21-Jan-15,450.00,CENTRAL LAW TRAINING LTD,SP0002448
WANDSWORTH COUNCIL,CES,CHILDREN'S,PRIVATE,Revenue,INDEPENDENT - DAY & BOARDING,580618,221445400,29-Jan-15,507.00,CENTRAL LONDON COMMUNITY HEALTHCARE NHS,SP0005900
WANDSWORTH COUNCIL,CES,CHILDREN'S,PRIVATE,Revenue,INDEPENDENT - DAY & BOARDING,580619,221445400,29-Jan-15,506.00,CENTRAL LONDON COMMUNITY HEALTHCARE NHS,SP0005900
WANDSWORTH COUNCIL,CRS,ENVIRONMENT & COMMUNITY,PRIVATE,Revenue,GENERAL CONTRACT WORK,573440,383345370,26-Jan-15,"14,008.74",CENTRAL MANAGEMENT SOLUTIONS LTD,SP0008224
WANDSWORTH COUNCIL,HS,SOCIAL SERVICES,OTHER AGENCIES,Revenue,SUPPORTING PEOPLE CONTRACTS,576723,175043590,23-Jan-15,"2,491.72",CENTREPOINT,SP0000102
WANDSWORTH COUNCIL,ASC,SOCIAL SERVICES,PRIVATE,Revenue,EXTERNAL RESIDENTIAL CARE,562981,130245330,06-Jan-15,"3,975.08",CENTRUST CARE HOMES LTD,SP0000141
WANDSWORTH COUNCIL,ASC,SOCIAL SERVICES,CUSTOMER & CLIENT RECPTS - EXT,Revenue,CL CONT EXTERNAL RESIDENTIAL,562981,130280720,06-Jan-15,-353.62,CENTRUST CARE HOMES LTD,SP0000141
WANDSWORTH COUNCIL,CS,FINANCE,PRIVATE,Revenue,BAILIFF SERVICES,20298753,381245100,08-Jan-15,"4,560.20",CHANDLERS LTD,2001281
WANDSWORTH COUNCIL,CS,FINANCE,PRIVATE,Revenue,BAILIFF SERVICES,20298753,381245100,08-Jan-15,"-4,560.20",CHANDLERS LTD,2001281
WANDSWORTH COUNCIL,CS,FINANCE,PRIVATE,Revenue,BAILIFF SERVICES,20299716,381245100,26-Jan-15,"4,544.75",CHANDLERS LTD,2001281
WANDSWORTH COUNCIL,CS,FINANCE,PRIVATE,Revenue,BAILIFF SERVICES,20299716,381245100,26-Jan-15,"-4,544.75",CHANDLERS LTD,2001281
WANDSWORTH COUNCIL,NGF HTS,ENVIRONMENT & COMMUNITY,"EQUIPMENT, FURNITURE & MATS",Revenue,"EQUIPMENT, FURNITURE & MATS",579663,471030000,29-Jan-15,"2,245.50",CHARLES WILSON ENGINEERS LTD,SP0005714
WANDSWORTH COUNCIL,CRS,ENVIRONMENT & COMMUNITY,SERVICES,Revenue,PROJECT WORK,578246,441134800,28-Jan-15,591.45,CHARLIE DUCK,SP0009059
WANDSWORTH COUNCIL,PH,ENVIRONMENT & COMMUNITY,INDIRECT,Revenue,TRAINING - EXTERNAL COURSES,573470,345800770,22-Jan-15,"2,000.00",CHARLINE WILSON,SP0006579
WANDSWORTH COUNCIL,BS,ENVIRONMENT & COMMUNITY,"HSG RENTS, HEATING & HOT WATER",Revenue,CHATHAM COURT CO-OP,567243,6017B2650,14-Jan-15,"2,636.75",CHATHAM COURT CO-OPERATIVE LTD,SP0007227
WANDSWORTH COUNCIL,ASC,SOCIAL SERVICES,PRIVATE,Revenue,EXTERNAL DAYCARE,575280,130245290,22-Jan-15,942.23,CHATSWORTH CARE,SP0000831
WANDSWORTH COUNCIL,ASC,SOCIAL SERVICES,PRIVATE,Revenue,EXTERNAL DAYCARE,580540,130245290,29-Jan-15,911.84,CHATSWORTH CARE,SP0000831
WANDSWORTH COUNCIL,ASC,SOCIAL SERVICES,PRIVATE,Revenue,EXTERNAL RESIDENTIAL CARE,574788,130245330,22-Jan-15,"7,959.25",CHATSWORTH CARE,SP0000831
WANDSWORTH COUNCIL,ASC,SOCIAL SERVICES,CUSTOMER & CLIENT RECPTS - EXT,Revenue,CL CONT EXTERNAL RESIDENTIAL,574788,130280720,22-Jan-15,-401.67,CHATSWORTH CARE,SP0000831
WANDSWORTH COUNCIL,ASC,SOCIAL SERVICES,PRIVATE,Revenue,EXTERNAL RESIDENTIAL CARE,576840,152245330,23-Jan-15,"2,768.96",CHD CARE LTD,SP0008523
WANDSWORTH COUNCIL,ASC,SOCIAL SERVICES,CUSTOMER & CLIENT RECPTS - EXT,Revenue,CL CONT EXTERNAL RESIDENTIAL,576840,152280720,23-Jan-15,-548.92,CHD CARE LTD,SP0008523
WANDSWORTH COUNCIL,ASC,SOCIAL SERVICES,PRIVATE,Revenue,EXTERNAL NURSING CARE,570447,152245310,19-Jan-15,"2,787.60",CHEGWORTH NURSING HOME (BAYSWIFT LTD),SP0000667
WANDSWORTH COUNCIL,ASC,SOCIAL SERVICES,PRIVATE,Revenue,EXTERNAL NURSING CARE,570448,152245310,19-Jan-15,"2,787.60",CHEGWORTH NURSING HOME (BAYSWIFT LTD),SP0000667
WANDSWORTH COUNCIL,ASC,SOCIAL SERVICES,PRIVATE,Revenue,EXTERNAL NURSING CARE,570451,152245310,19-Jan-15,"2,787.60",CHEGWORTH NURSING HOME (BAYSWIFT LTD),SP0000667
WANDSWORTH COUNCIL,ASC,SOCIAL SERVICES,PRIVATE,Revenue,EXTERNAL NURSING CARE,570452,152245310,19-Jan-15,"2,787.60",CHEGWORTH NURSING HOME (BAYSWIFT LTD),SP0000667
WANDSWORTH COUNCIL,ASC,SOCIAL SERVICES,CUSTOMER & CLIENT RECPTS - EXT,Revenue,CLIENT CONTS EXTERNAL NURSING,570447,152280820,19-Jan-15,-507.00,CHEGWORTH NURSING HOME (BAYSWIFT LTD),SP0000667
WANDSWORTH COUNCIL,ASC,SOCIAL SERVICES,CUSTOMER & CLIENT RECPTS - EXT,Revenue,CLIENT CONTS EXTERNAL NURSING,570448,152280820,19-Jan-15,-507.00,CHEGWORTH NURSING HOME (BAYSWIFT LTD),SP0000667
WANDSWORTH COUNCIL,ASC,SOCIAL SERVICES,CUSTOMER & CLIENT RECPTS - EXT,Revenue,CLIENT CONTS EXTERNAL NURSING,570451,152280820,19-Jan-15,-881.56,CHEGWORTH NURSING HOME (BAYSWIFT LTD),SP0000667
WANDSWORTH COUNCIL,ASC,SOCIAL SERVICES,CUSTOMER & CLIENT RECPTS - EXT,Revenue,CLIENT CONTS EXTERNAL NURSING,570452,152280820,19-Jan-15,-881.56,CHEGWORTH NURSING HOME (BAYSWIFT LTD),SP0000667
WANDSWORTH COUNCIL,ASC,SOCIAL SERVICES,CUSTOMER & CLIENT RECPTS - EXT,Revenue,RNCC,570447,152284120,19-Jan-15,-443.56,CHEGWORTH NURSING HOME (BAYSWIFT LTD),SP0000667
WANDSWORTH COUNCIL,ASC,SOCIAL SERVICES,CUSTOMER & CLIENT RECPTS - EXT,Revenue,RNCC,570448,152284120,19-Jan-15,-443.56,CHEGWORTH NURSING HOME (BAYSWIFT LTD),SP0000667
WANDSWORTH COUNCIL,ASC,SOCIAL SERVICES,CUSTOMER & CLIENT RECPTS - EXT,Revenue,RNCC,570451,152284120,19-Jan-15,-443.56,CHEGWORTH NURSING HOME (BAYSWIFT LTD),SP0000667
WANDSWORTH COUNCIL,ASC,SOCIAL SERVICES,CUSTOMER & CLIENT RECPTS - EXT,Revenue,RNCC,570452,152284120,19-Jan-15,-443.56,CHEGWORTH NURSING HOME (BAYSWIFT LTD),SP0000667
WANDSWORTH COUNCIL,ASC,SOCIAL SERVICES,PRIVATE,Revenue,EXTERNAL NURSING CARE,570449,152845310,19-Jan-15,"2,787.60",CHEGWORTH NURSING HOME (BAYSWIFT LTD),SP0000667
WANDSWORTH COUNCIL,ASC,SOCIAL SERVICES,PRIVATE,Revenue,EXTERNAL NURSING CARE,570450,152845310,19-Jan-15,"2,787.60",CHEGWORTH NURSING HOME (BAYSWIFT LTD),SP0000667
WANDSWORTH COUNCIL,ASC,SOCIAL SERVICES,CUSTOMER & CLIENT RECPTS - EXT,Revenue,CLIENT CONTS EXTERNAL NURSING,570449,152880820,19-Jan-15,-652.44,CHEGWORTH NURSING HOME (BAYSWIFT LTD),SP0000667
WANDSWORTH COUNCIL,ASC,SOCIAL SERVICES,CUSTOMER & CLIENT RECPTS - EXT,Revenue,CLIENT CONTS EXTERNAL NURSING,570450,152880820,19-Jan-15,-652.44,CHEGWORTH NURSING HOME (BAYSWIFT LTD),SP0000667
WANDSWORTH COUNCIL,ASC,SOCIAL SERVICES,CUSTOMER & CLIENT RECPTS - EXT,Revenue,RNCC,570449,152884120,19-Jan-15,-443.56,CHEGWORTH NURSING HOME (BAYSWIFT LTD),SP0000667
WANDSWORTH COUNCIL,ASC,SOCIAL SERVICES,CUSTOMER & CLIENT RECPTS - EXT,Revenue,RNCC,570450,152884120,19-Jan-15,-443.56,CHEGWORTH NURSING HOME (BAYSWIFT LTD),SP0000667
WANDSWORTH COUNCIL,CES,CHILDREN'S,INDEPENDENT UNITS,Revenue,THIRD PARTY PYMT - IND UNITS,20299021,221442330,23-Jan-15,"3,125.00",CHELSEA INDEPENDENT COLLEGE,2019141
WANDSWORTH COUNCIL,ASC,SOCIAL SERVICES,PRIVATE,Revenue,EXTERNAL RESIDENTIAL CARE,578325,130245330,27-Jan-15,"3,990.54",CHERRY LODGE,SP0000965
WANDSWORTH COUNCIL,ASC,SOCIAL SERVICES,CUSTOMER & CLIENT RECPTS - EXT,Revenue,CL CONT EXTERNAL RESIDENTIAL,578325,130280720,27-Jan-15,-353.62,CHERRY LODGE,SP0000965
WANDSWORTH COUNCIL,CES,CHILDREN'S,"EQUIPMENT, FURNITURE & MATS",Revenue,"EQUIPMENT, FURNITURE & MATS",7014923,243030000,06-Jan-15,"1,900.00",CHESTNUT GROVE SCHOOL,2013582
WANDSWORTH COUNCIL,ASC,SOCIAL SERVICES,PRIVATE,Revenue,EXTERNAL RESIDENTIAL CARE,573507,142045330,21-Jan-15,"3,193.31",CHILDHOOD FIRST,SP0005833
WANDSWORTH COUNCIL,ASC,SOCIAL SERVICES,PRIVATE,Revenue,EXTERNAL RESIDENTIAL CARE,573508,142045330,21-Jan-15,"3,090.30",CHILDHOOD FIRST,SP0005833
WANDSWORTH COUNCIL,ASC,SOCIAL SERVICES,PRIVATE,Revenue,EXTERNAL RESIDENTIAL CARE,573509,142045330,21-Jan-15,"3,193.31",CHILDHOOD FIRST,SP0005833
WANDSWORTH COUNCIL,ASC,SOCIAL SERVICES,PRIVATE,Revenue,EXTERNAL RESIDENTIAL CARE,573510,142045330,21-Jan-15,"3,090.30",CHILDHOOD FIRST,SP0005833
WANDSWORTH COUNCIL,ASC,SOCIAL SERVICES,PRIVATE,Revenue,EXTERNAL RESIDENTIAL CARE,576814,142045330,23-Jan-15,"3,193.31",CHILDHOOD FIRST,SP0005833
WANDSWORTH COUNCIL,NGF CS,ENVIRONMENT & COMMUNITY,OTHER AGENCIES,Revenue,DISBURSEMENTS,571564,120643250,21-Jan-15,"1,130.00",CHILTERN COSTS CONSULTANTS,SP0008904
WANDSWORTH COUNCIL,PS,ENVIRONMENT & COMMUNITY,PRIVATE,Revenue,GENERAL CONTRACT WORK,562564,385245370,21-Jan-15,"5,000.00",CHOCOLATE FILMS LTD,SP0002552
WANDSWORTH COUNCIL,ASC,SOCIAL SERVICES,PRIVATE,Revenue,EXTERNAL RESIDENTIAL CARE,576820,130245330,23-Jan-15,"6,628.16",CHOICE CARE GROUP,SP0001367
WANDSWORTH COUNCIL,CES,CHILDREN'S,PRIVATE,Revenue,EXTERNAL RESIDENTIAL CARE,573297,376345330,21-Jan-15,"8,985.57",CHOICE LIFESTYLES LTD,SP0000257
WANDSWORTH COUNCIL,ASC,SOCIAL SERVICES,VOL ASS,Revenue,SUPPORTED HOUSING PROGRAMME,564825,130248030,09-Jan-15,"9,574.36",CHOICE SUPPORT,SP0000398
WANDSWORTH COUNCIL,ASC,SOCIAL SERVICES,VOL ASS,Revenue,SUPPORTED HOUSING PROGRAMME,564826,130248030,09-Jan-15,"7,972.24",CHOICE SUPPORT,SP0000398
WANDSWORTH COUNCIL,ASC,SOCIAL SERVICES,VOL ASS,Revenue,SUPPORTED HOUSING PROGRAMME,564878,130248030,09-Jan-15,"8,080.68",CHOICE SUPPORT,SP0000398
WANDSWORTH COUNCIL,ASC,SOCIAL SERVICES,PRIVATE,Revenue,EXTERNAL DAYCARE,569423,130245290,16-Jan-15,768.78,CHOICES,SP0000486
WANDSWORTH COUNCIL,ASC,SOCIAL SERVICES,PRIVATE,Revenue,EXTERNAL RESIDENTIAL CARE,562958,142245330,06-Jan-15,"3,321.34",CHRIST THE KING RESIDENTIAL CARE,SP0001203
WANDSWORTH COUNCIL,ASC,SOCIAL SERVICES,PRIVATE,Revenue,EXTERNAL RESIDENTIAL CARE,562956,142545330,06-Jan-15,"3,690.24",CHRIST THE KING RESIDENTIAL CARE,SP0001203
WANDSWORTH COUNCIL,ASC,SOCIAL SERVICES,PRIVATE,Revenue,EXTERNAL RESIDENTIAL CARE,562957,142545330,06-Jan-15,"3,029.01",CHRIST THE KING RESIDENTIAL CARE,SP0001203
WANDSWORTH COUNCIL,ASC,SOCIAL SERVICES,PRIVATE,Revenue,EXTERNAL HOMECARE,566675,130245300,13-Jan-15,"3,232.00",CHRISTIES CARE LTD,SP0005440
WANDSWORTH COUNCIL,NGF HS,FINANCE,"REPAIRS, ALTERATIONS & MTCE",Revenue,CCTCV SYSTEMS ROUTINE,564729,407249830,09-Jan-15,713.47,CHROMA-VISION LTD,SP0000996
WANDSWORTH COUNCIL,NGF HS,FINANCE,"REPAIRS, ALTERATIONS & MTCE",Revenue,CCTCV SYSTEMS ROUTINE,571072,407249830,19-Jan-15,"1,638.74",CHROMA-VISION LTD,SP0000996
WANDSWORTH COUNCIL,NGF HS,FINANCE,"REPAIRS, ALTERATIONS & MTCE",Revenue,CCTCV SYSTEMS ROUTINE,576175,407249830,23-Jan-15,919.08,CHROMA-VISION LTD,SP0000996
WANDSWORTH COUNCIL,NGF HS,FINANCE,"REPAIRS, ALTERATIONS & MTCE",Revenue,CCTCV SYSTEMS ROUTINE,576176,407249830,23-Jan-15,"3,487.03",CHROMA-VISION LTD,SP0000996
WANDSWORTH COUNCIL,HTS,FINANCE,"EQUIPMENT, FURNITURE & MATS",Revenue,CCTV MAINTENANCE,576178,456530050,23-Jan-15,475.38,CHROMA-VISION LTD,SP0000996
WANDSWORTH COUNCIL,HTS,FINANCE,"EQUIPMENT, FURNITURE & MATS",Revenue,CCTV MAINTENANCE,564720,45653005K33041,09-Jan-15,511.41,CHROMA-VISION LTD,SP0000996
WANDSWORTH COUNCIL,ERS,FINANCE,"EQUIPMENT, FURNITURE & MATS",Revenue,CCTV MAINTENANCE,564722,46543005K05541,09-Jan-15,"2,957.57",CHROMA-VISION LTD,SP0000996
WANDSWORTH COUNCIL,ERS,FINANCE,"EQUIPMENT, FURNITURE & MATS",Revenue,CCTV MAINTENANCE,564725,46543005K05541,09-Jan-15,"1,076.91",CHROMA-VISION LTD,SP0000996
WANDSWORTH COUNCIL,ERS,FINANCE,"EQUIPMENT, FURNITURE & MATS",Revenue,CCTV MAINTENANCE,564732,46543005K05541,09-Jan-15,469.84,CHROMA-VISION LTD,SP0000996
WANDSWORTH COUNCIL,ERS,FINANCE,"EQUIPMENT, FURNITURE & MATS",Revenue,CCTV MAINTENANCE,564752,46543005K05541,09-Jan-15,"1,210.53",CHROMA-VISION LTD,SP0000996
WANDSWORTH COUNCIL,CES,ENVIRONMENT & COMMUNITY,PRINTING STAT & GEN OFFICE EXP,Revenue,PUBLICITY,575862,360133470,30-Jan-15,"3,250.00",CITY MEDIA SALES,SP0005861
WANDSWORTH COUNCIL,PS,ENVIRONMENT & COMMUNITY,PRIVATE,Revenue,GENERAL CONTRACT WORK,569174,38304537K03959,20-Jan-15,"6,500.00",CITY OF LONDON,SP0006584
WANDSWORTH COUNCIL,PS,ENVIRONMENT & COMMUNITY,PRIVATE,Revenue,GENERAL CONTRACT WORK,569175,38304537K03959,20-Jan-15,"25,000.00",CITY OF LONDON,SP0006584
WANDSWORTH COUNCIL,CS,ENVIRONMENT & COMMUNITY,OTH LA,Revenue,CONTRIBUTION - WESTMINSTER,567995,100044500,14-Jan-15,"67,680.00",CITY OF WESTMINSTER,SP0000345
WANDSWORTH COUNCIL,NGF CRS,ENVIRONMENT & COMMUNITY,GROUNDS MAINTENANCE,Revenue,"REPS, ALTS & MTCE-PARKS TREES",20299263,423112190,19-Jan-15,359.80,CITY SUBURBAN TREE SURGEONS LIMITED,2016711
WANDSWORTH COUNCIL,NGF CRS,ENVIRONMENT & COMMUNITY,GROUNDS MAINTENANCE,Revenue,"REPS, ALTS & MTCE-LITTER PICK",20298780,423112200,07-Jan-15,510.41,CITY SUBURBAN TREE SURGEONS LIMITED,2016711
WANDSWORTH COUNCIL,NGF CRS,ENVIRONMENT & COMMUNITY,GROUNDS MAINTENANCE,Revenue,"REPS, ALTS & MTCE-LITTER PICK",20299114,423112200,14-Jan-15,509.24,CITY SUBURBAN TREE SURGEONS LIMITED,2016711
WANDSWORTH COUNCIL,NGF CRS,ENVIRONMENT & COMMUNITY,GROUNDS MAINTENANCE,Revenue,"REPS, ALTS & MTCE-LITTER PICK",20299289,423112200,19-Jan-15,"1,962.44",CITY SUBURBAN TREE SURGEONS LIMITED,2016711
WANDSWORTH COUNCIL,NGF CRS,ENVIRONMENT & COMMUNITY,GROUNDS MAINTENANCE,Revenue,"REPS, ALTS & MTCE-LITTER PICK",20299290,423112200,19-Jan-15,608.03,CITY SUBURBAN TREE SURGEONS LIMITED,2016711
WANDSWORTH COUNCIL,NGF CRS,ENVIRONMENT & COMMUNITY,GROUNDS MAINTENANCE,Revenue,"REPS, ALTS & MTCE-LITTER PICK",20299291,423112200,19-Jan-15,667.64,CITY SUBURBAN TREE SURGEONS LIMITED,2016711
WANDSWORTH COUNCIL,NGF CRS,ENVIRONMENT & COMMUNITY,GROUNDS MAINTENANCE,Revenue,"REPS, ALTS & MTCE-LITTER PICK",20299292,423112200,19-Jan-15,"7,049.80",CITY SUBURBAN TREE SURGEONS LIMITED,2016711
WANDSWORTH COUNCIL,CRS,ENVIRONMENT & COMMUNITY,GROUNDS MAINTENANCE,Revenue,"REPS, ALTS & MTCE-PARKS TREES",20299200,423212190,15-Jan-15,"2,268.80",CITY SUBURBAN TREE SURGEONS LIMITED,2016711
WANDSWORTH COUNCIL,CRS,ENVIRONMENT & COMMUNITY,GROUNDS MAINTENANCE,Revenue,"REPS, ALTS & MTCE-PARKS TREES",20299201,423212190,15-Jan-15,"2,268.80",CITY SUBURBAN TREE SURGEONS LIMITED,2016711
WANDSWORTH COUNCIL,CRS,ENVIRONMENT & COMMUNITY,GROUNDS MAINTENANCE,Revenue,"REPS, ALTS & MTCE-PARKS TREES",20299263,423212190,19-Jan-15,561.22,CITY SUBURBAN TREE SURGEONS LIMITED,2016711
WANDSWORTH COUNCIL,ERS,ENVIRONMENT & COMMUNITY,GROUNDS MAINTENANCE,Revenue,"REPS, ALTS & MTCE-PARKS TREES",20299263,425112190,19-Jan-15,442.04,CITY SUBURBAN TREE SURGEONS LIMITED,2016711
WANDSWORTH COUNCIL,HTS,ENVIRONMENT & COMMUNITY,GROUNDS MAINTENANCE,Revenue,"REPS, ALTS & MTCE-PARKS TREES",20299263,452012190,19-Jan-15,220.41,CITY SUBURBAN TREE SURGEONS LIMITED,2016711
WANDSWORTH COUNCIL,HTS,ENVIRONMENT & COMMUNITY,"EQUIPMENT, FURNITURE & MATS",Revenue,"EQUIPMENT, FURNITURE & MATS",20299263,452530000,19-Jan-15,92.53,CITY SUBURBAN TREE SURGEONS LIMITED,2016711
WANDSWORTH COUNCIL,NGF HS,ENVIRONMENT & COMMUNITY,GROUNDS MAINTENANCE,Revenue,"REPS, ALTS & MTCE-PARKS TREES",20299284,4VK712190,19-Jan-15,725.41,CITY SUBURBAN TREE SURGEONS LIMITED,2016711
WANDSWORTH COUNCIL,NGF HS,ENVIRONMENT & COMMUNITY,GROUNDS MAINTENANCE,Revenue,"REPS, ALTS & MTCE-PARKS TREES",20299388,4WLT12190,20-Jan-15,"1,551.01",CITY SUBURBAN TREE SURGEONS LIMITED,2016711
WANDSWORTH COUNCIL,NGF HS,ENVIRONMENT & COMMUNITY,GROUNDS MAINTENANCE,Revenue,"REPS, ALTS & MTCE-PARKS TREES",20299263,4WXX12190,19-Jan-15,30.84,CITY SUBURBAN TREE SURGEONS LIMITED,2016711
WANDSWORTH COUNCIL,NGF HS,ENVIRONMENT & COMMUNITY,GROUNDS MAINTENANCE,Revenue,"REPS, ALTS & MTCE-PARKS TREES",20299263,4YA112190,19-Jan-15,49.37,CITY SUBURBAN TREE SURGEONS LIMITED,2016711
WANDSWORTH COUNCIL,HTS,ENVIRONMENT & COMMUNITY,"EQUIPMENT, FURNITURE & MATS",Revenue,"EQUIPMENT, FURNITURE & MATS",567252,455230000,16-Jan-15,500.00,CIVICA UK LTD,SP0000394
WANDSWORTH COUNCIL,BS,HOUSING,COUNCIL DWELLINGS,CAPITAL,HRA REPAIRS & IMPROVEMENTS,564714,7004C001J6100D,09-Jan-15,"50,000.65",CLAIRGLOW HEATING LTD,SP0001106
WANDSWORTH COUNCIL,CS,ENVIRONMENT & COMMUNITY,HEALTH,Revenue,THIRD PARTY PYMT - HEALTH,575885,128041130,23-Jan-15,"2,412.40",CLAPHAM JUNCTION MEDICAL PRACTICE,SP0008135
WANDSWORTH COUNCIL,ASC,SOCIAL SERVICES,DIRECT,Revenue,WORKSTEP,578156,162650520,27-Jan-15,"1,220.86",CLARITY,SP0000551
WANDSWORTH COUNCIL,CS,ENVIRONMENT & COMMUNITY,HEALTH,Revenue,THIRD PARTY PYMT - HEALTH,571637,128041130,21-Jan-15,"1,724.00",CLARKE PHARMACY,SP0007660
WANDSWORTH COUNCIL,BS,ADMINISTRATION,GOVERNMENT DEPARTMENTS,Revenue,CCG - SECTION 75 AGREEMENTS,20299225,6002B0180,15-Jan-15,"1,085.00",CLARKE PHARMACY,2017242
WANDSWORTH COUNCIL,BS,ADMINISTRATION,GOVERNMENT DEPARTMENTS,Revenue,CCG - SECTION 75 AGREEMENTS,20299226,6002B0180,15-Jan-15,"1,385.50",CLARKE PHARMACY,2017242
WANDSWORTH COUNCIL,PS,ENVIRONMENT & COMMUNITY,SERVICES,Revenue,CONSULTANTS FEES,564495,460734200,08-Jan-15,500.00,CLIMATE CONSULTING LTD,SP0003485
WANDSWORTH COUNCIL,ASC,SOCIAL SERVICES,PRIVATE,Revenue,EXTERNAL DAYCARE,563091,130245290,06-Jan-15,"2,094.62",CMG HOMES LTD,SP0000075
WANDSWORTH COUNCIL,ASC,SOCIAL SERVICES,PRIVATE,Revenue,EXTERNAL RESIDENTIAL CARE,563396,130245330,07-Jan-15,"5,632.12",CMG HOMES LTD,SP0000075
WANDSWORTH COUNCIL,ASC,SOCIAL SERVICES,PRIVATE,Revenue,EXTERNAL RESIDENTIAL CARE,563401,130245330,07-Jan-15,"3,911.48",CMG HOMES LTD,SP0000075
WANDSWORTH COUNCIL,ASC,SOCIAL SERVICES,PRIVATE,Revenue,EXTERNAL RESIDENTIAL CARE,563402,130245330,07-Jan-15,"6,007.12",CMG HOMES LTD,SP0000075
WANDSWORTH COUNCIL,ASC,SOCIAL SERVICES,PRIVATE,Revenue,EXTERNAL RESIDENTIAL CARE,563403,130245330,07-Jan-15,"5,553.00",CMG HOMES LTD,SP0000075
WANDSWORTH COUNCIL,ASC,SOCIAL SERVICES,PRIVATE,Revenue,EXTERNAL RESIDENTIAL CARE,563404,130245330,07-Jan-15,"8,061.00",CMG HOMES LTD,SP0000075
WANDSWORTH COUNCIL,ASC,SOCIAL SERVICES,PRIVATE,Revenue,EXTERNAL RESIDENTIAL CARE,563405,130245330,07-Jan-15,"4,866.36",CMG HOMES LTD,SP0000075
WANDSWORTH COUNCIL,ASC,SOCIAL SERVICES,PRIVATE,Revenue,EXTERNAL RESIDENTIAL CARE,563406,130245330,07-Jan-15,"4,646.00",CMG HOMES LTD,SP0000075
WANDSWORTH COUNCIL,ASC,SOCIAL SERVICES,PRIVATE,Revenue,EXTERNAL RESIDENTIAL CARE,563408,130245330,07-Jan-15,"7,123.64",CMG HOMES LTD,SP0000075
WANDSWORTH COUNCIL,ASC,SOCIAL SERVICES,PRIVATE,Revenue,EXTERNAL RESIDENTIAL CARE,563417,130245330,07-Jan-15,"4,415.60",CMG HOMES LTD,SP0000075
WANDSWORTH COUNCIL,ASC,SOCIAL SERVICES,PRIVATE,Revenue,EXTERNAL RESIDENTIAL CARE,563418,130245330,07-Jan-15,"4,415.60",CMG HOMES LTD,SP0000075
WANDSWORTH COUNCIL,ASC,SOCIAL SERVICES,VOL ASS,Revenue,SUPPORTED HOUSING PROGRAMME,563407,130248030,07-Jan-15,"4,120.24",CMG HOMES LTD,SP0000075
WANDSWORTH COUNCIL,ASC,SOCIAL SERVICES,CUSTOMER & CLIENT RECPTS - EXT,Revenue,CL CONT EXTERNAL RESIDENT S28A,563403,130280710,07-Jan-15,-397.20,CMG HOMES LTD,SP0000075
WANDSWORTH COUNCIL,ASC,SOCIAL SERVICES,CUSTOMER & CLIENT RECPTS - EXT,Revenue,CL CONT EXTERNAL RESIDENTIAL,563396,130280720,07-Jan-15,-319.40,CMG HOMES LTD,SP0000075
WANDSWORTH COUNCIL,ASC,SOCIAL SERVICES,CUSTOMER & CLIENT RECPTS - EXT,Revenue,CL CONT EXTERNAL RESIDENTIAL,563401,130280720,07-Jan-15,-335.00,CMG HOMES LTD,SP0000075
WANDSWORTH COUNCIL,ASC,SOCIAL SERVICES,CUSTOMER & CLIENT RECPTS - EXT,Revenue,CL CONT EXTERNAL RESIDENTIAL,563404,130280720,07-Jan-15,-319.40,CMG HOMES LTD,SP0000075
WANDSWORTH COUNCIL,ASC,SOCIAL SERVICES,CUSTOMER & CLIENT RECPTS - EXT,Revenue,CL CONT EXTERNAL RESIDENTIAL,563405,130280720,07-Jan-15,-319.40,CMG HOMES LTD,SP0000075
WANDSWORTH COUNCIL,ASC,SOCIAL SERVICES,CUSTOMER & CLIENT RECPTS - EXT,Revenue,CL CONT EXTERNAL RESIDENTIAL,563406,130280720,07-Jan-15,-495.80,CMG HOMES LTD,SP0000075
WANDSWORTH COUNCIL,ASC,SOCIAL SERVICES,CUSTOMER & CLIENT RECPTS - EXT,Revenue,CL CONT EXTERNAL RESIDENTIAL,563408,130280720,07-Jan-15,-362.80,CMG HOMES LTD,SP0000075
WANDSWORTH COUNCIL,ASC,SOCIAL SERVICES,CUSTOMER & CLIENT RECPTS - EXT,Revenue,CL CONT EXTERNAL RESIDENTIAL,563417,130280720,07-Jan-15,-319.40,CMG HOMES LTD,SP0000075
WANDSWORTH COUNCIL,ASC,SOCIAL SERVICES,CUSTOMER & CLIENT RECPTS - EXT,Revenue,CL CONT EXTERNAL RESIDENTIAL,563418,130280720,07-Jan-15,-319.40,CMG HOMES LTD,SP0000075
WANDSWORTH COUNCIL,NGF CS,ENVIRONMENT & COMMUNITY,DIRECT2,Revenue,AGENCY STAFF,565012,120500510,12-Jan-15,"1,486.80",COBALT CONSULTING (UK) LTD,SP0008002
WANDSWORTH COUNCIL,NGF CS,ENVIRONMENT & COMMUNITY,DIRECT2,Revenue,AGENCY STAFF,565013,120500510,12-Jan-15,"1,486.80",COBALT CONSULTING (UK) LTD,SP0008002
WANDSWORTH COUNCIL,NGF CS,ENVIRONMENT & COMMUNITY,DIRECT2,Revenue,AGENCY STAFF,565014,120500510,12-Jan-15,"1,444.32",COBALT CONSULTING (UK) LTD,SP0008002
WANDSWORTH COUNCIL,NGF CS,ENVIRONMENT & COMMUNITY,DIRECT2,Revenue,AGENCY STAFF,565999,120500510,12-Jan-15,"1,486.80",COBALT CONSULTING (UK) LTD,SP0008002
WANDSWORTH COUNCIL,NGF CS,ENVIRONMENT & COMMUNITY,DIRECT2,Revenue,AGENCY STAFF,566000,120500510,12-Jan-15,"1,486.80",COBALT CONSULTING (UK) LTD,SP0008002
WANDSWORTH COUNCIL,NGF CS,ENVIRONMENT & COMMUNITY,DIRECT2,Revenue,AGENCY STAFF,566001,120500510,12-Jan-15,"1,486.80",COBALT CONSULTING (UK) LTD,SP0008002
WANDSWORTH COUNCIL,NGF CS,ENVIRONMENT & COMMUNITY,DIRECT2,Revenue,AGENCY STAFF,566002,120500510,12-Jan-15,"1,486.80",COBALT CONSULTING (UK) LTD,SP0008002
WANDSWORTH COUNCIL,NGF CS,ENVIRONMENT & COMMUNITY,DIRECT2,Revenue,AGENCY STAFF,566004,120500510,12-Jan-15,"1,486.80",COBALT CONSULTING (UK) LTD,SP0008002
WANDSWORTH COUNCIL,NGF CS,ENVIRONMENT & COMMUNITY,DIRECT2,Revenue,AGENCY STAFF,566006,120500510,12-Jan-15,892.08,COBALT CONSULTING (UK) LTD,SP0008002
WANDSWORTH COUNCIL,HTS,ENVIRONMENT & COMMUNITY,SERVICES,Revenue,COBALT - TELEPHONE,568125,456034170,28-Jan-15,"1,235.92",COBALT TELEPHONE TECHNOLOGIES LTD,SP0001904
WANDSWORTH COUNCIL,BS,HOUSING,COUNCIL DWELLINGS,CAPITAL,HRA REPAIRS & IMPROVEMENTS,573929,7004C001J6451D,21-Jan-15,"14,904.55",COBSEN DAVIES ROOFING LTD,SP0000778
WANDSWORTH COUNCIL,CRS,FINANCE,ENERGY,Revenue,COMBINED HEAT & POWER - COMPEN,20299458,433410760,21-Jan-15,814.73,COGENCO LTD,2005859
WANDSWORTH COUNCIL,CRS,FINANCE,ENERGY,Revenue,COMBINED HEAT & POWER - COMPEN,20299460,433610760,21-Jan-15,"1,295.00",COGENCO LTD,2005859
WANDSWORTH COUNCIL,CES,ENVIRONMENT & COMMUNITY,SERVICES,Revenue,PROJECT WORK,569186,354134800,16-Jan-15,"26,317.91",COLLAGE ARTS LTD,SP0007149
WANDSWORTH COUNCIL,NGF CS,ENVIRONMENT & COMMUNITY,"REPAIRS, ALTERATIONS & MTCE",Revenue,"REPS, ALTS & MTCE-BUILDINGS",567211,47611000L0811Z,13-Jan-15,"23,511.59",COLLINSTOWN CONSTRUCTION LTD,SP0008410
WANDSWORTH COUNCIL,ASC,SOCIAL SERVICES,VOL ASS,Revenue,SUPPORTED HOUSING PROGRAMME,563128,142148030,06-Jan-15,"3,065.59",COMFORT CARE SERVICES (UK) LTD,SP0005792
WANDSWORTH COUNCIL,ASC,SOCIAL SERVICES,VOL ASS,Revenue,SUPPORTED HOUSING PROGRAMME,581296,142148030,30-Jan-15,"3,065.59",COMFORT CARE SERVICES (UK) LTD,SP0005792
WANDSWORTH COUNCIL,ASC,SOCIAL SERVICES,PRIVATE,Revenue,EXTERNAL RESIDENTIAL CARE,562959,142245330,06-Jan-15,"3,065.59",COMFORT CARE SERVICES (UK) LTD,SP0005792
WANDSWORTH COUNCIL,ASC,SOCIAL SERVICES,PRIVATE,Revenue,EXTERNAL RESIDENTIAL CARE,578054,142245330,27-Jan-15,"3,065.59",COMFORT CARE SERVICES (UK) LTD,SP0005792
WANDSWORTH COUNCIL,NGF HTS,ENVIRONMENT & COMMUNITY,DIRECT,Revenue,PURCHASE OF VEHICLE PARTS,574763,474120250,22-Jan-15,498.22,COMMERCIAL & PLANT COMPONENT COMPANY,SP0003145
WANDSWORTH COUNCIL,ASC,SOCIAL SERVICES,PRIVATE,Revenue,EXTERNAL RESIDENTIAL CARE,561796,142145330,05-Jan-15,"3,472.00",COMMUNITY HOUSING & THERAPY,SP0001366
WANDSWORTH COUNCIL,ASC,SOCIAL SERVICES,PRIVATE,Revenue,EXTERNAL RESIDENTIAL CARE,561798,142145330,05-Jan-15,"3,474.40",COMMUNITY HOUSING & THERAPY,SP0001366
WANDSWORTH COUNCIL,ASC,SOCIAL SERVICES,PRIVATE,Revenue,EXTERNAL RESIDENTIAL CARE,581212,142145330,30-Jan-15,"3,472.00",COMMUNITY HOUSING & THERAPY,SP0001366
WANDSWORTH COUNCIL,ASC,SOCIAL SERVICES,PRIVATE,Revenue,EXTERNAL RESIDENTIAL CARE,581214,142145330,30-Jan-15,"3,474.40",COMMUNITY HOUSING & THERAPY,SP0001366
WANDSWORTH COUNCIL,ASC,SOCIAL SERVICES,VOL ASS,Revenue,SUPPORTED HOUSING PROGRAMME,561800,142248030,05-Jan-15,970.00,COMMUNITY HOUSING & THERAPY,SP0001366
WANDSWORTH COUNCIL,ASC,SOCIAL SERVICES,VOL ASS,Revenue,SUPPORTED HOUSING PROGRAMME,566657,142248030,13-Jan-15,970.00,COMMUNITY HOUSING & THERAPY,SP0001366
WANDSWORTH COUNCIL,ASC,SOCIAL SERVICES,VOL ASS,Revenue,SUPPORTED HOUSING PROGRAMME,581216,142248030,30-Jan-15,"1,940.00",COMMUNITY HOUSING & THERAPY,SP0001366
WANDSWORTH COUNCIL,ASC,SOCIAL SERVICES,PRIVATE,Revenue,EXTERNAL RESIDENTIAL CARE,561797,142645330,05-Jan-15,"3,440.00",COMMUNITY HOUSING & THERAPY,SP0001366
WANDSWORTH COUNCIL,ASC,SOCIAL SERVICES,PRIVATE,Revenue,EXTERNAL RESIDENTIAL CARE,561799,142645330,05-Jan-15,"3,440.00",COMMUNITY HOUSING & THERAPY,SP0001366
WANDSWORTH COUNCIL,ASC,SOCIAL SERVICES,PRIVATE,Revenue,EXTERNAL RESIDENTIAL CARE,581213,142645330,30-Jan-15,"3,440.00",COMMUNITY HOUSING & THERAPY,SP0001366
WANDSWORTH COUNCIL,ASC,SOCIAL SERVICES,PRIVATE,Revenue,EXTERNAL RESIDENTIAL CARE,581215,142645330,30-Jan-15,"3,440.00",COMMUNITY HOUSING & THERAPY,SP0001366
WANDSWORTH COUNCIL,ASC,SOCIAL SERVICES,VOL ASS,Revenue,SUPPORTED HOUSING PROGRAMME,561801,142648030,05-Jan-15,"1,860.00",COMMUNITY HOUSING & THERAPY,SP0001366
WANDSWORTH COUNCIL,ASC,SOCIAL SERVICES,VOL ASS,Revenue,SUPPORTED HOUSING PROGRAMME,562026,142648030,05-Jan-15,"3,440.00",COMMUNITY HOUSING & THERAPY,SP0001366
WANDSWORTH COUNCIL,ASC,SOCIAL SERVICES,VOL ASS,Revenue,SUPPORTED HOUSING PROGRAMME,562027,142648030,05-Jan-15,"3,000.00",COMMUNITY HOUSING & THERAPY,SP0001366
WANDSWORTH COUNCIL,ASC,SOCIAL SERVICES,VOL ASS,Revenue,SUPPORTED HOUSING PROGRAMME,581217,142648030,30-Jan-15,"1,860.00",COMMUNITY HOUSING & THERAPY,SP0001366
WANDSWORTH COUNCIL,ASC,SOCIAL SERVICES,VOL ASS,Revenue,SUPPORTED HOUSING PROGRAMME,581297,142648030,30-Jan-15,"3,440.00",COMMUNITY HOUSING & THERAPY,SP0001366
WANDSWORTH COUNCIL,ASC,SOCIAL SERVICES,VOL ASS,Revenue,SUPPORTED HOUSING PROGRAMME,581298,142648030,30-Jan-15,"3,000.00",COMMUNITY HOUSING & THERAPY,SP0001366
WANDSWORTH COUNCIL,ASC,SOCIAL SERVICES,CUSTOMER & CLIENT RECPTS - EXT,Revenue,CL CONT EXTERNAL RESIDENTIAL,561797,142680720,05-Jan-15,-216.44,COMMUNITY HOUSING & THERAPY,SP0001366
WANDSWORTH COUNCIL,ASC,SOCIAL SERVICES,CUSTOMER & CLIENT RECPTS - EXT,Revenue,CL CONT EXTERNAL RESIDENTIAL,581213,142680720,30-Jan-15,-216.44,COMMUNITY HOUSING & THERAPY,SP0001366
WANDSWORTH COUNCIL,NGF CS,ADMINISTRATION,INDIRECT,Revenue,CHILDCARE VOUCHERS,20299005,123200650,12-Jan-15,660.69,COMPUTERSHARE VOUCHER SERVICES,2007281
WANDSWORTH COUNCIL,NGF CS,ADMINISTRATION,INDIRECT,Revenue,CHILDCARE VOUCHERS,20299006,123200650,12-Jan-15,105.66,COMPUTERSHARE VOUCHER SERVICES,2007281
WANDSWORTH COUNCIL,NGF CS,ADMINISTRATION,INDIRECT,Revenue,CHILDCARE VOUCHERS,20299577,123200650,22-Jan-15,"1,112.38",COMPUTERSHARE VOUCHER SERVICES,2007281
WANDSWORTH COUNCIL,NGF CS,ADMINISTRATION,INDIRECT,Revenue,CHILDCARE VOUCHERS,20299578,123200650,22-Jan-15,100.58,COMPUTERSHARE VOUCHER SERVICES,2007281
WANDSWORTH COUNCIL,NGF CS,ADMINISTRATION,INDIRECT,Revenue,CHILDCARE VOUCHERS,20299579,123200650,22-Jan-15,21.87,COMPUTERSHARE VOUCHER SERVICES,2007281
WANDSWORTH COUNCIL,BS,ADMINISTRATION,OTHER DEBTORS,Revenue,CHILDCARE VOUCHERS,20299005,6002B2950,12-Jan-15,"14,682.00",COMPUTERSHARE VOUCHER SERVICES,2007281
WANDSWORTH COUNCIL,BS,ADMINISTRATION,OTHER DEBTORS,Revenue,CHILDCARE VOUCHERS,20299006,6002B2950,12-Jan-15,"2,347.99",COMPUTERSHARE VOUCHER SERVICES,2007281
WANDSWORTH COUNCIL,BS,ADMINISTRATION,OTHER DEBTORS,Revenue,CHILDCARE VOUCHERS,20299577,6002B2950,22-Jan-15,"24,719.49",COMPUTERSHARE VOUCHER SERVICES,2007281
WANDSWORTH COUNCIL,BS,ADMINISTRATION,OTHER DEBTORS,Revenue,CHILDCARE VOUCHERS,20299578,6002B2950,22-Jan-15,"2,235.00",COMPUTERSHARE VOUCHER SERVICES,2007281
WANDSWORTH COUNCIL,BS,ADMINISTRATION,OTHER DEBTORS,Revenue,CHILDCARE VOUCHERS,20299579,6002B2950,22-Jan-15,486.00,COMPUTERSHARE VOUCHER SERVICES,2007281
WANDSWORTH COUNCIL,ASC,SOCIAL SERVICES,PRIVATE,Revenue,EXTERNAL RESIDENTIAL CARE,569335,130245330,16-Jan-15,"8,192.86",CONDOVER COLLEGE LTD,SP0001641
WANDSWORTH COUNCIL,CS,FINANCE,PRIVATE,Revenue,BAILIFF SERVICES,20298927,381245100,09-Jan-15,"5,814.05",CONFERO COLLECTIONS LTD,2000504
WANDSWORTH COUNCIL,CS,FINANCE,PRIVATE,Revenue,BAILIFF SERVICES,20298927,381245100,09-Jan-15,"-5,814.05",CONFERO COLLECTIONS LTD,2000504
WANDSWORTH COUNCIL,CS,FINANCE,PRIVATE,Revenue,BAILIFF SERVICES,20299715,381245100,26-Jan-15,"3,136.75",CONFERO COLLECTIONS LTD,2000504
WANDSWORTH COUNCIL,CS,FINANCE,PRIVATE,Revenue,BAILIFF SERVICES,20299715,381245100,26-Jan-15,"-3,136.75",CONFERO COLLECTIONS LTD,2000504
WANDSWORTH COUNCIL,ASC,SOCIAL SERVICES,VOL ASS,Revenue,SUPPORTED HOUSING PROGRAMME,569436,162448030,16-Jan-15,"2,657.14",CONSENSA CARE GROUP LTD,SP0001117
WANDSWORTH COUNCIL,CES,ENVIRONMENT & COMMUNITY,GRANTS & SUBSCRIPTIONS,Revenue,CONTRACTS TO VOLUNTARY ORGS,573472,340737550,22-Jan-15,"23,969.86",CONTACT A FAMILY,SP0002240
WANDSWORTH COUNCIL,NGF CS,ENVIRONMENT & COMMUNITY,INDIRECT,Revenue,TRAINING - EXTERNAL COURSES,566507,126700770,13-Jan-15,500.00,CORELOGIC LIMITED,SP0002796
WANDSWORTH COUNCIL,NGF CS,ENVIRONMENT & COMMUNITY,COMMUNICATIONS & COMP,Revenue,I.T. SOFTWARE,564496,126736240,08-Jan-15,"10,000.00",CORELOGIC LIMITED,SP0002796
WANDSWORTH COUNCIL,ASC,SOCIAL SERVICES,PRIVATE,Revenue,EXTERNAL RESIDENTIAL CARE,564841,130245330,09-Jan-15,"7,271.56",CORICH COMMUNITY CARE LTD,SP0000915
WANDSWORTH COUNCIL,ASC,SOCIAL SERVICES,PRIVATE,Revenue,ONE TO ONE CARE,564842,130246220,09-Jan-15,"1,600.44",CORICH COMMUNITY CARE LTD,SP0000915
WANDSWORTH COUNCIL,NGF CS,ENVIRONMENT & COMMUNITY,OTHER AGENCIES,Revenue,DISBURSEMENTS,563317,120643250,07-Jan-15,650.00,CORNERSTONE BACS,SP0004477
WANDSWORTH COUNCIL,NGF CS,ENVIRONMENT & COMMUNITY,OTHER AGENCIES,Revenue,DISBURSEMENTS,570414,120643250,21-Jan-15,"2,625.00",CORNERSTONE BACS,SP0004477
WANDSWORTH COUNCIL,NGF CS,ENVIRONMENT & COMMUNITY,OTHER AGENCIES,Revenue,DISBURSEMENTS,571565,120643250,21-Jan-15,"2,850.00",CORNERSTONE BACS,SP0004477
WANDSWORTH COUNCIL,NGF CS,ENVIRONMENT & COMMUNITY,OTHER AGENCIES,Revenue,DISBURSEMENTS,577498,120643250,27-Jan-15,"1,785.00",CORNERSTONE BACS,SP0004477
WANDSWORTH COUNCIL,HS,HOUSING,PRIVATE,Revenue,B&B PAYMENTS,20299363,411745080,19-Jan-15,"12,980.00",COSYSTAY CROYDON LTD,2017715
WANDSWORTH COUNCIL,HS,HOUSING,PRIVATE,Revenue,B&B PAYMENTS,20299443,411745080,21-Jan-15,722.00,COSYSTAY CROYDON LTD,2017715
WANDSWORTH COUNCIL,ASC,SOCIAL SERVICES,PRIVATE,Revenue,EXTERNAL DAYCARE,564879,130245290,09-Jan-15,"1,059.52",COUNTRY CARE,SP0000090
WANDSWORTH COUNCIL,ASC,SOCIAL SERVICES,PRIVATE,Revenue,EXTERNAL RESIDENTIAL CARE,564843,130245330,09-Jan-15,"3,449.59",COUNTRY CARE,SP0000090
WANDSWORTH COUNCIL,ASC,SOCIAL SERVICES,CUSTOMER & CLIENT RECPTS - EXT,Revenue,CL CONT EXTERNAL RESIDENTIAL,564843,130280720,09-Jan-15,-353.62,COUNTRY CARE,SP0000090
WANDSWORTH COUNCIL,ASC,SOCIAL SERVICES,PRIVATE,Revenue,EXTERNAL RESIDENTIAL CARE,564824,152845330,09-Jan-15,"1,677.23",COUNTRYWIDE CARE HOMES,SP0006763
WANDSWORTH COUNCIL,ASC,SOCIAL SERVICES,CUSTOMER & CLIENT RECPTS - EXT,Revenue,CL CONT EXTERNAL RESIDENTIAL,564824,152880720,09-Jan-15,-548.92,COUNTRYWIDE CARE HOMES,SP0006763
WANDSWORTH COUNCIL,ASC,SOCIAL SERVICES,PRIVATE,Revenue,EXTERNAL DAYCARE,569424,130245290,16-Jan-15,806.04,CRAEGMOOR FACILITIES CO LTD,SP0000306
WANDSWORTH COUNCIL,ASC,SOCIAL SERVICES,PRIVATE,Revenue,EXTERNAL RESIDENTIAL CARE,569360,130245330,16-Jan-15,"3,029.72",CRAEGMOOR FACILITIES CO LTD,SP0000306
WANDSWORTH COUNCIL,ASC,SOCIAL SERVICES,CUSTOMER & CLIENT RECPTS - EXT,Revenue,CL CONT EXTERNAL RESIDENTIAL,569360,130280720,16-Jan-15,-319.40,CRAEGMOOR FACILITIES CO LTD,SP0000306
WANDSWORTH COUNCIL,ASC,SOCIAL SERVICES,PRIVATE,Revenue,EXTERNAL RESIDENTIAL CARE,569349,130245330,16-Jan-15,"3,900.77",CRAEGMOOR OLD RECTORY BREDE PRIORY,SP0001621
WANDSWORTH COUNCIL,ASC,SOCIAL SERVICES,PRIVATE,Revenue,EXTERNAL RESIDENTIAL CARE,578053,130245330,27-Jan-15,"3,900.77",CRAEGMOOR OLD RECTORY BREDE PRIORY,SP0001621
WANDSWORTH COUNCIL,ASC,SOCIAL SERVICES,PRIVATE,Revenue,ONE TO ONE CARE,580601,130246220,29-Jan-15,"3,321.43",CRAEGMOOR OLD RECTORY BREDE PRIORY,SP0001621
WANDSWORTH COUNCIL,ASC,SOCIAL SERVICES,CUSTOMER & CLIENT RECPTS - EXT,Revenue,CL CONT EXTERNAL RESIDENTIAL,569349,130280720,16-Jan-15,-311.55,CRAEGMOOR OLD RECTORY BREDE PRIORY,SP0001621
WANDSWORTH COUNCIL,ASC,SOCIAL SERVICES,CUSTOMER & CLIENT RECPTS - EXT,Revenue,CL CONT EXTERNAL RESIDENTIAL,578053,130280720,27-Jan-15,-311.55,CRAEGMOOR OLD RECTORY BREDE PRIORY,SP0001621
WANDSWORTH COUNCIL,PH,SOCIAL SERVICES,PRIVATE,Revenue,EXTERNAL RESIDENTIAL CARE,564823,140145330,09-Jan-15,675.00,CRANSTOUN DRUG SERVICES,SP0000202
WANDSWORTH COUNCIL,PH,SOCIAL SERVICES,CUSTOMER & CLIENT RECPTS - EXT,Revenue,CL CONT EXTERNAL RESIDENTIAL,564823,140180720,09-Jan-15,-48.00,CRANSTOUN DRUG SERVICES,SP0000202
WANDSWORTH COUNCIL,HS,SOCIAL SERVICES,OTHER AGENCIES,Revenue,SUPPORTING PEOPLE CONTRACTS,576725,175043590,23-Jan-15,"9,999.56",CRANSTOUN DRUG SERVICES,SP0000202
WANDSWORTH COUNCIL,ASC,SOCIAL SERVICES,PRIVATE,Revenue,EXTERNAL RESIDENTIAL CARE,564844,130245330,09-Jan-15,"5,385.28",CREDITON CARE & SUPPORT HOMES,SP0000998
WANDSWORTH COUNCIL,ASC,SOCIAL SERVICES,CUSTOMER & CLIENT RECPTS - EXT,Revenue,CL CONT EXTERNAL RESIDENTIAL,564844,130280720,09-Jan-15,-349.20,CREDITON CARE & SUPPORT HOMES,SP0000998
WANDSWORTH COUNCIL,CES,CHILDREN'S,PRIVATE,Revenue,INDEPENDENT - DAY & BOARDING,563149,221445400,06-Jan-15,"11,251.06",CRESSEY OASIS EDUCATION LTD,SP0000640
WANDSWORTH COUNCIL,CES,CHILDREN'S,PRIVATE,Revenue,INDEPENDENT - DAY & BOARDING,563150,221445400,06-Jan-15,"11,725.22",CRESSEY OASIS EDUCATION LTD,SP0000640
WANDSWORTH COUNCIL,CES,CHILDREN'S,PRIVATE,Revenue,INDEPENDENT - DAY & BOARDING,563151,221445400,06-Jan-15,"19,951.56",CRESSEY OASIS EDUCATION LTD,SP0000640
WANDSWORTH COUNCIL,CES,CHILDREN'S,PRIVATE,Revenue,INDEPENDENT - DAY & BOARDING,563152,221445400,06-Jan-15,"11,951.88",CRESSEY OASIS EDUCATION LTD,SP0000640
WANDSWORTH COUNCIL,CES,CHILDREN'S,PRIVATE,Revenue,INDEPENDENT - DAY & BOARDING,563153,221445400,06-Jan-15,"9,285.72",CRESSEY OASIS EDUCATION LTD,SP0000640
WANDSWORTH COUNCIL,ASC,SOCIAL SERVICES,PRIVATE,Revenue,EXTERNAL DAYCARE,564859,130245290,09-Jan-15,592.76,CREST COOPERATIVE LTD,SP0000683
WANDSWORTH COUNCIL,CES,HOUSING,PRIVATE,Revenue,ACCOMMODATION - UASC,20298922,411845030,12-Jan-15,"3,501.32",CREST MANOR LTD,2018761
WANDSWORTH COUNCIL,CES,HOUSING,PRIVATE,Revenue,ACCOMMODATION - ASYLUM OVER 18,20298922,411846230,12-Jan-15,"2,015.82",CREST MANOR LTD,2018761
WANDSWORTH COUNCIL,CES,HOUSING,PRIVATE,Revenue,ACCOMMODATION - ASYLUM OVER 18,20298923,411846230,12-Jan-15,-573.50,CREST MANOR LTD,2018761
WANDSWORTH COUNCIL,CES,HOUSING,PRIVATE,Revenue,ACCOMMODATION - ASYLUM OVER 18,20298923,411846230,12-Jan-15,573.50,CREST MANOR LTD,2018761
WANDSWORTH COUNCIL,CES,HOUSING,PRIVATE,Revenue,ACCOMMODATION - ASYLUM OVER 18,20298923,411846230,12-Jan-15,0.01,CREST MANOR LTD,2018761
WANDSWORTH COUNCIL,CES,HOUSING,PRIVATE,Revenue,ACCOMMODATION - ASYLUM OVER 18,20298923,411846230,12-Jan-15,-0.02,CREST MANOR LTD,2018761
WANDSWORTH COUNCIL,CES,HOUSING,PRIVATE,Revenue,ACCOMMODATION - ASYLUM OVER 18,20298923,411846230,12-Jan-15,0.01,CREST MANOR LTD,2018761
WANDSWORTH COUNCIL,CES,HOUSING,DIRECT,Revenue,SUBSISTENCE - UASC,20298923,411850490,12-Jan-15,573.50,CREST MANOR LTD,2018761
WANDSWORTH COUNCIL,CES,HOUSING,DIRECT,Revenue,SUBSISTENCE - ASYLUM OVER 18,20298923,411850570,12-Jan-15,573.50,CREST MANOR LTD,2018761
WANDSWORTH COUNCIL,CES,CHILDREN'S,PRIVATE,Revenue,INDEPENDENT - DAY & BOARDING,563935,221445400,07-Jan-15,"1,300.00",CRICKET GREEN SCHOOL,SP0005593
WANDSWORTH COUNCIL,CES,CHILDREN'S,PRIVATE,Revenue,INDEPENDENT - DAY & BOARDING,563936,221445400,07-Jan-15,"1,300.00",CRICKET GREEN SCHOOL,SP0005593
WANDSWORTH COUNCIL,CES,CHILDREN'S,PRIVATE,Revenue,INDEPENDENT - DAY & BOARDING,563940,221445400,07-Jan-15,"1,300.00",CRICKET GREEN SCHOOL,SP0005593
WANDSWORTH COUNCIL,CES,CHILDREN'S,INDIRECT,Revenue,CRIMINAL RECORDS BUREAU,20299103,221000920,14-Jan-15,"8,386.00",CRIMINAL RECORDS BUREAU,2003390
WANDSWORTH COUNCIL,ASC,SOCIAL SERVICES,PRIVATE,Revenue,EXTERNAL RESIDENTIAL CARE,574779,152245330,22-Jan-15,"2,549.53",CRNH LTD,SP0000122
WANDSWORTH COUNCIL,ASC,SOCIAL SERVICES,CUSTOMER & CLIENT RECPTS - EXT,Revenue,CL CONT EXTERNAL RESIDENTIAL,574779,152280720,22-Jan-15,-599.23,CRNH LTD,SP0000122
WANDSWORTH COUNCIL,NGF HTS,ENVIRONMENT & COMMUNITY,BALANCES,Revenue,BALANCE B/F,579486,472369960,29-Jan-15,-18.56,CROSSFOLD ELECTRICAL WHOLESALERS LTD,SP0000946
WANDSWORTH COUNCIL,BS,ENVIRONMENT & COMMUNITY,INVENTORIES,Revenue,BUILDING WORKS STORES,579486,6004B0020,29-Jan-15,495.00,CROSSFOLD ELECTRICAL WHOLESALERS LTD,SP0000946
WANDSWORTH COUNCIL,ASC,SOCIAL SERVICES,PRIVATE,Revenue,EXTERNAL RESIDENTIAL CARE,564816,142045330,09-Jan-15,"1,578.57",CROWNWISE LTD,SP0001202
WANDSWORTH COUNCIL,ASC,SOCIAL SERVICES,PRIVATE,Revenue,EXTERNAL RESIDENTIAL CARE,564817,142045330,09-Jan-15,"3,764.29",CROWNWISE LTD,SP0001202
WANDSWORTH COUNCIL,ASC,SOCIAL SERVICES,PRIVATE,Revenue,EXTERNAL RESIDENTIAL CARE,564818,142045330,09-Jan-15,"2,550.00",CROWNWISE LTD,SP0001202
WANDSWORTH COUNCIL,ASC,SOCIAL SERVICES,VOL ASS,Revenue,SUPPORTED HOUSING PROGRAMME,569285,142048030,16-Jan-15,"1,160.00",CROWNWISE LTD,SP0001202
WANDSWORTH COUNCIL,ASC,SOCIAL SERVICES,PRIVATE,Revenue,EXTERNAL RESIDENTIAL CARE,569287,142245330,16-Jan-15,"1,490.40",CROWNWISE LTD,SP0001202
WANDSWORTH COUNCIL,ASC,SOCIAL SERVICES,PRIVATE,Revenue,EXTERNAL RESIDENTIAL CARE,569294,142245330,16-Jan-15,"3,083.90",CROWNWISE LTD,SP0001202
WANDSWORTH COUNCIL,ASC,SOCIAL SERVICES,VOL ASS,Revenue,SUPPORTED HOUSING PROGRAMME,569284,142248030,16-Jan-15,"1,160.00",CROWNWISE LTD,SP0001202
WANDSWORTH COUNCIL,ASC,SOCIAL SERVICES,VOL ASS,Revenue,SUPPORTED HOUSING PROGRAMME,569286,142248030,16-Jan-15,"1,490.40",CROWNWISE LTD,SP0001202
WANDSWORTH COUNCIL,ASC,SOCIAL SERVICES,VOL ASS,Revenue,SUPPORTED HOUSING PROGRAMME,569288,142248030,16-Jan-15,"1,160.00",CROWNWISE LTD,SP0001202
WANDSWORTH COUNCIL,ASC,SOCIAL SERVICES,VOL ASS,Revenue,SUPPORTED HOUSING PROGRAMME,569289,142248030,16-Jan-15,"1,400.00",CROWNWISE LTD,SP0001202
WANDSWORTH COUNCIL,ASC,SOCIAL SERVICES,VOL ASS,Revenue,SUPPORTED HOUSING PROGRAMME,569290,142248030,16-Jan-15,"1,400.00",CROWNWISE LTD,SP0001202
WANDSWORTH COUNCIL,ASC,SOCIAL SERVICES,CUSTOMER & CLIENT RECPTS - EXT,Revenue,CL CONT EXTERNAL RESIDENTIAL,569294,142280720,16-Jan-15,-205.33,CROWNWISE LTD,SP0001202
WANDSWORTH COUNCIL,CES,CHILDREN'S,PRIVATE,Revenue,EXTERNAL RESIDENTIAL CARE,568506,376345330,14-Jan-15,"2,000.00",CRYSTAL CARE SOLUTIONS,SP0008656
WANDSWORTH COUNCIL,ASC,SOCIAL SERVICES,PRIVATE,Revenue,EXTERNAL RESIDENTIAL CARE,561778,130245330,05-Jan-15,"3,469.00",CSS LTD T/A  THF CARE ESTATES LTD,SP0005682
WANDSWORTH COUNCIL,ASC,SOCIAL SERVICES,PRIVATE,Revenue,EXTERNAL RESIDENTIAL CARE,561780,130245330,05-Jan-15,"3,469.00",CSS LTD T/A  THF CARE ESTATES LTD,SP0005682
WANDSWORTH COUNCIL,ASC,SOCIAL SERVICES,PRIVATE,Revenue,EXTERNAL RESIDENTIAL CARE,564839,130245330,09-Jan-15,"3,469.00",CSS LTD T/A  THF CARE ESTATES LTD,SP0005682
WANDSWORTH COUNCIL,BS,CHILDREN'S,OTHER LAND & BUILDINGS,CAPITAL,SCHOOLS PRIMARY BLDNGS - OLAB,20298758,7004C014J1298D,08-Jan-15,"11,048.02",CUDDY DEMOLITION & DISMANTLING LTD,2014836
WANDSWORTH COUNCIL,BS,ENVIRONMENT & COMMUNITY,OTHER LAND & BUILDINGS,CAPITAL,CROSC PROPERTY BUILDINGS,579270,7004C010J0067D,29-Jan-15,"10,634.50",CUDDY DEMOLITION LIMITED,SP0008693
WANDSWORTH COUNCIL,NGF HTS,ENVIRONMENT & COMMUNITY,SERVICES,Revenue,SUBCONTRACTORS,568335,474135080,14-Jan-15,714.11,DAKAR CARS LTD,SP0006501
WANDSWORTH COUNCIL,PS,ENVIRONMENT & COMMUNITY,PRIVATE,Revenue,GENERAL CONTRACT WORK,577441,385245370,30-Jan-15,"2,000.00",DALLAS PIERCE QUINTERO,SP0006115
WANDSWORTH COUNCIL,NGF CS,ADMINISTRATION,"EQUIPMENT, FURNITURE & MATS",Revenue,"EQUIPMENT, FURNITURE & MATS",20299046,126330000,14-Jan-15,"5,356.75",DAMOVO UK LTD,2007340
WANDSWORTH COUNCIL,PH,ENVIRONMENT & COMMUNITY,COMMUNICATIONS & COMP,Revenue,I.T. EQUIPMENT & MAINTENANCE,561141,107836210,08-Jan-15,145.24,DANWOOD GROUP LTD,SP0002739
WANDSWORTH COUNCIL,PH,ENVIRONMENT & COMMUNITY,COMMUNICATIONS & COMP,Revenue,I.T. EQUIPMENT & MAINTENANCE,561141,107836210,08-Jan-15,145.24,DANWOOD GROUP LTD,SP0002739
WANDSWORTH COUNCIL,PH,ENVIRONMENT & COMMUNITY,COMMUNICATIONS & COMP,Revenue,I.T. EQUIPMENT & MAINTENANCE,561141,107836210,08-Jan-15,145.24,DANWOOD GROUP LTD,SP0002739
WANDSWORTH COUNCIL,NGF ASC,ENVIRONMENT & COMMUNITY,PRINTING STAT & GEN OFFICE EXP,Revenue,PRINTING AND STATIONERY,561144,195133420,23-Jan-15,307.50,DANWOOD GROUP LTD,SP0002739
WANDSWORTH COUNCIL,NGF ASC,ENVIRONMENT & COMMUNITY,PRINTING STAT & GEN OFFICE EXP,Revenue,PRINTING AND STATIONERY,561144,195133420,23-Jan-15,144.90,DANWOOD GROUP LTD,SP0002739
WANDSWORTH COUNCIL,NGF ASC,ENVIRONMENT & COMMUNITY,PRINTING STAT & GEN OFFICE EXP,Revenue,PRINTING AND STATIONERY,561144,195133420,23-Jan-15,307.50,DANWOOD GROUP LTD,SP0002739
WANDSWORTH COUNCIL,NGF ASC,ENVIRONMENT & COMMUNITY,PRINTING STAT & GEN OFFICE EXP,Revenue,PRINTING AND STATIONERY,561144,195133420,23-Jan-15,307.50,DANWOOD GROUP LTD,SP0002739
WANDSWORTH COUNCIL,NGF CS,ENVIRONMENT & COMMUNITY,COMMUNICATIONS & COMP,Revenue,I.T. EQUIPMENT & MAINTENANCE,573897,393336210,21-Jan-15,525.66,DANWOOD GROUP LTD,SP0002739
WANDSWORTH COUNCIL,NGF CS,ENVIRONMENT & COMMUNITY,COMMUNICATIONS & COMP,Revenue,I.T. EQUIPMENT & MAINTENANCE,573898,393336210,21-Jan-15,525.66,DANWOOD GROUP LTD,SP0002739
WANDSWORTH COUNCIL,NGF CS,ENVIRONMENT & COMMUNITY,COMMUNICATIONS & COMP,Revenue,I.T. EQUIPMENT & MAINTENANCE,573899,393336210,21-Jan-15,525.66,DANWOOD GROUP LTD,SP0002739
WANDSWORTH COUNCIL,NGF CS,ENVIRONMENT & COMMUNITY,COMMUNICATIONS & COMP,Revenue,I.T. EQUIPMENT & MAINTENANCE,573900,393336210,21-Jan-15,525.66,DANWOOD GROUP LTD,SP0002739
WANDSWORTH COUNCIL,NGF CS,ENVIRONMENT & COMMUNITY,COMMUNICATIONS & COMP,Revenue,I.T. EQUIPMENT & MAINTENANCE,573901,393336210,21-Jan-15,525.66,DANWOOD GROUP LTD,SP0002739
WANDSWORTH COUNCIL,CES,ENVIRONMENT & COMMUNITY,PRINTING STAT & GEN OFFICE EXP,Revenue,CONSULTATION FEES,565016,337133110,12-Jan-15,650.00,DAVID L SCOTT LTD,SP0009010
WANDSWORTH COUNCIL,CES,ENVIRONMENT & COMMUNITY,SERVICES,Revenue,PROJECT WORK,563327,354134800,12-Jan-15,800.00,DAVID OWENS PHOTOGRAPHY,SP0008988
WANDSWORTH COUNCIL,ASC,SOCIAL SERVICES,PRIVATE,Revenue,EXTERNAL HOMECARE,566676,130245300,13-Jan-15,"3,371.81",DAY AND NITE CARE,SP0008325
WANDSWORTH COUNCIL,ASC,SOCIAL SERVICES,PRIVATE,Revenue,EXTERNAL HOMECARE,566948,130245300,13-Jan-15,"1,146.27",DAY AND NITE CARE,SP0008325
WANDSWORTH COUNCIL,ASC,SOCIAL SERVICES,PRIVATE,Revenue,EXTERNAL HOMECARE,570493,152245300,19-Jan-15,"1,584.56",DAY AND NITE CARE,SP0008325
WANDSWORTH COUNCIL,ASC,SOCIAL SERVICES,PRIVATE,Revenue,EXTERNAL HOMECARE,563419,152645300,07-Jan-15,"2,367.28",DAY AND NITE CARE,SP0008325
WANDSWORTH COUNCIL,ASC,SOCIAL SERVICES,PRIVATE,Revenue,EXTERNAL HOMECARE,563420,152645300,07-Jan-15,"1,022.32",DAY AND NITE CARE,SP0008325
WANDSWORTH COUNCIL,CES,CHILDREN'S,PRIVATE,Revenue,S17 -  ESSENTIALS,577896,376045600,26-Jan-15,989.00,DDC DIAGNOSTICS CENTRE,SP0009093
WANDSWORTH COUNCIL,ASC,SOCIAL SERVICES,PRIVATE,Revenue,EXTERNAL RESIDENTIAL CARE,574790,152645330,22-Jan-15,"1,927.12",DEAN CARE LIMITED T/A WILBURY REST HOME,SP0001025
WANDSWORTH COUNCIL,ASC,SOCIAL SERVICES,CUSTOMER & CLIENT RECPTS - EXT,Revenue,CL CONT EXTERNAL RESIDENTIAL,574790,152680720,22-Jan-15,-744.00,DEAN CARE LIMITED T/A WILBURY REST HOME,SP0001025
WANDSWORTH COUNCIL,NGF CS,FINANCE,"REPAIRS, ALTERATIONS & MTCE",Revenue,"REPS, ALTS & MTCE-BUILDINGS",571087,11181000L08331,19-Jan-15,"3,250.00",DEBA UK LTD,SP0005811
WANDSWORTH COUNCIL,NGF CS,FINANCE,"REPAIRS, ALTERATIONS & MTCE",Revenue,"REPS, ALTS & MTCE-BUILDINGS",571089,11181000L08335,19-Jan-15,"3,025.00",DEBA UK LTD,SP0005811
WANDSWORTH COUNCIL,NGF CS,FINANCE,"REPAIRS, ALTERATIONS & MTCE",Revenue,"REPS, ALTS & MTCE-BUILDINGS",571090,11181000L0833D,19-Jan-15,"2,550.00",DEBA UK LTD,SP0005811
WANDSWORTH COUNCIL,NGF CS,FINANCE,"REPAIRS, ALTERATIONS & MTCE",Revenue,"REPS, ALTS & MTCE-BUILDINGS",571092,47611000K10431,19-Jan-15,"1,675.00",DEBA UK LTD,SP0005811
WANDSWORTH COUNCIL,NGF CS,FINANCE,"REPAIRS, ALTERATIONS & MTCE",Revenue,"REPS, ALTS & MTCE-BUILDINGS",571091,47611000K10561,19-Jan-15,"2,300.00",DEBA UK LTD,SP0005811
WANDSWORTH COUNCIL,NGF CS,FINANCE,"REPAIRS, ALTERATIONS & MTCE",Revenue,"REPS, ALTS & MTCE-BUILDINGS",571084,47611000L0811P,19-Jan-15,"25,990.00",DEBA UK LTD,SP0005811
WANDSWORTH COUNCIL,NGF CS,FINANCE,"REPAIRS, ALTERATIONS & MTCE",Revenue,"REPS, ALTS & MTCE-BUILDINGS",571096,47611000L0811P,19-Jan-15,"6,200.00",DEBA UK LTD,SP0005811
WANDSWORTH COUNCIL,NGF CS,FINANCE,"REPAIRS, ALTERATIONS & MTCE",Revenue,"REPS, ALTS & MTCE-BUILDINGS",571095,47611000L08232,19-Jan-15,"3,050.00",DEBA UK LTD,SP0005811
WANDSWORTH COUNCIL,NGF CS,FINANCE,"REPAIRS, ALTERATIONS & MTCE",Revenue,"REPS, ALTS & MTCE-BUILDINGS",571094,47611000L08236,19-Jan-15,"3,050.00",DEBA UK LTD,SP0005811
WANDSWORTH COUNCIL,NGF CS,FINANCE,"REPAIRS, ALTERATIONS & MTCE",Revenue,MINOR REPAIRS TO BUILDINGS,571093,47611003K0561A,19-Jan-15,"2,400.00",DEBA UK LTD,SP0005811
WANDSWORTH COUNCIL,NGF HTS,FINANCE,"REPAIRS, ALTERATIONS & MTCE",Revenue,"REPS, ALTS & MTCE-BUILDINGS",571088,477010000,19-Jan-15,"2,775.00",DEBA UK LTD,SP0005811
WANDSWORTH COUNCIL,ASC,SOCIAL SERVICES,PRIVATE,Revenue,EXTERNAL RESIDENTIAL CARE,566656,142045330,13-Jan-15,"3,398.93",DEEPDENE CARE LTD,SP0001199
WANDSWORTH COUNCIL,ASC,SOCIAL SERVICES,PRIVATE,Revenue,EXTERNAL RESIDENTIAL CARE,566658,142045330,13-Jan-15,"2,460.07",DEEPDENE CARE LTD,SP0001199
WANDSWORTH COUNCIL,ASC,SOCIAL SERVICES,PRIVATE,Revenue,EXTERNAL RESIDENTIAL CARE,566662,142045330,13-Jan-15,"3,058.99",DEEPDENE CARE LTD,SP0001199
WANDSWORTH COUNCIL,ASC,SOCIAL SERVICES,PRIVATE,Revenue,EXTERNAL RESIDENTIAL CARE,566663,142045330,13-Jan-15,"2,228.72",DEEPDENE CARE LTD,SP0001199
WANDSWORTH COUNCIL,ASC,SOCIAL SERVICES,PRIVATE,Revenue,EXTERNAL RESIDENTIAL CARE,566664,142045330,13-Jan-15,"2,228.68",DEEPDENE CARE LTD,SP0001199
WANDSWORTH COUNCIL,ASC,SOCIAL SERVICES,PRIVATE,Revenue,EXTERNAL RESIDENTIAL CARE,566665,142045330,13-Jan-15,"3,156.15",DEEPDENE CARE LTD,SP0001199
WANDSWORTH COUNCIL,ASC,SOCIAL SERVICES,PRIVATE,Revenue,EXTERNAL RESIDENTIAL CARE,566666,142045330,13-Jan-15,"2,228.68",DEEPDENE CARE LTD,SP0001199
WANDSWORTH COUNCIL,ASC,SOCIAL SERVICES,PRIVATE,Revenue,EXTERNAL RESIDENTIAL CARE,566667,142045330,13-Jan-15,"2,228.68",DEEPDENE CARE LTD,SP0001199
WANDSWORTH COUNCIL,ASC,SOCIAL SERVICES,PRIVATE,Revenue,EXTERNAL RESIDENTIAL CARE,570443,142045330,19-Jan-15,"3,404.11",DEEPDENE CARE LTD,SP0001199
WANDSWORTH COUNCIL,ASC,SOCIAL SERVICES,CUSTOMER & CLIENT RECPTS - EXT,Revenue,CL CONT EXTERNAL RESIDENTIAL,566658,142080720,13-Jan-15,-548.92,DEEPDENE CARE LTD,SP0001199
WANDSWORTH COUNCIL,ASC,SOCIAL SERVICES,CUSTOMER & CLIENT RECPTS - EXT,Revenue,CL CONT EXTERNAL RESIDENTIAL,566663,142080720,13-Jan-15,-548.92,DEEPDENE CARE LTD,SP0001199
WANDSWORTH COUNCIL,ASC,SOCIAL SERVICES,CUSTOMER & CLIENT RECPTS - EXT,Revenue,CL CONT EXTERNAL RESIDENTIAL,566664,142080720,13-Jan-15,-548.92,DEEPDENE CARE LTD,SP0001199
WANDSWORTH COUNCIL,ASC,SOCIAL SERVICES,CUSTOMER & CLIENT RECPTS - EXT,Revenue,CL CONT EXTERNAL RESIDENTIAL,566665,142080720,13-Jan-15,-548.92,DEEPDENE CARE LTD,SP0001199
WANDSWORTH COUNCIL,ASC,SOCIAL SERVICES,PRIVATE,Revenue,EXTERNAL RESIDENTIAL CARE,566655,142245330,13-Jan-15,"2,724.24",DEEPDENE CARE LTD,SP0001199
WANDSWORTH COUNCIL,NGF HS,ENVIRONMENT & COMMUNITY,COMMUNICATIONS & COMP,Revenue,I.T. EQUIPMENT & MAINTENANCE,578227,408836210,27-Jan-15,619.00,DELL CORPORATION LTD,SP0003352
WANDSWORTH COUNCIL,BS,FINANCE,GOVERNMENT DEPARTMENTS,Revenue,NNDR CENTRAL GOVNT BALANCE,4010464,6188B0710,15-Jan-15,"4,073,838.00",DEPT FOR COMMUNITIES & LOCAL GOVERNMENT,2010259
WANDSWORTH COUNCIL,BS,FINANCE,GOVERNMENT DEPARTMENTS,Revenue,GENERAL GOVT GRANT ACCOUNT,4010464,6501B4650,15-Jan-15,"-2,963.00",DEPT FOR COMMUNITIES & LOCAL GOVERNMENT,2010259
WANDSWORTH COUNCIL,BS,FINANCE,GOVERNMENT DEPARTMENTS,Revenue,GENERAL GOVT GRANT ACCOUNT,4010464,6501B4650,15-Jan-15,"-2,804,252.00",DEPT FOR COMMUNITIES & LOCAL GOVERNMENT,2010259
WANDSWORTH COUNCIL,BS,FINANCE,GOVERNMENT DEPARTMENTS,Revenue,NNDR CENTRAL GOVNT BALANCE,4010464,6693B0710,15-Jan-15,"-12,866.00",DEPT FOR COMMUNITIES & LOCAL GOVERNMENT,2010259
WANDSWORTH COUNCIL,CES,CHILDREN'S,SERVICES,Revenue,2 YR NURSERY PLACES,7014909,22003400K00104,13-Jan-15,"2,998.15",DERINTON ROAD FAMILY CENTRE,2000147
WANDSWORTH COUNCIL,CES,FINANCE,"EQUIPMENT, FURNITURE & MATS",Revenue,EQUIP.FURN & MATS-REPS & MTCE,571140,364430010,19-Jan-15,965.91,DH CROFTS LTD,SP0000076
WANDSWORTH COUNCIL,CES,FINANCE,"EQUIPMENT, FURNITURE & MATS",Revenue,"EQUIPMENT, FURNITURE & MATS",579388,364530000,29-Jan-15,"1,093.65",DH CROFTS LTD,SP0000076
WANDSWORTH COUNCIL,CES,FINANCE,"EQUIPMENT, FURNITURE & MATS",Revenue,"EQUIPMENT, FURNITURE & MATS",579389,364530000,29-Jan-15,"6,565.49",DH CROFTS LTD,SP0000076
WANDSWORTH COUNCIL,NGF CS,FINANCE,"REPAIRS, ALTERATIONS & MTCE",Revenue,"REPS, ALTS & MTCE-BUILDINGS",571203,47611000L08067,19-Jan-15,"1,321.17",DH CROFTS LTD,SP0000076
WANDSWORTH COUNCIL,NGF HS,HOUSING,"REPAIRS, ALTERATIONS & MTCE",Revenue,EXTERNAL ELECTRICS,572425,4WF049240,20-Jan-15,750.81,DH CROFTS LTD,SP0000076
WANDSWORTH COUNCIL,NGF HS,HOUSING,"REPAIRS, ALTERATIONS & MTCE",Revenue,EX DECS (HOTPS),573925,4WFW49770,22-Jan-15,"99,668.54",DIAMOND BUILD PLC,SP0000138
WANDSWORTH COUNCIL,CRS,ENVIRONMENT & COMMUNITY,PRIVATE,Revenue,HIRED SERVICES - SECURITY,565011,440645390,09-Jan-15,"1,080.00",DIRTY HARRY'S WASTE MANAGEMENT LTD,SP0008741
WANDSWORTH COUNCIL,ASC,ENVIRONMENT & COMMUNITY,GRANTS & SUBSCRIPTIONS,Revenue,CONTRACTS TO VOLUNTARY ORGS,567413,173037550,16-Jan-15,"13,061.00",DISABLED ADVICE SERVICE,SP0002016
WANDSWORTH COUNCIL,ASC,ENVIRONMENT & COMMUNITY,GRANTS & SUBSCRIPTIONS,Revenue,CONTRACTS TO VOLUNTARY ORGS,567414,173037550,16-Jan-15,"2,612.20",DISABLED ADVICE SERVICE,SP0002016
WANDSWORTH COUNCIL,NGF ASC,ENVIRONMENT & COMMUNITY,GRANTS & SUBSCRIPTIONS,Revenue,SUBSCRIPTIONS,574508,196737640,23-Jan-15,525.00,DISABLED LIVING FOUNDATION,SP0006213
WANDSWORTH COUNCIL,NGF CES,ENVIRONMENT & COMMUNITY,COMMUNICATIONS & COMP,Revenue,HARDWARE/SOFTWARE MAINTENANCE,578247,260136340,27-Jan-15,480.00,DISCOVER IT (UK) LTD,SP0006575
WANDSWORTH COUNCIL,ASC,SOCIAL SERVICES,PRIVATE,Revenue,EXTERNAL DAYCARE,569418,130245290,16-Jan-15,840.00,DORSET SCOPE,SP0000591
WANDSWORTH COUNCIL,NGF CDC,ENVIRONMENT & COMMUNITY,PRINTING STAT & GEN OFFICE EXP,Revenue,PUBLICITY,573452,122033470,22-Jan-15,"1,841.19",DOTMAILER LTD,SP0006264
WANDSWORTH COUNCIL,ASC,SOCIAL SERVICES,PRIVATE,Revenue,EXTERNAL NURSING CARE,564827,152445310,09-Jan-15,"2,485.71",DOWNLANDS PARK NURSING HOME,SP0008001
WANDSWORTH COUNCIL,ASC,SOCIAL SERVICES,PRIVATE,Revenue,EXTERNAL NURSING CARE,574814,152445310,22-Jan-15,"2,568.57",DOWNLANDS PARK NURSING HOME,SP0008001
WANDSWORTH COUNCIL,ASC,SOCIAL SERVICES,CUSTOMER & CLIENT RECPTS - EXT,Revenue,CLIENT CONTS EXTERNAL NURSING,564827,152480820,09-Jan-15,-531.21,DOWNLANDS PARK NURSING HOME,SP0008001
WANDSWORTH COUNCIL,ASC,SOCIAL SERVICES,CUSTOMER & CLIENT RECPTS - EXT,Revenue,CLIENT CONTS EXTERNAL NURSING,574814,152480820,22-Jan-15,-548.92,DOWNLANDS PARK NURSING HOME,SP0008001
WANDSWORTH COUNCIL,ASC,SOCIAL SERVICES,CUSTOMER & CLIENT RECPTS - EXT,Revenue,RNCC,564827,152484120,09-Jan-15,-475.24,DOWNLANDS PARK NURSING HOME,SP0008001
WANDSWORTH COUNCIL,ASC,SOCIAL SERVICES,CUSTOMER & CLIENT RECPTS - EXT,Revenue,RNCC,574814,152484120,22-Jan-15,-491.08,DOWNLANDS PARK NURSING HOME,SP0008001
WANDSWORTH COUNCIL,NGF HS,ENVIRONMENT & COMMUNITY,SERVICES,Revenue,SUBCONTRACTORS,577515,470235080,26-Jan-15,440.00,DOWNS FLOORING LTD,SP0000833
WANDSWORTH COUNCIL,NGF HS,ENVIRONMENT & COMMUNITY,SERVICES,Revenue,SUBCONTRACTORS,577515,470235080,26-Jan-15,200.00,DOWNS FLOORING LTD,SP0000833
WANDSWORTH COUNCIL,CES,CHILDREN'S,PRIVATE,Revenue,S17 -  ESSENTIALS,577001,361545600,23-Jan-15,"1,768.00",DR ALISTAIR COOPER,SP0009105
WANDSWORTH COUNCIL,ASC,HOUSING,PRIVATE,Revenue,ACCOMMODATION- OTHER DESTITUTE,20298911,411945020,12-Jan-15,"1,505.75",DR D PATEL & MRS P PATEL,2015411
WANDSWORTH COUNCIL,ASC,HOUSING,PRIVATE,Revenue,ACCOMMODATION- OTHER DESTITUTE,20298912,411945020,12-Jan-15,"1,473.33",DR D PATEL & MRS P PATEL,2015411
WANDSWORTH COUNCIL,NGF HS,HOUSING,"REPAIRS, ALTERATIONS & MTCE",Revenue,COMMUNAL DRAINAGE - GEN MAINT,565280,4BBB49250,09-Jan-15,438.63,DRAIN SURGEON SERVICES LTD,SP0000281
WANDSWORTH COUNCIL,NGF HS,HOUSING,"REPAIRS, ALTERATIONS & MTCE",Revenue,GENERAL INTERNAL REPAIRS,571041,4BFJ49210,19-Jan-15,851.91,DRAIN SURGEON SERVICES LTD,SP0000281
WANDSWORTH COUNCIL,NGF HS,HOUSING,"REPAIRS, ALTERATIONS & MTCE",Revenue,TANK ROOMS,570787,4VM649270,19-Jan-15,"1,138.96",DRAIN SURGEON SERVICES LTD,SP0000281
WANDSWORTH COUNCIL,NGF HS,HOUSING,"REPAIRS, ALTERATIONS & MTCE",Revenue,TANK ROOMS,579895,4VN549270,29-Jan-15,565.84,DRAIN SURGEON SERVICES LTD,SP0000281
WANDSWORTH COUNCIL,NGF HS,HOUSING,"REPAIRS, ALTERATIONS & MTCE",Revenue,TANK ROOMS,570781,4VR049270,19-Jan-15,451.95,DRAIN SURGEON SERVICES LTD,SP0000281
WANDSWORTH COUNCIL,NGF HS,HOUSING,"REPAIRS, ALTERATIONS & MTCE",Revenue,TANK ROOMS,579890,4VX649270,29-Jan-15,583.94,DRAIN SURGEON SERVICES LTD,SP0000281
WANDSWORTH COUNCIL,NGF HS,HOUSING,"REPAIRS, ALTERATIONS & MTCE",Revenue,GENERAL REPAIRS TO BLOCKS,572457,4VXW49200,20-Jan-15,501.53,DRAIN SURGEON SERVICES LTD,SP0000281
WANDSWORTH COUNCIL,NGF HS,HOUSING,"REPAIRS, ALTERATIONS & MTCE",Revenue,GENERAL REPS BLOCK SC (AREAS),564074,4VY749920,07-Jan-15,606.60,DRAIN SURGEON SERVICES LTD,SP0000281
WANDSWORTH COUNCIL,NGF HS,HOUSING,"REPAIRS, ALTERATIONS & MTCE",Revenue,COMMUNAL DRAINAGE - GEN MAINT,580032,4WEC49250,29-Jan-15,533.46,DRAIN SURGEON SERVICES LTD,SP0000281
WANDSWORTH COUNCIL,NGF HS,HOUSING,"REPAIRS, ALTERATIONS & MTCE",Revenue,COMMUNAL DRAINAGE - GEN MAINT,561732,4WLP49250,05-Jan-15,899.25,DRAIN SURGEON SERVICES LTD,SP0000281
WANDSWORTH COUNCIL,NGF HS,HOUSING,"REPAIRS, ALTERATIONS & MTCE",Revenue,GENERAL REPS BLOCK SC (AREAS),568511,4WXM49920,14-Jan-15,"1,292.66",DRAIN SURGEON SERVICES LTD,SP0000281
WANDSWORTH COUNCIL,NGF HS,HOUSING,"REPAIRS, ALTERATIONS & MTCE",Revenue,COMMUNAL DRAINAGE - GEN MAINT,569522,4XC749250,16-Jan-15,"1,366.20",DRAIN SURGEON SERVICES LTD,SP0000281
WANDSWORTH COUNCIL,NGF HS,HOUSING,"REPAIRS, ALTERATIONS & MTCE",Revenue,GENERAL REPS BLOCK SC (AREAS),565487,4XLA49920,09-Jan-15,"1,372.53",DRAIN SURGEON SERVICES LTD,SP0000281
WANDSWORTH COUNCIL,NGF HS,HOUSING,"REPAIRS, ALTERATIONS & MTCE",Revenue,GENERAL REPS BLOCK SC (AREAS),569608,4XVM49920,16-Jan-15,478.50,DRAIN SURGEON SERVICES LTD,SP0000281
WANDSWORTH COUNCIL,NGF HS,HOUSING,"REPAIRS, ALTERATIONS & MTCE",Revenue,CLUBROOMS,572454,4XVV49420,20-Jan-15,"2,577.15",DRAIN SURGEON SERVICES LTD,SP0000281
WANDSWORTH COUNCIL,NGF HS,HOUSING,"REPAIRS, ALTERATIONS & MTCE",Revenue,COMMUNAL DRAINAGE - GEN MAINT,565270,4XXG49250,09-Jan-15,537.92,DRAIN SURGEON SERVICES LTD,SP0000281
WANDSWORTH COUNCIL,NGF HS,HOUSING,"REPAIRS, ALTERATIONS & MTCE",Revenue,COMMUNAL DRAINAGE - GEN MAINT,566104,4YCT49250,12-Jan-15,"1,479.70",DRAIN SURGEON SERVICES LTD,SP0000281
WANDSWORTH COUNCIL,NGF HS,HOUSING,"REPAIRS, ALTERATIONS & MTCE",Revenue,TANK ROOMS,570786,4YDW49270,19-Jan-15,734.11,DRAIN SURGEON SERVICES LTD,SP0000281
WANDSWORTH COUNCIL,NGF HS,HOUSING,"REPAIRS, ALTERATIONS & MTCE",Revenue,GENERAL REPS BLOCK SC (AREAS),578441,4YEC49920,27-Jan-15,631.23,DRAIN SURGEON SERVICES LTD,SP0000281
WANDSWORTH COUNCIL,NGF HS,HOUSING,"REPAIRS, ALTERATIONS & MTCE",Revenue,TANK ROOMS,562921,4YEL49270,06-Jan-15,693.51,DRAIN SURGEON SERVICES LTD,SP0000281
WANDSWORTH COUNCIL,NGF HS,HOUSING,"REPAIRS, ALTERATIONS & MTCE",Revenue,GENERAL REPS BLOCK SC (AREAS),568540,4YH849920,14-Jan-15,499.26,DRAIN SURGEON SERVICES LTD,SP0000281
WANDSWORTH COUNCIL,NGF HS,HOUSING,"REPAIRS, ALTERATIONS & MTCE",Revenue,TANK ROOMS,581419,4YHH49270,30-Jan-15,"1,592.69",DRAIN SURGEON SERVICES LTD,SP0000281
WANDSWORTH COUNCIL,NGF HS,HOUSING,"REPAIRS, ALTERATIONS & MTCE",Revenue,TANK ROOMS,570776,4YKW49270,19-Jan-15,927.73,DRAIN SURGEON SERVICES LTD,SP0000281
WANDSWORTH COUNCIL,NGF HS,HOUSING,"REPAIRS, ALTERATIONS & MTCE",Revenue,TANK ROOMS,568516,4YP049270,14-Jan-15,560.17,DRAIN SURGEON SERVICES LTD,SP0000281
WANDSWORTH COUNCIL,NGF HS,HOUSING,"REPAIRS, ALTERATIONS & MTCE",Revenue,GENERAL REPS BLOCK SC (AREAS),563976,4YPR49920,07-Jan-15,876.16,DRAIN SURGEON SERVICES LTD,SP0000281
WANDSWORTH COUNCIL,NGF HS,HOUSING,"REPAIRS, ALTERATIONS & MTCE",Revenue,COMMUNAL DRAINAGE - GEN MAINT,576504,4YRC49250,23-Jan-15,481.85,DRAIN SURGEON SERVICES LTD,SP0000281
WANDSWORTH COUNCIL,ASC,SOCIAL SERVICES,PRIVATE,Revenue,EXTERNAL NURSING CARE,564828,162845310,09-Jan-15,"3,523.68",DRUMCONNER HOMES LTD,SP0000716
WANDSWORTH COUNCIL,ASC,SOCIAL SERVICES,CUSTOMER & CLIENT RECPTS - EXT,Revenue,CLIENT CONTS EXTERNAL NURSING,564828,162880820,09-Jan-15,-319.40,DRUMCONNER HOMES LTD,SP0000716
WANDSWORTH COUNCIL,ASC,SOCIAL SERVICES,CUSTOMER & CLIENT RECPTS - EXT,Revenue,RNCC,564828,162884120,09-Jan-15,-443.56,DRUMCONNER HOMES LTD,SP0000716
WANDSWORTH COUNCIL,CES,ENVIRONMENT & COMMUNITY,SERVICES,Revenue,PLACEMENT SUPPORT,569134,365734770,30-Jan-15,"1,500.00",DULWICH COLLEGE ENTERPRISES LTD,SP0006911
WANDSWORTH COUNCIL,ERS,ENVIRONMENT & COMMUNITY,SERVICES,Revenue,ORGANIST FEES,569162,425234720,16-Jan-15,858.00,DUNCAN FAULKNER,SP0004822
WANDSWORTH COUNCIL,ERS,ENVIRONMENT & COMMUNITY,SERVICES,Revenue,ORGANIST FEES,571573,425234720,21-Jan-15,636.40,DUNCAN FAULKNER,SP0004822
WANDSWORTH COUNCIL,ERS,ENVIRONMENT & COMMUNITY,SERVICES,Revenue,ORGANIST FEES,578799,425234720,29-Jan-15,785.30,DUNCAN FAULKNER,SP0004822
WANDSWORTH COUNCIL,CRS,ENVIRONMENT & COMMUNITY,PRIVATE,Revenue,HIRED SERVICES - SECURITY,574581,440645390,22-Jan-15,"1,800.00",E C SOFT ICE LTD,SP0007418
WANDSWORTH COUNCIL,CS,ENVIRONMENT & COMMUNITY,HEALTH,Revenue,THIRD PARTY PYMT - HEALTH,577469,128041130,27-Jan-15,"2,821.60",EARLSFIELD PRACTICE,SP0007581
WANDSWORTH COUNCIL,ASC,HOUSING,PRIVATE,Revenue,ACCOMMODATION- OTHER DESTITUTE,20298916,411945020,12-Jan-15,"1,083.33",EARLSFIELD PROPERTIES,2006827
WANDSWORTH COUNCIL,ASC,SOCIAL SERVICES,PRIVATE,Revenue,EXTERNAL NURSING CARE,573515,152645310,21-Jan-15,944.73,EASTCROFT NURSING HOME,SP0000523
WANDSWORTH COUNCIL,ASC,SOCIAL SERVICES,CUSTOMER & CLIENT RECPTS - EXT,Revenue,CLIENT CONTS EXTERNAL NURSING,573515,152680820,21-Jan-15,-118.27,EASTCROFT NURSING HOME,SP0000523
WANDSWORTH COUNCIL,ASC,SOCIAL SERVICES,CUSTOMER & CLIENT RECPTS - EXT,Revenue,RNCC,573515,152684120,21-Jan-15,-95.05,EASTCROFT NURSING HOME,SP0000523
WANDSWORTH COUNCIL,ASC,SOCIAL SERVICES,PRIVATE,Revenue,EXTERNAL NURSING CARE,573514,152845310,21-Jan-15,"2,849.21",EASTCROFT NURSING HOME,SP0000523
WANDSWORTH COUNCIL,ASC,SOCIAL SERVICES,CUSTOMER & CLIENT RECPTS - EXT,Revenue,CLIENT CONTS EXTERNAL NURSING,573514,152880820,21-Jan-15,-548.92,EASTCROFT NURSING HOME,SP0000523
WANDSWORTH COUNCIL,ASC,SOCIAL SERVICES,CUSTOMER & CLIENT RECPTS - EXT,Revenue,RNCC,573514,152884120,21-Jan-15,-491.09,EASTCROFT NURSING HOME,SP0000523
WANDSWORTH COUNCIL,HTS,ENVIRONMENT & COMMUNITY,COMMUNICATIONS & COMP,Revenue,I.T. SOFTWARE,578161,456036240,28-Jan-15,"8,400.00",EBASE TECHNOLOGY LTD,SP0006389
WANDSWORTH COUNCIL,CES,CHILDREN'S,PRIVATE,Revenue,EXTERNAL RESIDENTIAL CARE,564976,376345330,09-Jan-15,"12,621.43",EBONYCARE LIMITED,SP0001785
WANDSWORTH COUNCIL,CES,CHILDREN'S,PRIVATE,Revenue,EXTERNAL RESIDENTIAL CARE,564977,376345330,09-Jan-15,"9,742.86",EBONYCARE LIMITED,SP0001785
WANDSWORTH COUNCIL,CES,CHILDREN'S,PRIVATE,Revenue,EXTERNAL RESIDENTIAL CARE,564987,376345330,09-Jan-15,"13,285.71",EBONYCARE LIMITED,SP0001785
WANDSWORTH COUNCIL,CES,CHILDREN'S,PRIVATE,Revenue,EXTERNAL RESIDENTIAL CARE,578930,376345330,28-Jan-15,"11,400.00",EBONYCARE LIMITED,SP0001785
WANDSWORTH COUNCIL,CES,CHILDREN'S,PRIVATE,Revenue,EXTERNAL RESIDENTIAL CARE,578931,376345330,28-Jan-15,"8,800.00",EBONYCARE LIMITED,SP0001785
WANDSWORTH COUNCIL,CES,CHILDREN'S,PRIVATE,Revenue,EXTERNAL RESIDENTIAL CARE,578932,376345330,28-Jan-15,"12,000.00",EBONYCARE LIMITED,SP0001785
WANDSWORTH COUNCIL,BS,CHILDREN'S,OTHER LAND & BUILDINGS,CAPITAL,SCHOOLS PRIMARY BLDNGS - OLAB,20298980,7003C014J1361C,09-Jan-15,"10,253.38",ECD ARCHITECTS LTD,2017895
WANDSWORTH COUNCIL,NGF HTS,ENVIRONMENT & COMMUNITY,SERVICES,Revenue,SUBCONTRACTORS,574743,474135080,22-Jan-15,"2,078.65",ECON ENGINEERING LTD,SP0003381
